{"text_format":"1","workbook":"xlsx","n_sheets":7,"sheets":["Instructions","Multi-Year Total","MediaLog","Summary","LookupData","PicklistData","Embedded WORD"],"not_rendered":{"charts":0,"images":1,"macros":1,"external_links":2,"defined_names":66,"comments":0,"pivot_tables":0},"unopened":[],"bounds":{"document_bytes":16777216,"sheet_cells":100000,"rows_first":2000,"rows_last":500,"rows_between":2000,"halvings":0,"cell_chars":16384,"cell_head_chars":4096},"cells_cut":0,"cells_raw":0,"read":"whole","date_system":"1900"}

{"sheet":"Instructions","index":0,"n_rows":19,"n_cols":23,"rows_kept":19,"cut":false,"hidden":false,"merged":[[15,1,16,1],[15,3,16,3]]}
[]
[null,"Media Impressions Worksheet"]
[null,"A tool to help capture and report earned news media, paid advertising, and social/digital media efforts. "]
[]
[null,"1. Click “Enable Content” above the formula bar."]
[null,"2. Enter your organization name."]
[null,"3. Select the Time Period of Placements."]
[null,"4. Click \"Create\" button to create MediaLog and Summary tab."]
[null,"5. Click \"Delete\" button to delete MediaLog and Summary tab. (Optional)"]
[null,"6. Enter a contact person’s name and email address."]
[null,"7. Save this file. Put your organization name and date in the file name.  "]
[null,"8. Click “Open Guidance Document” to review guidance on using the worksheet."]
[]
[null,"Organization Name",null," ",null,null,null,null,null,null,null,null,null,null,null,null,null,null,null,null,null,null,"Boston Public Health Commission"]
[null,"Time Period of Placements"]
[null,"Create a Tab"]
[]
[null,"Contact Name"]
[null,"Contact Email"]

{"sheet":"Multi-Year Total","index":1,"n_rows":160,"n_cols":17,"rows_kept":160,"cut":false,"hidden":true,"merged":[[30,0,58,0],[30,1,36,1],[37,1,43,1],[44,1,50,1],[51,1,57,1],[1,0,29,0],[1,1,7,1],[8,1,14,1],[15,1,21,1],[22,1,28,1],[88,0,116,0],[88,1,94,1],[95,1,101,1],[102,1,108,1],[109,1,115,1],[59,0,87,0],[59,1,65,1],[66,1,72,1],[73,1,79,1],[80,1,86,1],[151,0,151,1],[151,3,151,4],[117,0,145,0],[117,1,123,1],[124,1,130,1],[131,1,137,1],[138,1,144,1]]}
["Strategic Direction","Type","Media Channel/Type","Time Period of Placements","Circulation Viewers Listeners","Media Impressions","Cost","Total Added Value","Value of coverage",null,{"$f":"LookupData!S1","v":" to "},{"$f":"TRIM(MID(CELL(\"filename\",A1),SEARCH(\"]\",CELL(\"filename\",A1),1)+1,LEN(CELL(\"filename\",A1))-(SEARCH(\"]\",CELL(\"filename\",A1),1)+LEN(\" Summary\"))))","v":"Multi-Ye"},"Awardee","Partner","Sub-Recipients","Public-Earned","Public-Paid"]
["Tobacco-free living",{"$f":"$O$1","v":"Sub-Recipients"},"Television",{"$f":"$K$1","v":" to "},{"$f":"SUM(0)","v":0},{"$f":"SUM(0)","v":0},{"$f":"SUM(0)","v":0},{"$f":"SUM(0)","v":0},{"$f":"SUM(0)","v":0},null,{"$f":"IF(OR(A1=\"Strategic Direction\", A1=\"Type\", A1=\"Media Channel/Type\", A1=0), IF(A2=0, K1, A2), A1)","v":"Tobacco-free living"},{"$f":"IF(OR(B1=\"Strategic Direction\", B1=\"Type\", B1=\"Media Channel/Type\", B1=0, B1=\"TOTAL\"), IF(B2=0, L1, IF(B2=$N$1, \"Partner\",IF(B2=$O$1, \"Sub-Recipients\", IF(B2=$P$1, \"Public-Earned\", IF(B2=$Q$1, \"Public-Paid\", B2))))), IF(B1=$N$1, \"Partner\",IF(B1=$O$1, \"Sub-Recipients\", IF(B1=$P$1, \"Public-Earned\", IF(B1=$Q$1, \"Public-Paid\", L1)))))","v":"Sub-Recipients"},{"$f":"C2","v":"Television"}]
[null,null,"Radio",{"$f":"$K$1","v":" to "},{"$f":"SUM(0)","v":0},0,0,0,0,null,{"$f":"IF(OR(A2=\"Strategic Direction\", A2=\"Type\", A2=\"Media Channel/Type\", A2=0), IF(A3=0, K2, A3), A2)","v":"Tobacco-free living"},{"$f":"IF(OR(B2=\"Strategic Direction\", B2=\"Type\", B2=\"Media Channel/Type\", B2=0, B2=\"TOTAL\"), IF(B3=0, L2, IF(B3=$N$1, \"Partner\",IF(B3=$O$1, \"Sub-Recipients\", IF(B3=$P$1, \"Public-Earned\", IF(B3=$Q$1, \"Public-Paid\", B3))))), IF(B2=$N$1, \"Partner\",IF(B2=$O$1, \"Sub-Recipients\", IF(B2=$P$1, \"Public-Earned\", IF(B2=$Q$1, \"Public-Paid\", L2)))))","v":"Sub-Recipients"},{"$f":"C3","v":"Radio"}]
[null,null,"Print"," to ",0,0,0,0,0,null,"Tobacco-free living","Sub-Recipients","Print"]
[null,null,"Social/Digital Media"," to ",0,0,0,0,0,null,"Tobacco-free living","Sub-Recipients","Social/Digital Media"]
[null,null,"Outdoor"," to ",0,0,0,0,0,null,"Tobacco-free living","Sub-Recipients","Outdoor"]
[null,null,"Other"," to ",0,0,0,0,0,null,"Tobacco-free living","Sub-Recipients","Other"]
[null,null,"Subtotal",null,0,0,0,0,0,null,"Tobacco-free living","Sub-Recipients","Subtotal"]
[null,{"$f":"$P$1","v":"Public-Earned"},"Television",{"$f":"$K$1","v":" to "},0,0,0,0,0,null,"Tobacco-free living","Public-Earned","Television"]
[null,null,"Radio"," to ",0,0,0,0,0,null,"Tobacco-free living","Public-Earned","Radio"]
[null,null,"Print"," to ",0,0,0,0,0,null,"Tobacco-free living","Public-Earned","Print"]
[null,null,"Social/Digital Media"," to ",0,0,0,0,0,null,"Tobacco-free living","Public-Earned","Social/Digital Media"]
[null,null,"Outdoor"," to ",0,0,0,0,0,null,"Tobacco-free living","Public-Earned","Outdoor"]
[null,null,"Other"," to ",0,0,0,0,0,null,"Tobacco-free living","Public-Earned","Other"]
[null,null,"Subtotal",null,0,0,0,0,0,null,"Tobacco-free living","Public-Earned","Subtotal"]
[null,{"$f":"$M$1","v":"Awardee"},"Television",{"$f":"$K$1","v":" to "},0,0,0,0,0,null,"Tobacco-free living","Awardee","Television"]
[null,null,"Radio"," to ",0,0,0,0,0,null,"Tobacco-free living","Awardee","Radio"]
[null,null,"Print"," to ",0,0,0,0,0,null,"Tobacco-free living","Awardee","Print"]
[null,null,"Social/Digital Media"," to ",0,0,0,0,0,null,"Tobacco-free living","Awardee","Social/Digital Media"]
[null,null,"Outdoor"," to ",0,0,0,0,0,null,"Tobacco-free living","Awardee","Outdoor"]
[null,null,"Other"," to ",0,0,0,0,0,null,"Tobacco-free living","Awardee","Other"]
[null,null,"Subtotal",null,0,0,0,0,0,null,"Tobacco-free living","Awardee","Subtotal"]
[null,{"$f":"$N$1","v":"Partner"},"Television",0,0,0,0,0,0,null,"Tobacco-free living","Partner","Television"]
[null,null,"Radio",0,0,0,0,0,0,null,"Tobacco-free living","Partner","Radio"]
[null,null,"Print",0,0,0,0,0,0,null,"Tobacco-free living","Partner","Print"]
[null,null,"Social/New Media",0,0,0,0,0,0,null,"Tobacco-free living","Partner","Social/New Media"]
[null,null,"Outdoor",0,0,0,0,0,0,null,"Tobacco-free living","Partner","Outdoor"]
[null,null,"Other",0,0,0,0,0,0,null,"Tobacco-free living","Partner","Other"]
[null,null,"Subtotal",null,0,0,0,0,0,null,"Tobacco-free living","Partner","Subtotal"]
[null,"TOTAL",null,null,0,0,0,0,0,null,"Tobacco-free living","TOTAL",0]
["Nutrition",{"$f":"$O$1","v":"Sub-Recipients"},"Television",{"$f":"$K$1","v":" to "},0,0,0,0,0,null,"Nutrition","Sub-Recipients","Television"]
[null,null,"Radio"," to ",0,0,0,0,0,null,"Nutrition","Sub-Recipients","Radio"]
[null,null,"Print"," to ",0,0,0,0,0,null,"Nutrition","Sub-Recipients","Print"]
[null,null,"Social/Digital Media"," to ",0,0,0,0,0,null,"Nutrition","Sub-Recipients","Social/Digital Media"]
[null,null,"Outdoor"," to ",{"$f":"SUM(0)","v":0},0,0,0,0,null,"Nutrition","Sub-Recipients","Outdoor"]
[null,null,"Other"," to ",0,0,0,0,0,null,"Nutrition","Sub-Recipients","Other"]
[null,null,"Subtotal",null,0,0,0,0,0,null,"Nutrition","Sub-Recipients","Subtotal"]
[null,{"$f":"$P$1","v":"Public-Earned"},"Television",{"$f":"$K$1","v":" to "},0,0,0,0,0,null,"Nutrition","Public-Earned","Television"]
[null,null,"Radio"," to ",0,0,0,0,0,null,"Nutrition","Public-Earned","Radio"]
[null,null,"Print"," to ",0,0,0,0,0,null,"Nutrition","Public-Earned","Print"]
[null,null,"Social/Digital Media"," to ",0,0,0,0,0,null,"Nutrition","Public-Earned","Social/Digital Media"]
[null,null,"Outdoor"," to ",0,0,0,0,0,null,"Nutrition","Public-Earned","Outdoor"]
[null,null,"Other"," to ",0,0,0,0,0,null,"Nutrition","Public-Earned","Other"]
[null,null,"Subtotal",null,0,0,0,0,0,null,"Nutrition","Public-Earned","Subtotal"]
[null,{"$f":"$M$1","v":"Awardee"},"Television",{"$f":"$K$1","v":" to "},0,0,0,0,0,null,"Nutrition","Awardee","Television"]
[null,null,"Radio"," to ",0,0,0,0,0,null,"Nutrition","Awardee","Radio"]
[null,null,"Print"," to ",0,0,0,0,0,null,"Nutrition","Awardee","Print"]
[null,null,"Social/Digital Media"," to ",0,0,0,0,0,null,"Nutrition","Awardee","Social/Digital Media"]
[null,null,"Outdoor"," to ",0,0,0,0,0,null,"Nutrition","Awardee","Outdoor"]
[null,null,"Other"," to ",0,0,0,0,0,null,"Nutrition","Awardee","Other"]
[null,null,"Subtotal",null,0,0,0,0,0,null,"Nutrition","Awardee","Subtotal"]
[null,{"$f":"$N$1","v":"Partner"},"Television",0,0,0,0,0,0,null,"Nutrition","Partner","Television"]
[null,null,"Radio",0,0,0,0,0,0,null,"Nutrition","Partner","Radio"]
[null,null,"Print",0,0,0,0,0,0,null,"Nutrition","Partner","Print"]
[null,null,"Social/New Media",0,0,0,0,0,0,null,"Nutrition","Partner","Social/New Media"]
[null,null,"Outdoor",0,0,0,0,0,0,null,"Nutrition","Partner","Outdoor"]
[null,null,"Other",0,0,0,0,0,0,null,"Nutrition","Partner","Other"]
[null,null,"Subtotal",null,0,0,0,0,0,null,"Nutrition","Partner","Subtotal"]
[null,"TOTAL",null,null,0,0,0,0,0,null,"Nutrition","TOTAL",0]
["Physical Activity",{"$f":"$O$1","v":"Sub-Recipients"},"Television",{"$f":"$K$1","v":" to "},0,0,0,0,0,null,"Physical Activity","Sub-Recipients","Television"]
[null,null,"Radio"," to ",0,0,0,0,0,null,"Physical Activity","Sub-Recipients","Radio"]
[null,null,"Print"," to ",0,0,0,0,0,null,"Physical Activity","Sub-Recipients","Print"]
[null,null,"Social/Digital Media"," to ",0,0,0,0,0,null,"Physical Activity","Sub-Recipients","Social/Digital Media"]
[null,null,"Outdoor"," to ",0,0,0,0,0,null,"Physical Activity","Sub-Recipients","Outdoor"]
[null,null,"Other"," to ",0,0,0,0,0,null,"Physical Activity","Sub-Recipients","Other"]
[null,null,"Subtotal",null,0,0,0,0,0,null,"Physical Activity","Sub-Recipients","Subtotal"]
[null,{"$f":"$P$1","v":"Public-Earned"},"Television",{"$f":"$K$1","v":" to "},{"$f":"SUM(0)","v":0},0,0,0,0,null,{"$f":"IF(OR(A66=\"Strategic Direction\", A66=\"Type\", A66=\"Media Channel/Type\", A66=0), IF(A67=0, K66, A67), A66)","v":"Physical Activity"},{"$f":"IF(OR(B66=\"Strategic Direction\", B66=\"Type\", B66=\"Media Channel/Type\", B66=0, B66=\"TOTAL\"), IF(B67=0, L66, IF(B67=$N$1, \"Partner\",IF(B67=$O$1, \"Sub-Recipients\", IF(B67=$P$1, \"Public-Earned\", IF(B67=$Q$1, \"Public-Paid\", B67))))), IF(B66=$N$1, \"Partner\",IF(B66=$O$1, \"Sub-Recipients\", IF(B66=$P$1, \"Public-Earned\", IF(B66=$Q$1, \"Public-Paid\", L66)))))","v":"Public-Earned"},{"$f":"C67","v":"Television"}]
[null,null,"Radio"," to ",0,0,0,0,0,null,"Physical Activity","Public-Earned","Radio"]
[null,null,"Print"," to ",0,0,0,0,0,null,"Physical Activity","Public-Earned","Print"]
[null,null,"Social/Digital Media"," to ",0,0,0,0,0,null,"Physical Activity","Public-Earned","Social/Digital Media"]
[null,null,"Outdoor"," to ",0,0,0,0,0,null,"Physical Activity","Public-Earned","Outdoor"]
[null,null,"Other"," to ",0,0,0,0,0,null,"Physical Activity","Public-Earned","Other"]
[null,null,"Subtotal",null,0,0,0,0,0,null,"Physical Activity","Public-Earned","Subtotal"]
[null,{"$f":"$M$1","v":"Awardee"},"Television",{"$f":"$K$1","v":" to "},0,0,0,0,0,null,"Physical Activity","Awardee","Television"]
[null,null,"Radio"," to ",0,0,0,0,0,null,"Physical Activity","Awardee","Radio"]
[null,null,"Print"," to ",0,0,0,0,0,null,"Physical Activity","Awardee","Print"]
[null,null,"Social/Digital Media"," to ",0,0,0,0,0,null,"Physical Activity","Awardee","Social/Digital Media"]
[null,null,"Outdoor"," to ",0,0,0,0,0,null,"Physical Activity","Awardee","Outdoor"]
[null,null,"Other"," to ",0,0,0,0,0,null,"Physical Activity","Awardee","Other"]
[null,null,"Subtotal",null,0,0,0,0,0,null,"Physical Activity","Awardee","Subtotal"]
[null,{"$f":"$N$1","v":"Partner"},"Television",0,0,0,0,0,0,null,"Physical Activity","Partner","Television"]
[null,null,"Radio",0,0,0,0,0,0,null,"Physical Activity","Partner","Radio"]
[null,null,"Print",0,0,0,0,0,0,null,"Physical Activity","Partner","Print"]
[null,null,"Social/New Media",0,0,0,0,0,0,null,"Physical Activity","Partner","Social/New Media"]
[null,null,"Outdoor",0,0,0,0,0,0,null,"Physical Activity","Partner","Outdoor"]
[null,null,"Other",0,0,0,0,0,0,null,"Physical Activity","Partner","Other"]
[null,null,"Subtotal",null,0,0,0,0,0,null,"Physical Activity","Partner","Subtotal"]
[null,"TOTAL",null,null,0,0,0,0,0,null,"Physical Activity","TOTAL",0]
["Community-Clinical Linkage",{"$f":"$O$1","v":"Sub-Recipients"},"Television",{"$f":"$K$1","v":" to "},0,0,0,0,0,null,"Community-Clinical Linkage","Sub-Recipients","Television"]
[null,null,"Radio"," to ",0,0,0,0,0,null,"Community-Clinical Linkage","Sub-Recipients","Radio"]
[null,null,"Print"," to ",0,0,0,0,0,null,"Community-Clinical Linkage","Sub-Recipients","Print"]
[null,null,"Social/Digital Media"," to ",0,0,0,0,0,null,"Community-Clinical Linkage","Sub-Recipients","Social/Digital Media"]
[null,null,"Outdoor"," to ",0,0,0,0,0,null,"Community-Clinical Linkage","Sub-Recipients","Outdoor"]
[null,null,"Other"," to ",0,0,0,0,0,null,"Community-Clinical Linkage","Sub-Recipients","Other"]
[null,null,"Subtotal",null,0,0,0,0,0,null,"Community-Clinical Linkage","Sub-Recipients","Subtotal"]
[null,{"$f":"$P$1","v":"Public-Earned"},"Television",{"$f":"$K$1","v":" to "},0,0,0,0,0,null,"Community-Clinical Linkage","Public-Earned","Television"]
[null,null,"Radio"," to ",0,0,0,0,0,null,"Community-Clinical Linkage","Public-Earned","Radio"]
[null,null,"Print"," to ",0,0,0,0,0,null,"Community-Clinical Linkage","Public-Earned","Print"]
[null,null,"Social/Digital Media"," to ",{"$f":"SUM(0)","v":0},0,0,0,0,null,"Community-Clinical Linkage","Public-Earned","Social/Digital Media"]
[null,null,"Outdoor"," to ",0,0,0,0,0,null,"Community-Clinical Linkage","Public-Earned","Outdoor"]
[null,null,"Other"," to ",0,0,0,0,0,null,"Community-Clinical Linkage","Public-Earned","Other"]
[null,null,"Subtotal",null,0,0,0,0,0,null,"Community-Clinical Linkage","Public-Earned","Subtotal"]
[null,{"$f":"$M$1","v":"Awardee"},"Television",{"$f":"$K$1","v":" to "},0,0,0,0,0,null,"Community-Clinical Linkage","Awardee","Television"]
[null,null,"Radio"," to ",0,0,0,0,0,null,"Community-Clinical Linkage","Awardee","Radio"]
[null,null,"Print"," to ",0,0,0,0,0,null,"Community-Clinical Linkage","Awardee","Print"]
[null,null,"Social/Digital Media"," to ",0,0,0,0,0,null,"Community-Clinical Linkage","Awardee","Social/Digital Media"]
[null,null,"Outdoor"," to ",0,0,0,0,0,null,"Community-Clinical Linkage","Awardee","Outdoor"]
[null,null,"Other"," to ",0,0,0,0,0,null,"Community-Clinical Linkage","Awardee","Other"]
[null,null,"Subtotal",null,0,0,0,0,0,null,"Community-Clinical Linkage","Awardee","Subtotal"]
[null,{"$f":"$N$1","v":"Partner"},"Television",0,0,0,0,0,0,null,"Community-Clinical Linkage","Partner","Television"]
[null,null,"Radio",0,0,0,0,0,0,null,"Community-Clinical Linkage","Partner","Radio"]
[null,null,"Print",0,0,0,0,0,0,null,"Community-Clinical Linkage","Partner","Print"]
[null,null,"Social/New Media",0,0,0,0,0,0,null,"Community-Clinical Linkage","Partner","Social/New Media"]
[null,null,"Outdoor",0,0,0,0,0,0,null,"Community-Clinical Linkage","Partner","Outdoor"]
[null,null,"Other",0,0,0,0,0,0,null,"Community-Clinical Linkage","Partner","Other"]
[null,null,"Subtotal",null,0,0,0,0,0,null,"Community-Clinical Linkage","Partner","Subtotal"]
[null,"TOTAL",null,null,0,0,0,0,0,null,"Community-Clinical Linkage","TOTAL",0]
["Cross-cutting General",{"$f":"$O$1","v":"Sub-Recipients"},"Television",{"$f":"$K$1","v":" to "},0,0,0,0,0,null,"Cross-cutting General","Sub-Recipients","Television"]
[null,null,"Radio"," to ",0,0,0,0,0,null,"Cross-cutting General","Sub-Recipients","Radio"]
[null,null,"Print"," to ",0,0,0,0,0,null,"Cross-cutting General","Sub-Recipients","Print"]
[null,null,"Social/Digital Media"," to ",0,0,0,0,0,null,"Cross-cutting General","Sub-Recipients","Social/Digital Media"]
[null,null,"Outdoor"," to ",0,0,0,0,0,null,"Cross-cutting General","Sub-Recipients","Outdoor"]
[null,null,"Other"," to ",0,0,0,0,0,null,"Cross-cutting General","Sub-Recipients","Other"]
[null,null,"Subtotal",null,0,0,0,0,0,null,"Cross-cutting General","Sub-Recipients","Subtotal"]
[null,{"$f":"$P$1","v":"Public-Earned"},"Television",{"$f":"$K$1","v":" to "},0,0,0,0,0,null,"Cross-cutting General","Public-Earned","Television"]
[null,null,"Radio"," to ",0,0,0,0,0,null,"Cross-cutting General","Public-Earned","Radio"]
[null,null,"Print"," to ",0,0,0,0,0,null,"Cross-cutting General","Public-Earned","Print"]
[null,null,"Social/Digital Media"," to ",0,0,0,0,0,null,"Cross-cutting General","Public-Earned","Social/Digital Media"]
[null,null,"Outdoor"," to ",0,0,0,0,0,null,"Cross-cutting General","Public-Earned","Outdoor"]
[null,null,"Other"," to ",0,0,0,0,0,null,"Cross-cutting General","Public-Earned","Other"]
[null,null,"Subtotal",null,0,0,0,0,0,null,{"$f":"IF(OR(A130=\"Strategic Direction\", A130=\"Type\", A130=\"Media Channel/Type\", A130=0), IF(A131=0, K130, A131), A130)","v":"Cross-cutting General"},{"$f":"IF(OR(B130=\"Strategic Direction\", B130=\"Type\", B130=\"Media Channel/Type\", B130=0, B130=\"TOTAL\"), IF(B131=0, L130, IF(B131=$N$1, \"Partner\",IF(B131=$O$1, \"Sub-Recipients\", IF(B131=$P$1, \"Public-Earned\", IF(B131=$Q$1, \"Public-Paid\", B131))))), IF(B130=$N$1, \"Partner\",IF(B130=$O$1, \"Sub-Recipients\", IF(B130=$P$1, \"Public-Earned\", IF(B130=$Q$1, \"Public-Paid\", L130)))))","v":"Public-Earned"},{"$f":"C131","v":"Subtotal"}]
[null,{"$f":"$M$1","v":"Awardee"},"Television",{"$f":"$K$1","v":" to "},0,0,0,0,0,null,"Cross-cutting General","Awardee","Television"]
[null,null,"Radio"," to ",0,0,0,0,0,null,"Cross-cutting General","Awardee","Radio"]
[null,null,"Print"," to ",0,0,0,0,0,null,"Cross-cutting General","Awardee","Print"]
[null,null,"Social/Digital Media"," to ",0,0,0,0,0,null,"Cross-cutting General","Awardee","Social/Digital Media"]
[null,null,"Outdoor"," to ",0,0,0,0,0,null,"Cross-cutting General","Awardee","Outdoor"]
[null,null,"Other"," to ",0,0,0,0,0,null,"Cross-cutting General","Awardee","Other"]
[null,null,"Subtotal",null,0,0,0,0,0,null,"Cross-cutting General","Awardee","Subtotal"]
[null,{"$f":"$N$1","v":"Partner"},"Television",0,0,0,0,0,0,null,"Cross-cutting General","Partner","Television"]
[null,null,"Radio",0,0,0,0,0,0,null,"Cross-cutting General","Partner","Radio"]
[null,null,"Print",0,0,0,0,0,0,null,"Cross-cutting General","Partner","Print"]
[null,null,"Social/New Media",0,0,0,0,0,0,null,"Cross-cutting General","Partner","Social/New Media"]
[null,null,"Outdoor",0,0,0,0,0,0,null,"Cross-cutting General","Partner","Outdoor"]
[null,null,"Other",0,0,0,0,0,0,null,"Cross-cutting General","Partner","Other"]
[null,null,"Subtotal",null,0,0,0,0,0,null,"Cross-cutting General","Partner","Subtotal"]
[null,"TOTAL",null,null,0,0,0,0,0,null,"Cross-cutting General","TOTAL",0]
[{"$f":"\"Total \" & $O$1","v":"Total Sub-Recipients"},"Public-Earned","Subtotal",null,{"$f":"SUM(0)","v":0},0,0,0,0]
[{"$f":"\"Total \" & $P$1","v":"Total Public-Earned"},"Public-Paid",null,null,{"$f":"SUMPRODUCT(($L$2:$L$138=$B148)*($M$2:$M$138=$C148)*(E$2:E$138))","v":0},{"$f":"SUMPRODUCT(($L$2:$L$138=$B148)*($M$2:$M$138=$C148)*(F$2:F$138))","v":0},0,0,0]
[{"$f":"\"Total \" & $M$1","v":"Total Awardee"},null,null,null,0,0,0,0,0]
["Total","TOTAL",null,null,{"$f":"SUMPRODUCT(($L$2:$L$146=$B$150)*(E$2:E$146))","v":0},{"$f":"SUMPRODUCT(($L$2:$L$146=$B$150)*(F$2:F$146))","v":0},0,0,0]
[]
["Grantee Messages",null,null,"Partner Messages"]
["Public-Earned",{"$f":"SUM(0)","v":0},null,"Public-Earned",{"$f":"SUM(0)","v":0}]
["Public-Paid",{"$f":"SUM(0)","v":0},null,"Public-Paid",{"$f":"SUM(0)","v":0}]
["Grantee to Public",{"$f":"SUM(B153:B154)","v":0}]
["Grantee to Partner",{"$f":"SUM(0)","v":0}]
[]
["Total Grantee Messages",{"$f":"SUM(B155, B156:B157)","v":0},null,"Total Partner Messages",{"$f":"SUM(E153:E157)","v":0}]
[]
["Total",{"$f":"SUM(B158,E158)","v":0}]

{"sheet":"MediaLog","index":2,"n_rows":1501,"n_cols":18,"rows_kept":1501,"cut":false,"hidden":true,"merged":[]}
["Who did it?","Type","Strategic Direction","Air or Run Date","Media Channel/Type","Media Outlet","Number of placements","Circulation Viewers Listeners","Media Impressions","Cost","Approximate Cost for 1 Ad","Number of bonus spots","Total Added Value","Approximate Cost for 1 Ad of This Size","Value of coverage","Group (Y/N)","Record Number"]
[null,null,null,null,null,null,null,null,null,null,null,null,null,null,null,null,null,{"$f":"IF(R1= \"\", 1, IF(Q1= \"\",IF(ISNUMBER(R1)=FALSE, 0, R1), IF(ISNUMBER(R1)=FALSE, 0, R1) + 1))","v":1}]
[null,null,null,null,null,null,null,null,null,null,null,null,null,null,null,null,null,{"$f":"IF(R2= \"\", 1, IF(Q2= \"\",IF(ISNUMBER(R2)=FALSE, 0, R2), IF(ISNUMBER(R2)=FALSE, 0, R2) + 1))","v":1}]
[null,null,null,null,null,null,null,null,null,null,null,null,null,null,null,null,null,1]
[null,null,null,null,null,null,null,null,null,null,null,null,null,null,null,null,null,1]
[null,null,null,null,null,null,null,null,null,null,null,null,null,null,null,null,null,1]
[null,null,null,null,null,null,null,null,null,null,null,null,null,null,null,null,null,1]
[null,null,null,null,null,null,null,null,null,null,null,null,null,null,null,null,null,1]
[null,null,null,null,null,null,null,null,null,null,null,null,null,null,null,null,null,1]
[null,null,null,null,null,null,null,null,null,null,null,null,null,null,null,null,null,1]
[null,null,null,null,null,null,null,null,null,null,null,null,null,null,null,null,null,1]
[null,null,null,null,null,null,null,null,null,null,null,null,null,null,null,null,null,1]
[null,null,null,null,null,null,null,null,null,null,null,null,null,null,null,null,null,1]
[null,null,null,null,null,null,null,null,null,null,null,null,null,null,null,null,null,1]
[null,null,null,null,null,null,null,null,null,null,null,null,null,null,null,null,null,1]
[null,null,null,null,null,null,null,null,null,null,null,null,null,null,null,null,null,1]
[null,null,null,null,null,null,null,null,null,null,null,null,null,null,null,null,null,1]
[null,null,null,null,null,null,null,null,null,null,null,null,null,null,null,null,null,1]
[null,null,null,null,null,null,null,null,null,null,null,null,null,null,null,null,null,1]
[null,null,null,null,null,null,null,null,null,null,null,null,null,null,null,null,null,1]
[null,null,null,null,null,null,null,null,null,null,null,null,null,null,null,null,null,1]
[null,null,null,null,null,null,null,null,null,null,null,null,null,null,null,null,null,1]
[null,null,null,null,null,null,null,null,null,null,null,null,null,null,null,null,null,1]
[null,null,null,null,null,null,null,null,null,null,null,null,null,null,null,null,null,1]
[null,null,null,null,null,null,null,null,null,null,null,null,null,null,null,null,null,1]
[null,null,null,null,null,null,null,null,null,null,null,null,null,null,null,null,null,1]
[null,null,null,null,null,null,null,null,null,null,null,null,null,null,null,null,null,1]
[null,null,null,null,null,null,null,null,null,null,null,null,null,null,null,null,null,1]
[null,null,null,null,null,null,null,null,null,null,null,null,null,null,null,null,null,1]
[null,null,null,null,null,null,null,null,null,null,null,null,null,null,null,null,null,1]
[null,null,null,null,null,null,null,null,null,null,null,null,null,null,null,null,null,1]
[null,null,null,null,null,null,null,null,null,null,null,null,null,null,null,null,null,1]
[null,null,null,null,null,null,null,null,null,null,null,null,null,null,null,null,null,1]
[null,null,null,null,null,null,null,null,null,null,null,null,null,null,null,null,null,1]
[null,null,null,null,null,null,null,null,null,null,null,null,null,null,null,null,null,1]
[null,null,null,null,null,null,null,null,null,null,null,null,null,null,null,null,null,1]
[null,null,null,null,null,null,null,null,null,null,null,null,null,null,null,null,null,1]
[null,null,null,null,null,null,null,null,null,null,null,null,null,null,null,null,null,1]
[null,null,null,null,null,null,null,null,null,null,null,null,null,null,null,null,null,1]
[null,null,null,null,null,null,null,null,null,null,null,null,null,null,null,null,null,1]
[null,null,null,null,null,null,null,null,null,null,null,null,null,null,null,null,null,1]
[null,null,null,null,null,null,null,null,null,null,null,null,null,null,null,null,null,1]
[null,null,null,null,null,null,null,null,null,null,null,null,null,null,null,null,null,1]
[null,null,null,null,null,null,null,null,null,null,null,null,null,null,null,null,null,1]
[null,null,null,null,null,null,null,null,null,null,null,null,null,null,null,null,null,1]
[null,null,null,null,null,null,null,null,null,null,null,null,null,null,null,null,null,1]
[null,null,null,null,null,null,null,null,null,null,null,null,null,null,null,null,null,1]
[null,null,null,null,null,null,null,null,null,null,null,null,null,null,null,null,null,1]
[null,null,null,null,null,null,null,null,null,null,null,null,null,null,null,null,null,1]
[null,null,null,null,null,null,null,null,null,null,null,null,null,null,null,null,null,1]
[null,null,null,null,null,null,null,null,null,null,null,null,null,null,null,null,null,1]
[null,null,null,null,null,null,null,null,null,null,null,null,null,null,null,null,null,1]
[null,null,null,null,null,null,null,null,null,null,null,null,null,null,null,null,null,1]
[null,null,null,null,null,null,null,null,null,null,null,null,null,null,null,null,null,1]
[null,null,null,null,null,null,null,null,null,null,null,null,null,null,null,null,null,1]
[null,null,null,null,null,null,null,null,null,null,null,null,null,null,null,null,null,1]
[null,null,null,null,null,null,null,null,null,null,null,null,null,null,null,null,null,1]
[null,null,null,null,null,null,null,null,null,null,null,null,null,null,null,null,null,1]
[null,null,null,null,null,null,null,null,null,null,null,null,null,null,null,null,null,1]
[null,null,null,null,null,null,null,null,null,null,null,null,null,null,null,null,null,1]
[null,null,null,null,null,null,null,null,null,null,null,null,null,null,null,null,null,1]
[null,null,null,null,null,null,null,null,null,null,null,null,null,null,null,null,null,1]
[null,null,null,null,null,null,null,null,null,null,null,null,null,null,null,null,null,1]
[null,null,null,null,null,null,null,null,null,null,null,null,null,null,null,null,null,1]
[null,null,null,null,null,null,null,null,null,null,null,null,null,null,null,null,null,1]
[null,null,null,null,null,null,null,null,null,null,null,null,null,null,null,null,null,1]
[null,null,null,null,null,null,null,null,null,null,null,null,null,null,null,null,null,{"$f":"IF(R66= \"\", 1, IF(Q66= \"\",IF(ISNUMBER(R66)=FALSE, 0, R66), IF(ISNUMBER(R66)=FALSE, 0, R66) + 1))","v":1}]
[null,null,null,null,null,null,null,null,null,null,null,null,null,null,null,null,null,1]
[null,null,null,null,null,null,null,null,null,null,null,null,null,null,null,null,null,1]
[null,null,null,null,null,null,null,null,null,null,null,null,null,null,null,null,null,1]
[null,null,null,null,null,null,null,null,null,null,null,null,null,null,null,null,null,1]
[null,null,null,null,null,null,null,null,null,null,null,null,null,null,null,null,null,1]
[null,null,null,null,null,null,null,null,null,null,null,null,null,null,null,null,null,1]
[null,null,null,null,null,null,null,null,null,null,null,null,null,null,null,null,null,1]
[null,null,null,null,null,null,null,null,null,null,null,null,null,null,null,null,null,1]
[null,null,null,null,null,null,null,null,null,null,null,null,null,null,null,null,null,1]
[null,null,null,null,null,null,null,null,null,null,null,null,null,null,null,null,null,1]
[null,null,null,null,null,null,null,null,null,null,null,null,null,null,null,null,null,1]
[null,null,null,null,null,null,null,null,null,null,null,null,null,null,null,null,null,1]
[null,null,null,null,null,null,null,null,null,null,null,null,null,null,null,null,null,1]
[null,null,null,null,null,null,null,null,null,null,null,null,null,null,null,null,null,1]
[null,null,null,null,null,null,null,null,null,null,null,null,null,null,null,null,null,1]
[null,null,null,null,null,null,null,null,null,null,null,null,null,null,null,null,null,1]
[null,null,null,null,null,null,null,null,null,null,null,null,null,null,null,null,null,1]
[null,null,null,null,null,null,null,null,null,null,null,null,null,null,null,null,null,1]
[null,null,null,null,null,null,null,null,null,null,null,null,null,null,null,null,null,1]
[null,null,null,null,null,null,null,null,null,null,null,null,null,null,null,null,null,1]
[null,null,null,null,null,null,null,null,null,null,null,null,null,null,null,null,null,1]
[null,null,null,null,null,null,null,null,null,null,null,null,null,null,null,null,null,1]
[null,null,null,null,null,null,null,null,null,null,null,null,null,null,null,null,null,1]
[null,null,null,null,null,null,null,null,null,null,null,null,null,null,null,null,null,1]
[null,null,null,null,null,null,null,null,null,null,null,null,null,null,null,null,null,1]
[null,null,null,null,null,null,null,null,null,null,null,null,null,null,null,null,null,1]
[null,null,null,null,null,null,null,null,null,null,null,null,null,null,null,null,null,1]
[null,null,null,null,null,null,null,null,null,null,null,null,null,null,null,null,null,1]
[null,null,null,null,null,null,null,null,null,null,null,null,null,null,null,null,null,1]
[null,null,null,null,null,null,null,null,null,null,null,null,null,null,null,null,null,1]
[null,null,null,null,null,null,null,null,null,null,null,null,null,null,null,null,null,1]
[null,null,null,null,null,null,null,null,null,null,null,null,null,null,null,null,null,1]
[null,null,null,null,null,null,null,null,null,null,null,null,null,null,null,null,null,1]
[null,null,null,null,null,null,null,null,null,null,null,null,null,null,null,null,null,1]
[null,null,null,null,null,null,null,null,null,null,null,null,null,null,null,null,null,1]
[null,null,null,null,null,null,null,null,null,null,null,null,null,null,null,null,null,1]
[null,null,null,null,null,null,null,null,null,null,null,null,null,null,null,null,null,1]
[null,null,null,null,null,null,null,null,null,null,null,null,null,null,null,null,null,1]
[null,null,null,null,null,null,null,null,null,null,null,null,null,null,null,null,null,1]
[null,null,null,null,null,null,null,null,null,null,null,null,null,null,null,null,null,1]
[null,null,null,null,null,null,null,null,null,null,null,null,null,null,null,null,null,1]
[null,null,null,null,null,null,null,null,null,null,null,null,null,null,null,null,null,1]
[null,null,null,null,null,null,null,null,null,null,null,null,null,null,null,null,null,1]
[null,null,null,null,null,null,null,null,null,null,null,null,null,null,null,null,null,1]
[null,null,null,null,null,null,null,null,null,null,null,null,null,null,null,null,null,1]
[null,null,null,null,null,null,null,null,null,null,null,null,null,null,null,null,null,1]
[null,null,null,null,null,null,null,null,null,null,null,null,null,null,null,null,null,1]
[null,null,null,null,null,null,null,null,null,null,null,null,null,null,null,null,null,1]
[null,null,null,null,null,null,null,null,null,null,null,null,null,null,null,null,null,1]
[null,null,null,null,null,null,null,null,null,null,null,null,null,null,null,null,null,1]
[null,null,null,null,null,null,null,null,null,null,null,null,null,null,null,null,null,1]
[null,null,null,null,null,null,null,null,null,null,null,null,null,null,null,null,null,1]
[null,null,null,null,null,null,null,null,null,null,null,null,null,null,null,null,null,1]
[null,null,null,null,null,null,null,null,null,null,null,null,null,null,null,null,null,1]
[null,null,null,null,null,null,null,null,null,null,null,null,null,null,null,null,null,1]
[null,null,null,null,null,null,null,null,null,null,null,null,null,null,null,null,null,1]
[null,null,null,null,null,null,null,null,null,null,null,null,null,null,null,null,null,1]
[null,null,null,null,null,null,null,null,null,null,null,null,null,null,null,null,null,1]
[null,null,null,null,null,null,null,null,null,null,null,null,null,null,null,null,null,1]
[null,null,null,null,null,null,null,null,null,null,null,null,null,null,null,null,null,1]
[null,null,null,null,null,null,null,null,null,null,null,null,null,null,null,null,null,1]
[null,null,null,null,null,null,null,null,null,null,null,null,null,null,null,null,null,1]
[null,null,null,null,null,null,null,null,null,null,null,null,null,null,null,null,null,1]
[null,null,null,null,null,null,null,null,null,null,null,null,null,null,null,null,null,{"$f":"IF(R130= \"\", 1, IF(Q130= \"\",IF(ISNUMBER(R130)=FALSE, 0, R130), IF(ISNUMBER(R130)=FALSE, 0, R130) + 1))","v":1}]
[null,null,null,null,null,null,null,null,null,null,null,null,null,null,null,null,null,1]
[null,null,null,null,null,null,null,null,null,null,null,null,null,null,null,null,null,1]
[null,null,null,null,null,null,null,null,null,null,null,null,null,null,null,null,null,1]
[null,null,null,null,null,null,null,null,null,null,null,null,null,null,null,null,null,1]
[null,null,null,null,null,null,null,null,null,null,null,null,null,null,null,null,null,1]
[null,null,null,null,null,null,null,null,null,null,null,null,null,null,null,null,null,1]
[null,null,null,null,null,null,null,null,null,null,null,null,null,null,null,null,null,1]
[null,null,null,null,null,null,null,null,null,null,null,null,null,null,null,null,null,1]
[null,null,null,null,null,null,null,null,null,null,null,null,null,null,null,null,null,1]
[null,null,null,null,null,null,null,null,null,null,null,null,null,null,null,null,null,1]
[null,null,null,null,null,null,null,null,null,null,null,null,null,null,null,null,null,1]
[null,null,null,null,null,null,null,null,null,null,null,null,null,null,null,null,null,1]
[null,null,null,null,null,null,null,null,null,null,null,null,null,null,null,null,null,1]
[null,null,null,null,null,null,null,null,null,null,null,null,null,null,null,null,null,1]
[null,null,null,null,null,null,null,null,null,null,null,null,null,null,null,null,null,1]
[null,null,null,null,null,null,null,null,null,null,null,null,null,null,null,null,null,1]
[null,null,null,null,null,null,null,null,null,null,null,null,null,null,null,null,null,1]
[null,null,null,null,null,null,null,null,null,null,null,null,null,null,null,null,null,1]
[null,null,null,null,null,null,null,null,null,null,null,null,null,null,null,null,null,1]
[null,null,null,null,null,null,null,null,null,null,null,null,null,null,null,null,null,1]
[null,null,null,null,null,null,null,null,null,null,null,null,null,null,null,null,null,1]
[null,null,null,null,null,null,null,null,null,null,null,null,null,null,null,null,null,1]
[null,null,null,null,null,null,null,null,null,null,null,null,null,null,null,null,null,1]
[null,null,null,null,null,null,null,null,null,null,null,null,null,null,null,null,null,1]
[null,null,null,null,null,null,null,null,null,null,null,null,null,null,null,null,null,1]
[null,null,null,null,null,null,null,null,null,null,null,null,null,null,null,null,null,1]
[null,null,null,null,null,null,null,null,null,null,null,null,null,null,null,null,null,1]
[null,null,null,null,null,null,null,null,null,null,null,null,null,null,null,null,null,1]
[null,null,null,null,null,null,null,null,null,null,null,null,null,null,null,null,null,1]
[null,null,null,null,null,null,null,null,null,null,null,null,null,null,null,null,null,1]
[null,null,null,null,null,null,null,null,null,null,null,null,null,null,null,null,null,1]
[null,null,null,null,null,null,null,null,null,null,null,null,null,null,null,null,null,1]
[null,null,null,null,null,null,null,null,null,null,null,null,null,null,null,null,null,1]
[null,null,null,null,null,null,null,null,null,null,null,null,null,null,null,null,null,1]
[null,null,null,null,null,null,null,null,null,null,null,null,null,null,null,null,null,1]
[null,null,null,null,null,null,null,null,null,null,null,null,null,null,null,null,null,1]
[null,null,null,null,null,null,null,null,null,null,null,null,null,null,null,null,null,1]
[null,null,null,null,null,null,null,null,null,null,null,null,null,null,null,null,null,1]
[null,null,null,null,null,null,null,null,null,null,null,null,null,null,null,null,null,1]
[null,null,null,null,null,null,null,null,null,null,null,null,null,null,null,null,null,1]
[null,null,null,null,null,null,null,null,null,null,null,null,null,null,null,null,null,1]
[null,null,null,null,null,null,null,null,null,null,null,null,null,null,null,null,null,1]
[null,null,null,null,null,null,null,null,null,null,null,null,null,null,null,null,null,1]
[null,null,null,null,null,null,null,null,null,null,null,null,null,null,null,null,null,1]
[null,null,null,null,null,null,null,null,null,null,null,null,null,null,null,null,null,1]
[null,null,null,null,null,null,null,null,null,null,null,null,null,null,null,null,null,1]
[null,null,null,null,null,null,null,null,null,null,null,null,null,null,null,null,null,1]
[null,null,null,null,null,null,null,null,null,null,null,null,null,null,null,null,null,1]
[null,null,null,null,null,null,null,null,null,null,null,null,null,null,null,null,null,1]
[null,null,null,null,null,null,null,null,null,null,null,null,null,null,null,null,null,1]
[null,null,null,null,null,null,null,null,null,null,null,null,null,null,null,null,null,1]
[null,null,null,null,null,null,null,null,null,null,null,null,null,null,null,null,null,1]
[null,null,null,null,null,null,null,null,null,null,null,null,null,null,null,null,null,1]
[null,null,null,null,null,null,null,null,null,null,null,null,null,null,null,null,null,1]
[null,null,null,null,null,null,null,null,null,null,null,null,null,null,null,null,null,1]
[null,null,null,null,null,null,null,null,null,null,null,null,null,null,null,null,null,1]
[null,null,null,null,null,null,null,null,null,null,null,null,null,null,null,null,null,1]
[null,null,null,null,null,null,null,null,null,null,null,null,null,null,null,null,null,1]
[null,null,null,null,null,null,null,null,null,null,null,null,null,null,null,null,null,1]
[null,null,null,null,null,null,null,null,null,null,null,null,null,null,null,null,null,1]
[null,null,null,null,null,null,null,null,null,null,null,null,null,null,null,null,null,1]
[null,null,null,null,null,null,null,null,null,null,null,null,null,null,null,null,null,1]
[null,null,null,null,null,null,null,null,null,null,null,null,null,null,null,null,null,1]
[null,null,null,null,null,null,null,null,null,null,null,null,null,null,null,null,null,{"$f":"IF(R194= \"\", 1, IF(Q194= \"\",IF(ISNUMBER(R194)=FALSE, 0, R194), IF(ISNUMBER(R194)=FALSE, 0, R194) + 1))","v":1}]
[null,null,null,null,null,null,null,null,null,null,null,null,null,null,null,null,null,1]
[null,null,null,null,null,null,null,null,null,null,null,null,null,null,null,null,null,1]
[null,null,null,null,null,null,null,null,null,null,null,null,null,null,null,null,null,1]
[null,null,null,null,null,null,null,null,null,null,null,null,null,null,null,null,null,1]
[null,null,null,null,null,null,null,null,null,null,null,null,null,null,null,null,null,1]
[null,null,null,null,null,null,null,null,null,null,null,null,null,null,null,null,null,1]
[null,null,null,null,null,null,null,null,null,null,null,null,null,null,null,null,null,1]
[null,null,null,null,null,null,null,null,null,null,null,null,null,null,null,null,null,1]
[null,null,null,null,null,null,null,null,null,null,null,null,null,null,null,null,null,1]
[null,null,null,null,null,null,null,null,null,null,null,null,null,null,null,null,null,1]
[null,null,null,null,null,null,null,null,null,null,null,null,null,null,null,null,null,1]
[null,null,null,null,null,null,null,null,null,null,null,null,null,null,null,null,null,1]
[null,null,null,null,null,null,null,null,null,null,null,null,null,null,null,null,null,1]
[null,null,null,null,null,null,null,null,null,null,null,null,null,null,null,null,null,1]
[null,null,null,null,null,null,null,null,null,null,null,null,null,null,null,null,null,1]
[null,null,null,null,null,null,null,null,null,null,null,null,null,null,null,null,null,1]
[null,null,null,null,null,null,null,null,null,null,null,null,null,null,null,null,null,1]
[null,null,null,null,null,null,null,null,null,null,null,null,null,null,null,null,null,1]
[null,null,null,null,null,null,null,null,null,null,null,null,null,null,null,null,null,1]
[null,null,null,null,null,null,null,null,null,null,null,null,null,null,null,null,null,1]
[null,null,null,null,null,null,null,null,null,null,null,null,null,null,null,null,null,1]
[null,null,null,null,null,null,null,null,null,null,null,null,null,null,null,null,null,1]
[null,null,null,null,null,null,null,null,null,null,null,null,null,null,null,null,null,1]
[null,null,null,null,null,null,null,null,null,null,null,null,null,null,null,null,null,1]
[null,null,null,null,null,null,null,null,null,null,null,null,null,null,null,null,null,1]
[null,null,null,null,null,null,null,null,null,null,null,null,null,null,null,null,null,1]
[null,null,null,null,null,null,null,null,null,null,null,null,null,null,null,null,null,1]
[null,null,null,null,null,null,null,null,null,null,null,null,null,null,null,null,null,1]
[null,null,null,null,null,null,null,null,null,null,null,null,null,null,null,null,null,1]
[null,null,null,null,null,null,null,null,null,null,null,null,null,null,null,null,null,1]
[null,null,null,null,null,null,null,null,null,null,null,null,null,null,null,null,null,1]
[null,null,null,null,null,null,null,null,null,null,null,null,null,null,null,null,null,1]
[null,null,null,null,null,null,null,null,null,null,null,null,null,null,null,null,null,1]
[null,null,null,null,null,null,null,null,null,null,null,null,null,null,null,null,null,1]
[null,null,null,null,null,null,null,null,null,null,null,null,null,null,null,null,null,1]
[null,null,null,null,null,null,null,null,null,null,null,null,null,null,null,null,null,1]
[null,null,null,null,null,null,null,null,null,null,null,null,null,null,null,null,null,1]
[null,null,null,null,null,null,null,null,null,null,null,null,null,null,null,null,null,1]
[null,null,null,null,null,null,null,null,null,null,null,null,null,null,null,null,null,1]
[null,null,null,null,null,null,null,null,null,null,null,null,null,null,null,null,null,1]
[null,null,null,null,null,null,null,null,null,null,null,null,null,null,null,null,null,1]
[null,null,null,null,null,null,null,null,null,null,null,null,null,null,null,null,null,1]
[null,null,null,null,null,null,null,null,null,null,null,null,null,null,null,null,null,1]
[null,null,null,null,null,null,null,null,null,null,null,null,null,null,null,null,null,1]
[null,null,null,null,null,null,null,null,null,null,null,null,null,null,null,null,null,1]
[null,null,null,null,null,null,null,null,null,null,null,null,null,null,null,null,null,1]
[null,null,null,null,null,null,null,null,null,null,null,null,null,null,null,null,null,1]
[null,null,null,null,null,null,null,null,null,null,null,null,null,null,null,null,null,1]
[null,null,null,null,null,null,null,null,null,null,null,null,null,null,null,null,null,1]
[null,null,null,null,null,null,null,null,null,null,null,null,null,null,null,null,null,1]
[null,null,null,null,null,null,null,null,null,null,null,null,null,null,null,null,null,1]
[null,null,null,null,null,null,null,null,null,null,null,null,null,null,null,null,null,1]
[null,null,null,null,null,null,null,null,null,null,null,null,null,null,null,null,null,1]
[null,null,null,null,null,null,null,null,null,null,null,null,null,null,null,null,null,1]
[null,null,null,null,null,null,null,null,null,null,null,null,null,null,null,null,null,1]
[null,null,null,null,null,null,null,null,null,null,null,null,null,null,null,null,null,1]
[null,null,null,null,null,null,null,null,null,null,null,null,null,null,null,null,null,1]
[null,null,null,null,null,null,null,null,null,null,null,null,null,null,null,null,null,1]
[null,null,null,null,null,null,null,null,null,null,null,null,null,null,null,null,null,1]
[null,null,null,null,null,null,null,null,null,null,null,null,null,null,null,null,null,1]
[null,null,null,null,null,null,null,null,null,null,null,null,null,null,null,null,null,1]
[null,null,null,null,null,null,null,null,null,null,null,null,null,null,null,null,null,1]
[null,null,null,null,null,null,null,null,null,null,null,null,null,null,null,null,null,1]
[null,null,null,null,null,null,null,null,null,null,null,null,null,null,null,null,null,{"$f":"IF(R258= \"\", 1, IF(Q258= \"\",IF(ISNUMBER(R258)=FALSE, 0, R258), IF(ISNUMBER(R258)=FALSE, 0, R258) + 1))","v":1}]
[null,null,null,null,null,null,null,null,null,null,null,null,null,null,null,null,null,1]
[null,null,null,null,null,null,null,null,null,null,null,null,null,null,null,null,null,1]
[null,null,null,null,null,null,null,null,null,null,null,null,null,null,null,null,null,1]
[null,null,null,null,null,null,null,null,null,null,null,null,null,null,null,null,null,1]
[null,null,null,null,null,null,null,null,null,null,null,null,null,null,null,null,null,1]
[null,null,null,null,null,null,null,null,null,null,null,null,null,null,null,null,null,1]
[null,null,null,null,null,null,null,null,null,null,null,null,null,null,null,null,null,1]
[null,null,null,null,null,null,null,null,null,null,null,null,null,null,null,null,null,1]
[null,null,null,null,null,null,null,null,null,null,null,null,null,null,null,null,null,1]
[null,null,null,null,null,null,null,null,null,null,null,null,null,null,null,null,null,1]
[null,null,null,null,null,null,null,null,null,null,null,null,null,null,null,null,null,1]
[null,null,null,null,null,null,null,null,null,null,null,null,null,null,null,null,null,1]
[null,null,null,null,null,null,null,null,null,null,null,null,null,null,null,null,null,1]
[null,null,null,null,null,null,null,null,null,null,null,null,null,null,null,null,null,1]
[null,null,null,null,null,null,null,null,null,null,null,null,null,null,null,null,null,1]
[null,null,null,null,null,null,null,null,null,null,null,null,null,null,null,null,null,1]
[null,null,null,null,null,null,null,null,null,null,null,null,null,null,null,null,null,1]
[null,null,null,null,null,null,null,null,null,null,null,null,null,null,null,null,null,1]
[null,null,null,null,null,null,null,null,null,null,null,null,null,null,null,null,null,1]
[null,null,null,null,null,null,null,null,null,null,null,null,null,null,null,null,null,1]
[null,null,null,null,null,null,null,null,null,null,null,null,null,null,null,null,null,1]
[null,null,null,null,null,null,null,null,null,null,null,null,null,null,null,null,null,1]
[null,null,null,null,null,null,null,null,null,null,null,null,null,null,null,null,null,1]
[null,null,null,null,null,null,null,null,null,null,null,null,null,null,null,null,null,1]
[null,null,null,null,null,null,null,null,null,null,null,null,null,null,null,null,null,1]
[null,null,null,null,null,null,null,null,null,null,null,null,null,null,null,null,null,1]
[null,null,null,null,null,null,null,null,null,null,null,null,null,null,null,null,null,1]
[null,null,null,null,null,null,null,null,null,null,null,null,null,null,null,null,null,1]
[null,null,null,null,null,null,null,null,null,null,null,null,null,null,null,null,null,1]
[null,null,null,null,null,null,null,null,null,null,null,null,null,null,null,null,null,1]
[null,null,null,null,null,null,null,null,null,null,null,null,null,null,null,null,null,1]
[null,null,null,null,null,null,null,null,null,null,null,null,null,null,null,null,null,1]
[null,null,null,null,null,null,null,null,null,null,null,null,null,null,null,null,null,1]
[null,null,null,null,null,null,null,null,null,null,null,null,null,null,null,null,null,1]
[null,null,null,null,null,null,null,null,null,null,null,null,null,null,null,null,null,1]
[null,null,null,null,null,null,null,null,null,null,null,null,null,null,null,null,null,1]
[null,null,null,null,null,null,null,null,null,null,null,null,null,null,null,null,null,1]
[null,null,null,null,null,null,null,null,null,null,null,null,null,null,null,null,null,1]
[null,null,null,null,null,null,null,null,null,null,null,null,null,null,null,null,null,1]
[null,null,null,null,null,null,null,null,null,null,null,null,null,null,null,null,null,1]
[null,null,null,null,null,null,null,null,null,null,null,null,null,null,null,null,null,1]
[null,null,null,null,null,null,null,null,null,null,null,null,null,null,null,null,null,1]
[null,null,null,null,null,null,null,null,null,null,null,null,null,null,null,null,null,1]
[null,null,null,null,null,null,null,null,null,null,null,null,null,null,null,null,null,1]
[null,null,null,null,null,null,null,null,null,null,null,null,null,null,null,null,null,1]
[null,null,null,null,null,null,null,null,null,null,null,null,null,null,null,null,null,1]
[null,null,null,null,null,null,null,null,null,null,null,null,null,null,null,null,null,1]
[null,null,null,null,null,null,null,null,null,null,null,null,null,null,null,null,null,1]
[null,null,null,null,null,null,null,null,null,null,null,null,null,null,null,null,null,1]
[null,null,null,null,null,null,null,null,null,null,null,null,null,null,null,null,null,1]
[null,null,null,null,null,null,null,null,null,null,null,null,null,null,null,null,null,1]
[null,null,null,null,null,null,null,null,null,null,null,null,null,null,null,null,null,1]
[null,null,null,null,null,null,null,null,null,null,null,null,null,null,null,null,null,1]
[null,null,null,null,null,null,null,null,null,null,null,null,null,null,null,null,null,1]
[null,null,null,null,null,null,null,null,null,null,null,null,null,null,null,null,null,1]
[null,null,null,null,null,null,null,null,null,null,null,null,null,null,null,null,null,1]
[null,null,null,null,null,null,null,null,null,null,null,null,null,null,null,null,null,1]
[null,null,null,null,null,null,null,null,null,null,null,null,null,null,null,null,null,1]
[null,null,null,null,null,null,null,null,null,null,null,null,null,null,null,null,null,1]
[null,null,null,null,null,null,null,null,null,null,null,null,null,null,null,null,null,1]
[null,null,null,null,null,null,null,null,null,null,null,null,null,null,null,null,null,1]
[null,null,null,null,null,null,null,null,null,null,null,null,null,null,null,null,null,1]
[null,null,null,null,null,null,null,null,null,null,null,null,null,null,null,null,null,1]
[null,null,null,null,null,null,null,null,null,null,null,null,null,null,null,null,null,{"$f":"IF(R322= \"\", 1, IF(Q322= \"\",IF(ISNUMBER(R322)=FALSE, 0, R322), IF(ISNUMBER(R322)=FALSE, 0, R322) + 1))","v":1}]
[null,null,null,null,null,null,null,null,null,null,null,null,null,null,null,null,null,1]
[null,null,null,null,null,null,null,null,null,null,null,null,null,null,null,null,null,1]
[null,null,null,null,null,null,null,null,null,null,null,null,null,null,null,null,null,1]
[null,null,null,null,null,null,null,null,null,null,null,null,null,null,null,null,null,1]
[null,null,null,null,null,null,null,null,null,null,null,null,null,null,null,null,null,1]
[null,null,null,null,null,null,null,null,null,null,null,null,null,null,null,null,null,1]
[null,null,null,null,null,null,null,null,null,null,null,null,null,null,null,null,null,1]
[null,null,null,null,null,null,null,null,null,null,null,null,null,null,null,null,null,1]
[null,null,null,null,null,null,null,null,null,null,null,null,null,null,null,null,null,1]
[null,null,null,null,null,null,null,null,null,null,null,null,null,null,null,null,null,1]
[null,null,null,null,null,null,null,null,null,null,null,null,null,null,null,null,null,1]
[null,null,null,null,null,null,null,null,null,null,null,null,null,null,null,null,null,1]
[null,null,null,null,null,null,null,null,null,null,null,null,null,null,null,null,null,1]
[null,null,null,null,null,null,null,null,null,null,null,null,null,null,null,null,null,1]
[null,null,null,null,null,null,null,null,null,null,null,null,null,null,null,null,null,1]
[null,null,null,null,null,null,null,null,null,null,null,null,null,null,null,null,null,1]
[null,null,null,null,null,null,null,null,null,null,null,null,null,null,null,null,null,1]
[null,null,null,null,null,null,null,null,null,null,null,null,null,null,null,null,null,1]
[null,null,null,null,null,null,null,null,null,null,null,null,null,null,null,null,null,1]
[null,null,null,null,null,null,null,null,null,null,null,null,null,null,null,null,null,1]
[null,null,null,null,null,null,null,null,null,null,null,null,null,null,null,null,null,1]
[null,null,null,null,null,null,null,null,null,null,null,null,null,null,null,null,null,1]
[null,null,null,null,null,null,null,null,null,null,null,null,null,null,null,null,null,1]
[null,null,null,null,null,null,null,null,null,null,null,null,null,null,null,null,null,1]
[null,null,null,null,null,null,null,null,null,null,null,null,null,null,null,null,null,1]
[null,null,null,null,null,null,null,null,null,null,null,null,null,null,null,null,null,1]
[null,null,null,null,null,null,null,null,null,null,null,null,null,null,null,null,null,1]
[null,null,null,null,null,null,null,null,null,null,null,null,null,null,null,null,null,1]
[null,null,null,null,null,null,null,null,null,null,null,null,null,null,null,null,null,1]
[null,null,null,null,null,null,null,null,null,null,null,null,null,null,null,null,null,1]
[null,null,null,null,null,null,null,null,null,null,null,null,null,null,null,null,null,1]
[null,null,null,null,null,null,null,null,null,null,null,null,null,null,null,null,null,1]
[null,null,null,null,null,null,null,null,null,null,null,null,null,null,null,null,null,1]
[null,null,null,null,null,null,null,null,null,null,null,null,null,null,null,null,null,1]
[null,null,null,null,null,null,null,null,null,null,null,null,null,null,null,null,null,1]
[null,null,null,null,null,null,null,null,null,null,null,null,null,null,null,null,null,1]
[null,null,null,null,null,null,null,null,null,null,null,null,null,null,null,null,null,1]
[null,null,null,null,null,null,null,null,null,null,null,null,null,null,null,null,null,1]
[null,null,null,null,null,null,null,null,null,null,null,null,null,null,null,null,null,1]
[null,null,null,null,null,null,null,null,null,null,null,null,null,null,null,null,null,1]
[null,null,null,null,null,null,null,null,null,null,null,null,null,null,null,null,null,1]
[null,null,null,null,null,null,null,null,null,null,null,null,null,null,null,null,null,1]
[null,null,null,null,null,null,null,null,null,null,null,null,null,null,null,null,null,1]
[null,null,null,null,null,null,null,null,null,null,null,null,null,null,null,null,null,1]
[null,null,null,null,null,null,null,null,null,null,null,null,null,null,null,null,null,1]
[null,null,null,null,null,null,null,null,null,null,null,null,null,null,null,null,null,1]
[null,null,null,null,null,null,null,null,null,null,null,null,null,null,null,null,null,1]
[null,null,null,null,null,null,null,null,null,null,null,null,null,null,null,null,null,1]
[null,null,null,null,null,null,null,null,null,null,null,null,null,null,null,null,null,1]
[null,null,null,null,null,null,null,null,null,null,null,null,null,null,null,null,null,1]
[null,null,null,null,null,null,null,null,null,null,null,null,null,null,null,null,null,1]
[null,null,null,null,null,null,null,null,null,null,null,null,null,null,null,null,null,1]
[null,null,null,null,null,null,null,null,null,null,null,null,null,null,null,null,null,1]
[null,null,null,null,null,null,null,null,null,null,null,null,null,null,null,null,null,1]
[null,null,null,null,null,null,null,null,null,null,null,null,null,null,null,null,null,1]
[null,null,null,null,null,null,null,null,null,null,null,null,null,null,null,null,null,1]
[null,null,null,null,null,null,null,null,null,null,null,null,null,null,null,null,null,1]
[null,null,null,null,null,null,null,null,null,null,null,null,null,null,null,null,null,1]
[null,null,null,null,null,null,null,null,null,null,null,null,null,null,null,null,null,1]
[null,null,null,null,null,null,null,null,null,null,null,null,null,null,null,null,null,1]
[null,null,null,null,null,null,null,null,null,null,null,null,null,null,null,null,null,1]
[null,null,null,null,null,null,null,null,null,null,null,null,null,null,null,null,null,1]
[null,null,null,null,null,null,null,null,null,null,null,null,null,null,null,null,null,1]
[null,null,null,null,null,null,null,null,null,null,null,null,null,null,null,null,null,{"$f":"IF(R386= \"\", 1, IF(Q386= \"\",IF(ISNUMBER(R386)=FALSE, 0, R386), IF(ISNUMBER(R386)=FALSE, 0, R386) + 1))","v":1}]
[null,null,null,null,null,null,null,null,null,null,null,null,null,null,null,null,null,1]
[null,null,null,null,null,null,null,null,null,null,null,null,null,null,null,null,null,1]
[null,null,null,null,null,null,null,null,null,null,null,null,null,null,null,null,null,1]
[null,null,null,null,null,null,null,null,null,null,null,null,null,null,null,null,null,1]
[null,null,null,null,null,null,null,null,null,null,null,null,null,null,null,null,null,1]
[null,null,null,null,null,null,null,null,null,null,null,null,null,null,null,null,null,1]
[null,null,null,null,null,null,null,null,null,null,null,null,null,null,null,null,null,1]
[null,null,null,null,null,null,null,null,null,null,null,null,null,null,null,null,null,1]
[null,null,null,null,null,null,null,null,null,null,null,null,null,null,null,null,null,1]
[null,null,null,null,null,null,null,null,null,null,null,null,null,null,null,null,null,1]
[null,null,null,null,null,null,null,null,null,null,null,null,null,null,null,null,null,1]
[null,null,null,null,null,null,null,null,null,null,null,null,null,null,null,null,null,1]
[null,null,null,null,null,null,null,null,null,null,null,null,null,null,null,null,null,1]
[null,null,null,null,null,null,null,null,null,null,null,null,null,null,null,null,null,1]
[null,null,null,null,null,null,null,null,null,null,null,null,null,null,null,null,null,1]
[null,null,null,null,null,null,null,null,null,null,null,null,null,null,null,null,null,1]
[null,null,null,null,null,null,null,null,null,null,null,null,null,null,null,null,null,1]
[null,null,null,null,null,null,null,null,null,null,null,null,null,null,null,null,null,1]
[null,null,null,null,null,null,null,null,null,null,null,null,null,null,null,null,null,1]
[null,null,null,null,null,null,null,null,null,null,null,null,null,null,null,null,null,1]
[null,null,null,null,null,null,null,null,null,null,null,null,null,null,null,null,null,1]
[null,null,null,null,null,null,null,null,null,null,null,null,null,null,null,null,null,1]
[null,null,null,null,null,null,null,null,null,null,null,null,null,null,null,null,null,1]
[null,null,null,null,null,null,null,null,null,null,null,null,null,null,null,null,null,1]
[null,null,null,null,null,null,null,null,null,null,null,null,null,null,null,null,null,1]
[null,null,null,null,null,null,null,null,null,null,null,null,null,null,null,null,null,1]
[null,null,null,null,null,null,null,null,null,null,null,null,null,null,null,null,null,1]
[null,null,null,null,null,null,null,null,null,null,null,null,null,null,null,null,null,1]
[null,null,null,null,null,null,null,null,null,null,null,null,null,null,null,null,null,1]
[null,null,null,null,null,null,null,null,null,null,null,null,null,null,null,null,null,1]
[null,null,null,null,null,null,null,null,null,null,null,null,null,null,null,null,null,1]
[null,null,null,null,null,null,null,null,null,null,null,null,null,null,null,null,null,1]
[null,null,null,null,null,null,null,null,null,null,null,null,null,null,null,null,null,1]
[null,null,null,null,null,null,null,null,null,null,null,null,null,null,null,null,null,1]
[null,null,null,null,null,null,null,null,null,null,null,null,null,null,null,null,null,1]
[null,null,null,null,null,null,null,null,null,null,null,null,null,null,null,null,null,1]
[null,null,null,null,null,null,null,null,null,null,null,null,null,null,null,null,null,1]
[null,null,null,null,null,null,null,null,null,null,null,null,null,null,null,null,null,1]
[null,null,null,null,null,null,null,null,null,null,null,null,null,null,null,null,null,1]
[null,null,null,null,null,null,null,null,null,null,null,null,null,null,null,null,null,1]
[null,null,null,null,null,null,null,null,null,null,null,null,null,null,null,null,null,1]
[null,null,null,null,null,null,null,null,null,null,null,null,null,null,null,null,null,1]
[null,null,null,null,null,null,null,null,null,null,null,null,null,null,null,null,null,1]
[null,null,null,null,null,null,null,null,null,null,null,null,null,null,null,null,null,1]
[null,null,null,null,null,null,null,null,null,null,null,null,null,null,null,null,null,1]
[null,null,null,null,null,null,null,null,null,null,null,null,null,null,null,null,null,1]
[null,null,null,null,null,null,null,null,null,null,null,null,null,null,null,null,null,1]
[null,null,null,null,null,null,null,null,null,null,null,null,null,null,null,null,null,1]
[null,null,null,null,null,null,null,null,null,null,null,null,null,null,null,null,null,1]
[null,null,null,null,null,null,null,null,null,null,null,null,null,null,null,null,null,1]
[null,null,null,null,null,null,null,null,null,null,null,null,null,null,null,null,null,1]
[null,null,null,null,null,null,null,null,null,null,null,null,null,null,null,null,null,1]
[null,null,null,null,null,null,null,null,null,null,null,null,null,null,null,null,null,1]
[null,null,null,null,null,null,null,null,null,null,null,null,null,null,null,null,null,1]
[null,null,null,null,null,null,null,null,null,null,null,null,null,null,null,null,null,1]
[null,null,null,null,null,null,null,null,null,null,null,null,null,null,null,null,null,1]
[null,null,null,null,null,null,null,null,null,null,null,null,null,null,null,null,null,1]
[null,null,null,null,null,null,null,null,null,null,null,null,null,null,null,null,null,1]
[null,null,null,null,null,null,null,null,null,null,null,null,null,null,null,null,null,1]
[null,null,null,null,null,null,null,null,null,null,null,null,null,null,null,null,null,1]
[null,null,null,null,null,null,null,null,null,null,null,null,null,null,null,null,null,1]
[null,null,null,null,null,null,null,null,null,null,null,null,null,null,null,null,null,1]
[null,null,null,null,null,null,null,null,null,null,null,null,null,null,null,null,null,1]
[null,null,null,null,null,null,null,null,null,null,null,null,null,null,null,null,null,{"$f":"IF(R450= \"\", 1, IF(Q450= \"\",IF(ISNUMBER(R450)=FALSE, 0, R450), IF(ISNUMBER(R450)=FALSE, 0, R450) + 1))","v":1}]
[null,null,null,null,null,null,null,null,null,null,null,null,null,null,null,null,null,1]
[null,null,null,null,null,null,null,null,null,null,null,null,null,null,null,null,null,1]
[null,null,null,null,null,null,null,null,null,null,null,null,null,null,null,null,null,1]
[null,null,null,null,null,null,null,null,null,null,null,null,null,null,null,null,null,1]
[null,null,null,null,null,null,null,null,null,null,null,null,null,null,null,null,null,1]
[null,null,null,null,null,null,null,null,null,null,null,null,null,null,null,null,null,1]
[null,null,null,null,null,null,null,null,null,null,null,null,null,null,null,null,null,1]
[null,null,null,null,null,null,null,null,null,null,null,null,null,null,null,null,null,1]
[null,null,null,null,null,null,null,null,null,null,null,null,null,null,null,null,null,1]
[null,null,null,null,null,null,null,null,null,null,null,null,null,null,null,null,null,1]
[null,null,null,null,null,null,null,null,null,null,null,null,null,null,null,null,null,1]
[null,null,null,null,null,null,null,null,null,null,null,null,null,null,null,null,null,1]
[null,null,null,null,null,null,null,null,null,null,null,null,null,null,null,null,null,1]
[null,null,null,null,null,null,null,null,null,null,null,null,null,null,null,null,null,1]
[null,null,null,null,null,null,null,null,null,null,null,null,null,null,null,null,null,1]
[null,null,null,null,null,null,null,null,null,null,null,null,null,null,null,null,null,1]
[null,null,null,null,null,null,null,null,null,null,null,null,null,null,null,null,null,1]
[null,null,null,null,null,null,null,null,null,null,null,null,null,null,null,null,null,1]
[null,null,null,null,null,null,null,null,null,null,null,null,null,null,null,null,null,1]
[null,null,null,null,null,null,null,null,null,null,null,null,null,null,null,null,null,1]
[null,null,null,null,null,null,null,null,null,null,null,null,null,null,null,null,null,1]
[null,null,null,null,null,null,null,null,null,null,null,null,null,null,null,null,null,1]
[null,null,null,null,null,null,null,null,null,null,null,null,null,null,null,null,null,1]
[null,null,null,null,null,null,null,null,null,null,null,null,null,null,null,null,null,1]
[null,null,null,null,null,null,null,null,null,null,null,null,null,null,null,null,null,1]
[null,null,null,null,null,null,null,null,null,null,null,null,null,null,null,null,null,1]
[null,null,null,null,null,null,null,null,null,null,null,null,null,null,null,null,null,1]
[null,null,null,null,null,null,null,null,null,null,null,null,null,null,null,null,null,1]
[null,null,null,null,null,null,null,null,null,null,null,null,null,null,null,null,null,1]
[null,null,null,null,null,null,null,null,null,null,null,null,null,null,null,null,null,1]
[null,null,null,null,null,null,null,null,null,null,null,null,null,null,null,null,null,1]
[null,null,null,null,null,null,null,null,null,null,null,null,null,null,null,null,null,1]
[null,null,null,null,null,null,null,null,null,null,null,null,null,null,null,null,null,1]
[null,null,null,null,null,null,null,null,null,null,null,null,null,null,null,null,null,1]
[null,null,null,null,null,null,null,null,null,null,null,null,null,null,null,null,null,1]
[null,null,null,null,null,null,null,null,null,null,null,null,null,null,null,null,null,1]
[null,null,null,null,null,null,null,null,null,null,null,null,null,null,null,null,null,1]
[null,null,null,null,null,null,null,null,null,null,null,null,null,null,null,null,null,1]
[null,null,null,null,null,null,null,null,null,null,null,null,null,null,null,null,null,1]
[null,null,null,null,null,null,null,null,null,null,null,null,null,null,null,null,null,1]
[null,null,null,null,null,null,null,null,null,null,null,null,null,null,null,null,null,1]
[null,null,null,null,null,null,null,null,null,null,null,null,null,null,null,null,null,1]
[null,null,null,null,null,null,null,null,null,null,null,null,null,null,null,null,null,1]
[null,null,null,null,null,null,null,null,null,null,null,null,null,null,null,null,null,1]
[null,null,null,null,null,null,null,null,null,null,null,null,null,null,null,null,null,1]
[null,null,null,null,null,null,null,null,null,null,null,null,null,null,null,null,null,1]
[null,null,null,null,null,null,null,null,null,null,null,null,null,null,null,null,null,1]
[null,null,null,null,null,null,null,null,null,null,null,null,null,null,null,null,null,1]
[null,null,null,null,null,null,null,null,null,null,null,null,null,null,null,null,null,1]
[null,null,null,null,null,null,null,null,null,null,null,null,null,null,null,null,null,1]
[null,null,null,null,null,null,null,null,null,null,null,null,null,null,null,null,null,1]
[null,null,null,null,null,null,null,null,null,null,null,null,null,null,null,null,null,1]
[null,null,null,null,null,null,null,null,null,null,null,null,null,null,null,null,null,1]
[null,null,null,null,null,null,null,null,null,null,null,null,null,null,null,null,null,1]
[null,null,null,null,null,null,null,null,null,null,null,null,null,null,null,null,null,1]
[null,null,null,null,null,null,null,null,null,null,null,null,null,null,null,null,null,1]
[null,null,null,null,null,null,null,null,null,null,null,null,null,null,null,null,null,1]
[null,null,null,null,null,null,null,null,null,null,null,null,null,null,null,null,null,1]
[null,null,null,null,null,null,null,null,null,null,null,null,null,null,null,null,null,1]
[null,null,null,null,null,null,null,null,null,null,null,null,null,null,null,null,null,1]
[null,null,null,null,null,null,null,null,null,null,null,null,null,null,null,null,null,1]
[null,null,null,null,null,null,null,null,null,null,null,null,null,null,null,null,null,1]
[null,null,null,null,null,null,null,null,null,null,null,null,null,null,null,null,null,1]
[null,null,null,null,null,null,null,null,null,null,null,null,null,null,null,null,null,{"$f":"IF(R514= \"\", 1, IF(Q514= \"\",IF(ISNUMBER(R514)=FALSE, 0, R514), IF(ISNUMBER(R514)=FALSE, 0, R514) + 1))","v":1}]
[null,null,null,null,null,null,null,null,null,null,null,null,null,null,null,null,null,1]
[null,null,null,null,null,null,null,null,null,null,null,null,null,null,null,null,null,1]
[null,null,null,null,null,null,null,null,null,null,null,null,null,null,null,null,null,1]
[null,null,null,null,null,null,null,null,null,null,null,null,null,null,null,null,null,1]
[null,null,null,null,null,null,null,null,null,null,null,null,null,null,null,null,null,1]
[null,null,null,null,null,null,null,null,null,null,null,null,null,null,null,null,null,1]
[null,null,null,null,null,null,null,null,null,null,null,null,null,null,null,null,null,1]
[null,null,null,null,null,null,null,null,null,null,null,null,null,null,null,null,null,1]
[null,null,null,null,null,null,null,null,null,null,null,null,null,null,null,null,null,1]
[null,null,null,null,null,null,null,null,null,null,null,null,null,null,null,null,null,1]
[null,null,null,null,null,null,null,null,null,null,null,null,null,null,null,null,null,1]
[null,null,null,null,null,null,null,null,null,null,null,null,null,null,null,null,null,1]
[null,null,null,null,null,null,null,null,null,null,null,null,null,null,null,null,null,1]
[null,null,null,null,null,null,null,null,null,null,null,null,null,null,null,null,null,1]
[null,null,null,null,null,null,null,null,null,null,null,null,null,null,null,null,null,1]
[null,null,null,null,null,null,null,null,null,null,null,null,null,null,null,null,null,1]
[null,null,null,null,null,null,null,null,null,null,null,null,null,null,null,null,null,1]
[null,null,null,null,null,null,null,null,null,null,null,null,null,null,null,null,null,1]
[null,null,null,null,null,null,null,null,null,null,null,null,null,null,null,null,null,1]
[null,null,null,null,null,null,null,null,null,null,null,null,null,null,null,null,null,1]
[null,null,null,null,null,null,null,null,null,null,null,null,null,null,null,null,null,1]
[null,null,null,null,null,null,null,null,null,null,null,null,null,null,null,null,null,1]
[null,null,null,null,null,null,null,null,null,null,null,null,null,null,null,null,null,1]
[null,null,null,null,null,null,null,null,null,null,null,null,null,null,null,null,null,1]
[null,null,null,null,null,null,null,null,null,null,null,null,null,null,null,null,null,1]
[null,null,null,null,null,null,null,null,null,null,null,null,null,null,null,null,null,1]
[null,null,null,null,null,null,null,null,null,null,null,null,null,null,null,null,null,1]
[null,null,null,null,null,null,null,null,null,null,null,null,null,null,null,null,null,1]
[null,null,null,null,null,null,null,null,null,null,null,null,null,null,null,null,null,1]
[null,null,null,null,null,null,null,null,null,null,null,null,null,null,null,null,null,1]
[null,null,null,null,null,null,null,null,null,null,null,null,null,null,null,null,null,1]
[null,null,null,null,null,null,null,null,null,null,null,null,null,null,null,null,null,1]
[null,null,null,null,null,null,null,null,null,null,null,null,null,null,null,null,null,1]
[null,null,null,null,null,null,null,null,null,null,null,null,null,null,null,null,null,1]
[null,null,null,null,null,null,null,null,null,null,null,null,null,null,null,null,null,1]
[null,null,null,null,null,null,null,null,null,null,null,null,null,null,null,null,null,1]
[null,null,null,null,null,null,null,null,null,null,null,null,null,null,null,null,null,1]
[null,null,null,null,null,null,null,null,null,null,null,null,null,null,null,null,null,1]
[null,null,null,null,null,null,null,null,null,null,null,null,null,null,null,null,null,1]
[null,null,null,null,null,null,null,null,null,null,null,null,null,null,null,null,null,1]
[null,null,null,null,null,null,null,null,null,null,null,null,null,null,null,null,null,1]
[null,null,null,null,null,null,null,null,null,null,null,null,null,null,null,null,null,1]
[null,null,null,null,null,null,null,null,null,null,null,null,null,null,null,null,null,1]
[null,null,null,null,null,null,null,null,null,null,null,null,null,null,null,null,null,1]
[null,null,null,null,null,null,null,null,null,null,null,null,null,null,null,null,null,1]
[null,null,null,null,null,null,null,null,null,null,null,null,null,null,null,null,null,1]
[null,null,null,null,null,null,null,null,null,null,null,null,null,null,null,null,null,1]
[null,null,null,null,null,null,null,null,null,null,null,null,null,null,null,null,null,1]
[null,null,null,null,null,null,null,null,null,null,null,null,null,null,null,null,null,1]
[null,null,null,null,null,null,null,null,null,null,null,null,null,null,null,null,null,1]
[null,null,null,null,null,null,null,null,null,null,null,null,null,null,null,null,null,1]
[null,null,null,null,null,null,null,null,null,null,null,null,null,null,null,null,null,1]
[null,null,null,null,null,null,null,null,null,null,null,null,null,null,null,null,null,1]
[null,null,null,null,null,null,null,null,null,null,null,null,null,null,null,null,null,1]
[null,null,null,null,null,null,null,null,null,null,null,null,null,null,null,null,null,1]
[null,null,null,null,null,null,null,null,null,null,null,null,null,null,null,null,null,1]
[null,null,null,null,null,null,null,null,null,null,null,null,null,null,null,null,null,1]
[null,null,null,null,null,null,null,null,null,null,null,null,null,null,null,null,null,1]
[null,null,null,null,null,null,null,null,null,null,null,null,null,null,null,null,null,1]
[null,null,null,null,null,null,null,null,null,null,null,null,null,null,null,null,null,1]
[null,null,null,null,null,null,null,null,null,null,null,null,null,null,null,null,null,1]
[null,null,null,null,null,null,null,null,null,null,null,null,null,null,null,null,null,1]
[null,null,null,null,null,null,null,null,null,null,null,null,null,null,null,null,null,1]
[null,null,null,null,null,null,null,null,null,null,null,null,null,null,null,null,null,{"$f":"IF(R578= \"\", 1, IF(Q578= \"\",IF(ISNUMBER(R578)=FALSE, 0, R578), IF(ISNUMBER(R578)=FALSE, 0, R578) + 1))","v":1}]
[null,null,null,null,null,null,null,null,null,null,null,null,null,null,null,null,null,1]
[null,null,null,null,null,null,null,null,null,null,null,null,null,null,null,null,null,1]
[null,null,null,null,null,null,null,null,null,null,null,null,null,null,null,null,null,1]
[null,null,null,null,null,null,null,null,null,null,null,null,null,null,null,null,null,1]
[null,null,null,null,null,null,null,null,null,null,null,null,null,null,null,null,null,1]
[null,null,null,null,null,null,null,null,null,null,null,null,null,null,null,null,null,1]
[null,null,null,null,null,null,null,null,null,null,null,null,null,null,null,null,null,1]
[null,null,null,null,null,null,null,null,null,null,null,null,null,null,null,null,null,1]
[null,null,null,null,null,null,null,null,null,null,null,null,null,null,null,null,null,1]
[null,null,null,null,null,null,null,null,null,null,null,null,null,null,null,null,null,1]
[null,null,null,null,null,null,null,null,null,null,null,null,null,null,null,null,null,1]
[null,null,null,null,null,null,null,null,null,null,null,null,null,null,null,null,null,1]
[null,null,null,null,null,null,null,null,null,null,null,null,null,null,null,null,null,1]
[null,null,null,null,null,null,null,null,null,null,null,null,null,null,null,null,null,1]
[null,null,null,null,null,null,null,null,null,null,null,null,null,null,null,null,null,1]
[null,null,null,null,null,null,null,null,null,null,null,null,null,null,null,null,null,1]
[null,null,null,null,null,null,null,null,null,null,null,null,null,null,null,null,null,1]
[null,null,null,null,null,null,null,null,null,null,null,null,null,null,null,null,null,1]
[null,null,null,null,null,null,null,null,null,null,null,null,null,null,null,null,null,1]
[null,null,null,null,null,null,null,null,null,null,null,null,null,null,null,null,null,1]
[null,null,null,null,null,null,null,null,null,null,null,null,null,null,null,null,null,1]
[null,null,null,null,null,null,null,null,null,null,null,null,null,null,null,null,null,1]
[null,null,null,null,null,null,null,null,null,null,null,null,null,null,null,null,null,1]
[null,null,null,null,null,null,null,null,null,null,null,null,null,null,null,null,null,1]
[null,null,null,null,null,null,null,null,null,null,null,null,null,null,null,null,null,1]
[null,null,null,null,null,null,null,null,null,null,null,null,null,null,null,null,null,1]
[null,null,null,null,null,null,null,null,null,null,null,null,null,null,null,null,null,1]
[null,null,null,null,null,null,null,null,null,null,null,null,null,null,null,null,null,1]
[null,null,null,null,null,null,null,null,null,null,null,null,null,null,null,null,null,1]
[null,null,null,null,null,null,null,null,null,null,null,null,null,null,null,null,null,1]
[null,null,null,null,null,null,null,null,null,null,null,null,null,null,null,null,null,1]
[null,null,null,null,null,null,null,null,null,null,null,null,null,null,null,null,null,1]
[null,null,null,null,null,null,null,null,null,null,null,null,null,null,null,null,null,1]
[null,null,null,null,null,null,null,null,null,null,null,null,null,null,null,null,null,1]
[null,null,null,null,null,null,null,null,null,null,null,null,null,null,null,null,null,1]
[null,null,null,null,null,null,null,null,null,null,null,null,null,null,null,null,null,1]
[null,null,null,null,null,null,null,null,null,null,null,null,null,null,null,null,null,1]
[null,null,null,null,null,null,null,null,null,null,null,null,null,null,null,null,null,1]
[null,null,null,null,null,null,null,null,null,null,null,null,null,null,null,null,null,1]
[null,null,null,null,null,null,null,null,null,null,null,null,null,null,null,null,null,1]
[null,null,null,null,null,null,null,null,null,null,null,null,null,null,null,null,null,1]
[null,null,null,null,null,null,null,null,null,null,null,null,null,null,null,null,null,1]
[null,null,null,null,null,null,null,null,null,null,null,null,null,null,null,null,null,1]
[null,null,null,null,null,null,null,null,null,null,null,null,null,null,null,null,null,1]
[null,null,null,null,null,null,null,null,null,null,null,null,null,null,null,null,null,1]
[null,null,null,null,null,null,null,null,null,null,null,null,null,null,null,null,null,1]
[null,null,null,null,null,null,null,null,null,null,null,null,null,null,null,null,null,1]
[null,null,null,null,null,null,null,null,null,null,null,null,null,null,null,null,null,1]
[null,null,null,null,null,null,null,null,null,null,null,null,null,null,null,null,null,1]
[null,null,null,null,null,null,null,null,null,null,null,null,null,null,null,null,null,1]
[null,null,null,null,null,null,null,null,null,null,null,null,null,null,null,null,null,1]
[null,null,null,null,null,null,null,null,null,null,null,null,null,null,null,null,null,1]
[null,null,null,null,null,null,null,null,null,null,null,null,null,null,null,null,null,1]
[null,null,null,null,null,null,null,null,null,null,null,null,null,null,null,null,null,1]
[null,null,null,null,null,null,null,null,null,null,null,null,null,null,null,null,null,1]
[null,null,null,null,null,null,null,null,null,null,null,null,null,null,null,null,null,1]
[null,null,null,null,null,null,null,null,null,null,null,null,null,null,null,null,null,1]
[null,null,null,null,null,null,null,null,null,null,null,null,null,null,null,null,null,1]
[null,null,null,null,null,null,null,null,null,null,null,null,null,null,null,null,null,1]
[null,null,null,null,null,null,null,null,null,null,null,null,null,null,null,null,null,1]
[null,null,null,null,null,null,null,null,null,null,null,null,null,null,null,null,null,1]
[null,null,null,null,null,null,null,null,null,null,null,null,null,null,null,null,null,1]
[null,null,null,null,null,null,null,null,null,null,null,null,null,null,null,null,null,1]
[null,null,null,null,null,null,null,null,null,null,null,null,null,null,null,null,null,{"$f":"IF(R642= \"\", 1, IF(Q642= \"\",IF(ISNUMBER(R642)=FALSE, 0, R642), IF(ISNUMBER(R642)=FALSE, 0, R642) + 1))","v":1}]
[null,null,null,null,null,null,null,null,null,null,null,null,null,null,null,null,null,1]
[null,null,null,null,null,null,null,null,null,null,null,null,null,null,null,null,null,1]
[null,null,null,null,null,null,null,null,null,null,null,null,null,null,null,null,null,1]
[null,null,null,null,null,null,null,null,null,null,null,null,null,null,null,null,null,1]
[null,null,null,null,null,null,null,null,null,null,null,null,null,null,null,null,null,1]
[null,null,null,null,null,null,null,null,null,null,null,null,null,null,null,null,null,1]
[null,null,null,null,null,null,null,null,null,null,null,null,null,null,null,null,null,1]
[null,null,null,null,null,null,null,null,null,null,null,null,null,null,null,null,null,1]
[null,null,null,null,null,null,null,null,null,null,null,null,null,null,null,null,null,1]
[null,null,null,null,null,null,null,null,null,null,null,null,null,null,null,null,null,1]
[null,null,null,null,null,null,null,null,null,null,null,null,null,null,null,null,null,1]
[null,null,null,null,null,null,null,null,null,null,null,null,null,null,null,null,null,1]
[null,null,null,null,null,null,null,null,null,null,null,null,null,null,null,null,null,1]
[null,null,null,null,null,null,null,null,null,null,null,null,null,null,null,null,null,1]
[null,null,null,null,null,null,null,null,null,null,null,null,null,null,null,null,null,1]
[null,null,null,null,null,null,null,null,null,null,null,null,null,null,null,null,null,1]
[null,null,null,null,null,null,null,null,null,null,null,null,null,null,null,null,null,1]
[null,null,null,null,null,null,null,null,null,null,null,null,null,null,null,null,null,1]
[null,null,null,null,null,null,null,null,null,null,null,null,null,null,null,null,null,1]
[null,null,null,null,null,null,null,null,null,null,null,null,null,null,null,null,null,1]
[null,null,null,null,null,null,null,null,null,null,null,null,null,null,null,null,null,1]
[null,null,null,null,null,null,null,null,null,null,null,null,null,null,null,null,null,1]
[null,null,null,null,null,null,null,null,null,null,null,null,null,null,null,null,null,1]
[null,null,null,null,null,null,null,null,null,null,null,null,null,null,null,null,null,1]
[null,null,null,null,null,null,null,null,null,null,null,null,null,null,null,null,null,1]
[null,null,null,null,null,null,null,null,null,null,null,null,null,null,null,null,null,1]
[null,null,null,null,null,null,null,null,null,null,null,null,null,null,null,null,null,1]
[null,null,null,null,null,null,null,null,null,null,null,null,null,null,null,null,null,1]
[null,null,null,null,null,null,null,null,null,null,null,null,null,null,null,null,null,1]
[null,null,null,null,null,null,null,null,null,null,null,null,null,null,null,null,null,1]
[null,null,null,null,null,null,null,null,null,null,null,null,null,null,null,null,null,1]
[null,null,null,null,null,null,null,null,null,null,null,null,null,null,null,null,null,1]
[null,null,null,null,null,null,null,null,null,null,null,null,null,null,null,null,null,1]
[null,null,null,null,null,null,null,null,null,null,null,null,null,null,null,null,null,1]
[null,null,null,null,null,null,null,null,null,null,null,null,null,null,null,null,null,1]
[null,null,null,null,null,null,null,null,null,null,null,null,null,null,null,null,null,1]
[null,null,null,null,null,null,null,null,null,null,null,null,null,null,null,null,null,1]
[null,null,null,null,null,null,null,null,null,null,null,null,null,null,null,null,null,1]
[null,null,null,null,null,null,null,null,null,null,null,null,null,null,null,null,null,1]
[null,null,null,null,null,null,null,null,null,null,null,null,null,null,null,null,null,1]
[null,null,null,null,null,null,null,null,null,null,null,null,null,null,null,null,null,1]
[null,null,null,null,null,null,null,null,null,null,null,null,null,null,null,null,null,1]
[null,null,null,null,null,null,null,null,null,null,null,null,null,null,null,null,null,1]
[null,null,null,null,null,null,null,null,null,null,null,null,null,null,null,null,null,1]
[null,null,null,null,null,null,null,null,null,null,null,null,null,null,null,null,null,1]
[null,null,null,null,null,null,null,null,null,null,null,null,null,null,null,null,null,1]
[null,null,null,null,null,null,null,null,null,null,null,null,null,null,null,null,null,1]
[null,null,null,null,null,null,null,null,null,null,null,null,null,null,null,null,null,1]
[null,null,null,null,null,null,null,null,null,null,null,null,null,null,null,null,null,1]
[null,null,null,null,null,null,null,null,null,null,null,null,null,null,null,null,null,1]
[null,null,null,null,null,null,null,null,null,null,null,null,null,null,null,null,null,1]
[null,null,null,null,null,null,null,null,null,null,null,null,null,null,null,null,null,1]
[null,null,null,null,null,null,null,null,null,null,null,null,null,null,null,null,null,1]
[null,null,null,null,null,null,null,null,null,null,null,null,null,null,null,null,null,1]
[null,null,null,null,null,null,null,null,null,null,null,null,null,null,null,null,null,1]
[null,null,null,null,null,null,null,null,null,null,null,null,null,null,null,null,null,1]
[null,null,null,null,null,null,null,null,null,null,null,null,null,null,null,null,null,1]
[null,null,null,null,null,null,null,null,null,null,null,null,null,null,null,null,null,1]
[null,null,null,null,null,null,null,null,null,null,null,null,null,null,null,null,null,1]
[null,null,null,null,null,null,null,null,null,null,null,null,null,null,null,null,null,1]
[null,null,null,null,null,null,null,null,null,null,null,null,null,null,null,null,null,1]
[null,null,null,null,null,null,null,null,null,null,null,null,null,null,null,null,null,1]
[null,null,null,null,null,null,null,null,null,null,null,null,null,null,null,null,null,1]
[null,null,null,null,null,null,null,null,null,null,null,null,null,null,null,null,null,{"$f":"IF(R706= \"\", 1, IF(Q706= \"\",IF(ISNUMBER(R706)=FALSE, 0, R706), IF(ISNUMBER(R706)=FALSE, 0, R706) + 1))","v":1}]
[null,null,null,null,null,null,null,null,null,null,null,null,null,null,null,null,null,1]
[null,null,null,null,null,null,null,null,null,null,null,null,null,null,null,null,null,1]
[null,null,null,null,null,null,null,null,null,null,null,null,null,null,null,null,null,1]
[null,null,null,null,null,null,null,null,null,null,null,null,null,null,null,null,null,1]
[null,null,null,null,null,null,null,null,null,null,null,null,null,null,null,null,null,1]
[null,null,null,null,null,null,null,null,null,null,null,null,null,null,null,null,null,1]
[null,null,null,null,null,null,null,null,null,null,null,null,null,null,null,null,null,1]
[null,null,null,null,null,null,null,null,null,null,null,null,null,null,null,null,null,1]
[null,null,null,null,null,null,null,null,null,null,null,null,null,null,null,null,null,1]
[null,null,null,null,null,null,null,null,null,null,null,null,null,null,null,null,null,1]
[null,null,null,null,null,null,null,null,null,null,null,null,null,null,null,null,null,1]
[null,null,null,null,null,null,null,null,null,null,null,null,null,null,null,null,null,1]
[null,null,null,null,null,null,null,null,null,null,null,null,null,null,null,null,null,1]
[null,null,null,null,null,null,null,null,null,null,null,null,null,null,null,null,null,1]
[null,null,null,null,null,null,null,null,null,null,null,null,null,null,null,null,null,1]
[null,null,null,null,null,null,null,null,null,null,null,null,null,null,null,null,null,1]
[null,null,null,null,null,null,null,null,null,null,null,null,null,null,null,null,null,1]
[null,null,null,null,null,null,null,null,null,null,null,null,null,null,null,null,null,1]
[null,null,null,null,null,null,null,null,null,null,null,null,null,null,null,null,null,1]
[null,null,null,null,null,null,null,null,null,null,null,null,null,null,null,null,null,1]
[null,null,null,null,null,null,null,null,null,null,null,null,null,null,null,null,null,1]
[null,null,null,null,null,null,null,null,null,null,null,null,null,null,null,null,null,1]
[null,null,null,null,null,null,null,null,null,null,null,null,null,null,null,null,null,1]
[null,null,null,null,null,null,null,null,null,null,null,null,null,null,null,null,null,1]
[null,null,null,null,null,null,null,null,null,null,null,null,null,null,null,null,null,1]
[null,null,null,null,null,null,null,null,null,null,null,null,null,null,null,null,null,1]
[null,null,null,null,null,null,null,null,null,null,null,null,null,null,null,null,null,1]
[null,null,null,null,null,null,null,null,null,null,null,null,null,null,null,null,null,1]
[null,null,null,null,null,null,null,null,null,null,null,null,null,null,null,null,null,1]
[null,null,null,null,null,null,null,null,null,null,null,null,null,null,null,null,null,1]
[null,null,null,null,null,null,null,null,null,null,null,null,null,null,null,null,null,1]
[null,null,null,null,null,null,null,null,null,null,null,null,null,null,null,null,null,1]
[null,null,null,null,null,null,null,null,null,null,null,null,null,null,null,null,null,1]
[null,null,null,null,null,null,null,null,null,null,null,null,null,null,null,null,null,1]
[null,null,null,null,null,null,null,null,null,null,null,null,null,null,null,null,null,1]
[null,null,null,null,null,null,null,null,null,null,null,null,null,null,null,null,null,1]
[null,null,null,null,null,null,null,null,null,null,null,null,null,null,null,null,null,1]
[null,null,null,null,null,null,null,null,null,null,null,null,null,null,null,null,null,1]
[null,null,null,null,null,null,null,null,null,null,null,null,null,null,null,null,null,1]
[null,null,null,null,null,null,null,null,null,null,null,null,null,null,null,null,null,1]
[null,null,null,null,null,null,null,null,null,null,null,null,null,null,null,null,null,1]
[null,null,null,null,null,null,null,null,null,null,null,null,null,null,null,null,null,1]
[null,null,null,null,null,null,null,null,null,null,null,null,null,null,null,null,null,1]
[null,null,null,null,null,null,null,null,null,null,null,null,null,null,null,null,null,1]
[null,null,null,null,null,null,null,null,null,null,null,null,null,null,null,null,null,1]
[null,null,null,null,null,null,null,null,null,null,null,null,null,null,null,null,null,1]
[null,null,null,null,null,null,null,null,null,null,null,null,null,null,null,null,null,1]
[null,null,null,null,null,null,null,null,null,null,null,null,null,null,null,null,null,1]
[null,null,null,null,null,null,null,null,null,null,null,null,null,null,null,null,null,1]
[null,null,null,null,null,null,null,null,null,null,null,null,null,null,null,null,null,1]
[null,null,null,null,null,null,null,null,null,null,null,null,null,null,null,null,null,1]
[null,null,null,null,null,null,null,null,null,null,null,null,null,null,null,null,null,1]
[null,null,null,null,null,null,null,null,null,null,null,null,null,null,null,null,null,1]
[null,null,null,null,null,null,null,null,null,null,null,null,null,null,null,null,null,1]
[null,null,null,null,null,null,null,null,null,null,null,null,null,null,null,null,null,1]
[null,null,null,null,null,null,null,null,null,null,null,null,null,null,null,null,null,1]
[null,null,null,null,null,null,null,null,null,null,null,null,null,null,null,null,null,1]
[null,null,null,null,null,null,null,null,null,null,null,null,null,null,null,null,null,1]
[null,null,null,null,null,null,null,null,null,null,null,null,null,null,null,null,null,1]
[null,null,null,null,null,null,null,null,null,null,null,null,null,null,null,null,null,1]
[null,null,null,null,null,null,null,null,null,null,null,null,null,null,null,null,null,1]
[null,null,null,null,null,null,null,null,null,null,null,null,null,null,null,null,null,1]
[null,null,null,null,null,null,null,null,null,null,null,null,null,null,null,null,null,1]
[null,null,null,null,null,null,null,null,null,null,null,null,null,null,null,null,null,{"$f":"IF(R770= \"\", 1, IF(Q770= \"\",IF(ISNUMBER(R770)=FALSE, 0, R770), IF(ISNUMBER(R770)=FALSE, 0, R770) + 1))","v":1}]
[null,null,null,null,null,null,null,null,null,null,null,null,null,null,null,null,null,1]
[null,null,null,null,null,null,null,null,null,null,null,null,null,null,null,null,null,1]
[null,null,null,null,null,null,null,null,null,null,null,null,null,null,null,null,null,1]
[null,null,null,null,null,null,null,null,null,null,null,null,null,null,null,null,null,1]
[null,null,null,null,null,null,null,null,null,null,null,null,null,null,null,null,null,1]
[null,null,null,null,null,null,null,null,null,null,null,null,null,null,null,null,null,1]
[null,null,null,null,null,null,null,null,null,null,null,null,null,null,null,null,null,1]
[null,null,null,null,null,null,null,null,null,null,null,null,null,null,null,null,null,1]
[null,null,null,null,null,null,null,null,null,null,null,null,null,null,null,null,null,1]
[null,null,null,null,null,null,null,null,null,null,null,null,null,null,null,null,null,1]
[null,null,null,null,null,null,null,null,null,null,null,null,null,null,null,null,null,1]
[null,null,null,null,null,null,null,null,null,null,null,null,null,null,null,null,null,1]
[null,null,null,null,null,null,null,null,null,null,null,null,null,null,null,null,null,1]
[null,null,null,null,null,null,null,null,null,null,null,null,null,null,null,null,null,1]
[null,null,null,null,null,null,null,null,null,null,null,null,null,null,null,null,null,1]
[null,null,null,null,null,null,null,null,null,null,null,null,null,null,null,null,null,1]
[null,null,null,null,null,null,null,null,null,null,null,null,null,null,null,null,null,1]
[null,null,null,null,null,null,null,null,null,null,null,null,null,null,null,null,null,1]
[null,null,null,null,null,null,null,null,null,null,null,null,null,null,null,null,null,1]
[null,null,null,null,null,null,null,null,null,null,null,null,null,null,null,null,null,1]
[null,null,null,null,null,null,null,null,null,null,null,null,null,null,null,null,null,1]
[null,null,null,null,null,null,null,null,null,null,null,null,null,null,null,null,null,1]
[null,null,null,null,null,null,null,null,null,null,null,null,null,null,null,null,null,1]
[null,null,null,null,null,null,null,null,null,null,null,null,null,null,null,null,null,1]
[null,null,null,null,null,null,null,null,null,null,null,null,null,null,null,null,null,1]
[null,null,null,null,null,null,null,null,null,null,null,null,null,null,null,null,null,1]
[null,null,null,null,null,null,null,null,null,null,null,null,null,null,null,null,null,1]
[null,null,null,null,null,null,null,null,null,null,null,null,null,null,null,null,null,1]
[null,null,null,null,null,null,null,null,null,null,null,null,null,null,null,null,null,1]
[null,null,null,null,null,null,null,null,null,null,null,null,null,null,null,null,null,1]
[null,null,null,null,null,null,null,null,null,null,null,null,null,null,null,null,null,1]
[null,null,null,null,null,null,null,null,null,null,null,null,null,null,null,null,null,1]
[null,null,null,null,null,null,null,null,null,null,null,null,null,null,null,null,null,1]
[null,null,null,null,null,null,null,null,null,null,null,null,null,null,null,null,null,1]
[null,null,null,null,null,null,null,null,null,null,null,null,null,null,null,null,null,1]
[null,null,null,null,null,null,null,null,null,null,null,null,null,null,null,null,null,1]
[null,null,null,null,null,null,null,null,null,null,null,null,null,null,null,null,null,1]
[null,null,null,null,null,null,null,null,null,null,null,null,null,null,null,null,null,1]
[null,null,null,null,null,null,null,null,null,null,null,null,null,null,null,null,null,1]
[null,null,null,null,null,null,null,null,null,null,null,null,null,null,null,null,null,1]
[null,null,null,null,null,null,null,null,null,null,null,null,null,null,null,null,null,1]
[null,null,null,null,null,null,null,null,null,null,null,null,null,null,null,null,null,1]
[null,null,null,null,null,null,null,null,null,null,null,null,null,null,null,null,null,1]
[null,null,null,null,null,null,null,null,null,null,null,null,null,null,null,null,null,1]
[null,null,null,null,null,null,null,null,null,null,null,null,null,null,null,null,null,1]
[null,null,null,null,null,null,null,null,null,null,null,null,null,null,null,null,null,1]
[null,null,null,null,null,null,null,null,null,null,null,null,null,null,null,null,null,1]
[null,null,null,null,null,null,null,null,null,null,null,null,null,null,null,null,null,1]
[null,null,null,null,null,null,null,null,null,null,null,null,null,null,null,null,null,1]
[null,null,null,null,null,null,null,null,null,null,null,null,null,null,null,null,null,1]
[null,null,null,null,null,null,null,null,null,null,null,null,null,null,null,null,null,1]
[null,null,null,null,null,null,null,null,null,null,null,null,null,null,null,null,null,1]
[null,null,null,null,null,null,null,null,null,null,null,null,null,null,null,null,null,1]
[null,null,null,null,null,null,null,null,null,null,null,null,null,null,null,null,null,1]
[null,null,null,null,null,null,null,null,null,null,null,null,null,null,null,null,null,1]
[null,null,null,null,null,null,null,null,null,null,null,null,null,null,null,null,null,1]
[null,null,null,null,null,null,null,null,null,null,null,null,null,null,null,null,null,1]
[null,null,null,null,null,null,null,null,null,null,null,null,null,null,null,null,null,1]
[null,null,null,null,null,null,null,null,null,null,null,null,null,null,null,null,null,1]
[null,null,null,null,null,null,null,null,null,null,null,null,null,null,null,null,null,1]
[null,null,null,null,null,null,null,null,null,null,null,null,null,null,null,null,null,1]
[null,null,null,null,null,null,null,null,null,null,null,null,null,null,null,null,null,1]
[null,null,null,null,null,null,null,null,null,null,null,null,null,null,null,null,null,1]
[null,null,null,null,null,null,null,null,null,null,null,null,null,null,null,null,null,{"$f":"IF(R834= \"\", 1, IF(Q834= \"\",IF(ISNUMBER(R834)=FALSE, 0, R834), IF(ISNUMBER(R834)=FALSE, 0, R834) + 1))","v":1}]
[null,null,null,null,null,null,null,null,null,null,null,null,null,null,null,null,null,1]
[null,null,null,null,null,null,null,null,null,null,null,null,null,null,null,null,null,1]
[null,null,null,null,null,null,null,null,null,null,null,null,null,null,null,null,null,1]
[null,null,null,null,null,null,null,null,null,null,null,null,null,null,null,null,null,1]
[null,null,null,null,null,null,null,null,null,null,null,null,null,null,null,null,null,1]
[null,null,null,null,null,null,null,null,null,null,null,null,null,null,null,null,null,1]
[null,null,null,null,null,null,null,null,null,null,null,null,null,null,null,null,null,1]
[null,null,null,null,null,null,null,null,null,null,null,null,null,null,null,null,null,1]
[null,null,null,null,null,null,null,null,null,null,null,null,null,null,null,null,null,1]
[null,null,null,null,null,null,null,null,null,null,null,null,null,null,null,null,null,1]
[null,null,null,null,null,null,null,null,null,null,null,null,null,null,null,null,null,1]
[null,null,null,null,null,null,null,null,null,null,null,null,null,null,null,null,null,1]
[null,null,null,null,null,null,null,null,null,null,null,null,null,null,null,null,null,1]
[null,null,null,null,null,null,null,null,null,null,null,null,null,null,null,null,null,1]
[null,null,null,null,null,null,null,null,null,null,null,null,null,null,null,null,null,1]
[null,null,null,null,null,null,null,null,null,null,null,null,null,null,null,null,null,1]
[null,null,null,null,null,null,null,null,null,null,null,null,null,null,null,null,null,1]
[null,null,null,null,null,null,null,null,null,null,null,null,null,null,null,null,null,1]
[null,null,null,null,null,null,null,null,null,null,null,null,null,null,null,null,null,1]
[null,null,null,null,null,null,null,null,null,null,null,null,null,null,null,null,null,1]
[null,null,null,null,null,null,null,null,null,null,null,null,null,null,null,null,null,1]
[null,null,null,null,null,null,null,null,null,null,null,null,null,null,null,null,null,1]
[null,null,null,null,null,null,null,null,null,null,null,null,null,null,null,null,null,1]
[null,null,null,null,null,null,null,null,null,null,null,null,null,null,null,null,null,1]
[null,null,null,null,null,null,null,null,null,null,null,null,null,null,null,null,null,1]
[null,null,null,null,null,null,null,null,null,null,null,null,null,null,null,null,null,1]
[null,null,null,null,null,null,null,null,null,null,null,null,null,null,null,null,null,1]
[null,null,null,null,null,null,null,null,null,null,null,null,null,null,null,null,null,1]
[null,null,null,null,null,null,null,null,null,null,null,null,null,null,null,null,null,1]
[null,null,null,null,null,null,null,null,null,null,null,null,null,null,null,null,null,1]
[null,null,null,null,null,null,null,null,null,null,null,null,null,null,null,null,null,1]
[null,null,null,null,null,null,null,null,null,null,null,null,null,null,null,null,null,1]
[null,null,null,null,null,null,null,null,null,null,null,null,null,null,null,null,null,1]
[null,null,null,null,null,null,null,null,null,null,null,null,null,null,null,null,null,1]
[null,null,null,null,null,null,null,null,null,null,null,null,null,null,null,null,null,1]
[null,null,null,null,null,null,null,null,null,null,null,null,null,null,null,null,null,1]
[null,null,null,null,null,null,null,null,null,null,null,null,null,null,null,null,null,1]
[null,null,null,null,null,null,null,null,null,null,null,null,null,null,null,null,null,1]
[null,null,null,null,null,null,null,null,null,null,null,null,null,null,null,null,null,1]
[null,null,null,null,null,null,null,null,null,null,null,null,null,null,null,null,null,1]
[null,null,null,null,null,null,null,null,null,null,null,null,null,null,null,null,null,1]
[null,null,null,null,null,null,null,null,null,null,null,null,null,null,null,null,null,1]
[null,null,null,null,null,null,null,null,null,null,null,null,null,null,null,null,null,1]
[null,null,null,null,null,null,null,null,null,null,null,null,null,null,null,null,null,1]
[null,null,null,null,null,null,null,null,null,null,null,null,null,null,null,null,null,1]
[null,null,null,null,null,null,null,null,null,null,null,null,null,null,null,null,null,1]
[null,null,null,null,null,null,null,null,null,null,null,null,null,null,null,null,null,1]
[null,null,null,null,null,null,null,null,null,null,null,null,null,null,null,null,null,1]
[null,null,null,null,null,null,null,null,null,null,null,null,null,null,null,null,null,1]
[null,null,null,null,null,null,null,null,null,null,null,null,null,null,null,null,null,1]
[null,null,null,null,null,null,null,null,null,null,null,null,null,null,null,null,null,1]
[null,null,null,null,null,null,null,null,null,null,null,null,null,null,null,null,null,1]
[null,null,null,null,null,null,null,null,null,null,null,null,null,null,null,null,null,1]
[null,null,null,null,null,null,null,null,null,null,null,null,null,null,null,null,null,1]
[null,null,null,null,null,null,null,null,null,null,null,null,null,null,null,null,null,1]
[null,null,null,null,null,null,null,null,null,null,null,null,null,null,null,null,null,1]
[null,null,null,null,null,null,null,null,null,null,null,null,null,null,null,null,null,1]
[null,null,null,null,null,null,null,null,null,null,null,null,null,null,null,null,null,1]
[null,null,null,null,null,null,null,null,null,null,null,null,null,null,null,null,null,1]
[null,null,null,null,null,null,null,null,null,null,null,null,null,null,null,null,null,1]
[null,null,null,null,null,null,null,null,null,null,null,null,null,null,null,null,null,1]
[null,null,null,null,null,null,null,null,null,null,null,null,null,null,null,null,null,1]
[null,null,null,null,null,null,null,null,null,null,null,null,null,null,null,null,null,1]
[null,null,null,null,null,null,null,null,null,null,null,null,null,null,null,null,null,{"$f":"IF(R898= \"\", 1, IF(Q898= \"\",IF(ISNUMBER(R898)=FALSE, 0, R898), IF(ISNUMBER(R898)=FALSE, 0, R898) + 1))","v":1}]
[null,null,null,null,null,null,null,null,null,null,null,null,null,null,null,null,null,1]
[null,null,null,null,null,null,null,null,null,null,null,null,null,null,null,null,null,1]
[null,null,null,null,null,null,null,null,null,null,null,null,null,null,null,null,null,1]
[null,null,null,null,null,null,null,null,null,null,null,null,null,null,null,null,null,1]
[null,null,null,null,null,null,null,null,null,null,null,null,null,null,null,null,null,1]
[null,null,null,null,null,null,null,null,null,null,null,null,null,null,null,null,null,1]
[null,null,null,null,null,null,null,null,null,null,null,null,null,null,null,null,null,1]
[null,null,null,null,null,null,null,null,null,null,null,null,null,null,null,null,null,1]
[null,null,null,null,null,null,null,null,null,null,null,null,null,null,null,null,null,1]
[null,null,null,null,null,null,null,null,null,null,null,null,null,null,null,null,null,1]
[null,null,null,null,null,null,null,null,null,null,null,null,null,null,null,null,null,1]
[null,null,null,null,null,null,null,null,null,null,null,null,null,null,null,null,null,1]
[null,null,null,null,null,null,null,null,null,null,null,null,null,null,null,null,null,1]
[null,null,null,null,null,null,null,null,null,null,null,null,null,null,null,null,null,1]
[null,null,null,null,null,null,null,null,null,null,null,null,null,null,null,null,null,1]
[null,null,null,null,null,null,null,null,null,null,null,null,null,null,null,null,null,1]
[null,null,null,null,null,null,null,null,null,null,null,null,null,null,null,null,null,1]
[null,null,null,null,null,null,null,null,null,null,null,null,null,null,null,null,null,1]
[null,null,null,null,null,null,null,null,null,null,null,null,null,null,null,null,null,1]
[null,null,null,null,null,null,null,null,null,null,null,null,null,null,null,null,null,1]
[null,null,null,null,null,null,null,null,null,null,null,null,null,null,null,null,null,1]
[null,null,null,null,null,null,null,null,null,null,null,null,null,null,null,null,null,1]
[null,null,null,null,null,null,null,null,null,null,null,null,null,null,null,null,null,1]
[null,null,null,null,null,null,null,null,null,null,null,null,null,null,null,null,null,1]
[null,null,null,null,null,null,null,null,null,null,null,null,null,null,null,null,null,1]
[null,null,null,null,null,null,null,null,null,null,null,null,null,null,null,null,null,1]
[null,null,null,null,null,null,null,null,null,null,null,null,null,null,null,null,null,1]
[null,null,null,null,null,null,null,null,null,null,null,null,null,null,null,null,null,1]
[null,null,null,null,null,null,null,null,null,null,null,null,null,null,null,null,null,1]
[null,null,null,null,null,null,null,null,null,null,null,null,null,null,null,null,null,1]
[null,null,null,null,null,null,null,null,null,null,null,null,null,null,null,null,null,1]
[null,null,null,null,null,null,null,null,null,null,null,null,null,null,null,null,null,1]
[null,null,null,null,null,null,null,null,null,null,null,null,null,null,null,null,null,1]
[null,null,null,null,null,null,null,null,null,null,null,null,null,null,null,null,null,1]
[null,null,null,null,null,null,null,null,null,null,null,null,null,null,null,null,null,1]
[null,null,null,null,null,null,null,null,null,null,null,null,null,null,null,null,null,1]
[null,null,null,null,null,null,null,null,null,null,null,null,null,null,null,null,null,1]
[null,null,null,null,null,null,null,null,null,null,null,null,null,null,null,null,null,1]
[null,null,null,null,null,null,null,null,null,null,null,null,null,null,null,null,null,1]
[null,null,null,null,null,null,null,null,null,null,null,null,null,null,null,null,null,1]
[null,null,null,null,null,null,null,null,null,null,null,null,null,null,null,null,null,1]
[null,null,null,null,null,null,null,null,null,null,null,null,null,null,null,null,null,1]
[null,null,null,null,null,null,null,null,null,null,null,null,null,null,null,null,null,1]
[null,null,null,null,null,null,null,null,null,null,null,null,null,null,null,null,null,1]
[null,null,null,null,null,null,null,null,null,null,null,null,null,null,null,null,null,1]
[null,null,null,null,null,null,null,null,null,null,null,null,null,null,null,null,null,1]
[null,null,null,null,null,null,null,null,null,null,null,null,null,null,null,null,null,1]
[null,null,null,null,null,null,null,null,null,null,null,null,null,null,null,null,null,1]
[null,null,null,null,null,null,null,null,null,null,null,null,null,null,null,null,null,1]
[null,null,null,null,null,null,null,null,null,null,null,null,null,null,null,null,null,1]
[null,null,null,null,null,null,null,null,null,null,null,null,null,null,null,null,null,1]
[null,null,null,null,null,null,null,null,null,null,null,null,null,null,null,null,null,1]
[null,null,null,null,null,null,null,null,null,null,null,null,null,null,null,null,null,1]
[null,null,null,null,null,null,null,null,null,null,null,null,null,null,null,null,null,1]
[null,null,null,null,null,null,null,null,null,null,null,null,null,null,null,null,null,1]
[null,null,null,null,null,null,null,null,null,null,null,null,null,null,null,null,null,1]
[null,null,null,null,null,null,null,null,null,null,null,null,null,null,null,null,null,1]
[null,null,null,null,null,null,null,null,null,null,null,null,null,null,null,null,null,1]
[null,null,null,null,null,null,null,null,null,null,null,null,null,null,null,null,null,1]
[null,null,null,null,null,null,null,null,null,null,null,null,null,null,null,null,null,1]
[null,null,null,null,null,null,null,null,null,null,null,null,null,null,null,null,null,1]
[null,null,null,null,null,null,null,null,null,null,null,null,null,null,null,null,null,1]
[null,null,null,null,null,null,null,null,null,null,null,null,null,null,null,null,null,1]
[null,null,null,null,null,null,null,null,null,null,null,null,null,null,null,null,null,{"$f":"IF(R962= \"\", 1, IF(Q962= \"\",IF(ISNUMBER(R962)=FALSE, 0, R962), IF(ISNUMBER(R962)=FALSE, 0, R962) + 1))","v":1}]
[null,null,null,null,null,null,null,null,null,null,null,null,null,null,null,null,null,1]
[null,null,null,null,null,null,null,null,null,null,null,null,null,null,null,null,null,1]
[null,null,null,null,null,null,null,null,null,null,null,null,null,null,null,null,null,1]
[null,null,null,null,null,null,null,null,null,null,null,null,null,null,null,null,null,1]
[null,null,null,null,null,null,null,null,null,null,null,null,null,null,null,null,null,1]
[null,null,null,null,null,null,null,null,null,null,null,null,null,null,null,null,null,1]
[null,null,null,null,null,null,null,null,null,null,null,null,null,null,null,null,null,1]
[null,null,null,null,null,null,null,null,null,null,null,null,null,null,null,null,null,1]
[null,null,null,null,null,null,null,null,null,null,null,null,null,null,null,null,null,1]
[null,null,null,null,null,null,null,null,null,null,null,null,null,null,null,null,null,1]
[null,null,null,null,null,null,null,null,null,null,null,null,null,null,null,null,null,1]
[null,null,null,null,null,null,null,null,null,null,null,null,null,null,null,null,null,1]
[null,null,null,null,null,null,null,null,null,null,null,null,null,null,null,null,null,1]
[null,null,null,null,null,null,null,null,null,null,null,null,null,null,null,null,null,1]
[null,null,null,null,null,null,null,null,null,null,null,null,null,null,null,null,null,1]
[null,null,null,null,null,null,null,null,null,null,null,null,null,null,null,null,null,1]
[null,null,null,null,null,null,null,null,null,null,null,null,null,null,null,null,null,1]
[null,null,null,null,null,null,null,null,null,null,null,null,null,null,null,null,null,1]
[null,null,null,null,null,null,null,null,null,null,null,null,null,null,null,null,null,1]
[null,null,null,null,null,null,null,null,null,null,null,null,null,null,null,null,null,1]
[null,null,null,null,null,null,null,null,null,null,null,null,null,null,null,null,null,1]
[null,null,null,null,null,null,null,null,null,null,null,null,null,null,null,null,null,1]
[null,null,null,null,null,null,null,null,null,null,null,null,null,null,null,null,null,1]
[null,null,null,null,null,null,null,null,null,null,null,null,null,null,null,null,null,1]
[null,null,null,null,null,null,null,null,null,null,null,null,null,null,null,null,null,1]
[null,null,null,null,null,null,null,null,null,null,null,null,null,null,null,null,null,1]
[null,null,null,null,null,null,null,null,null,null,null,null,null,null,null,null,null,1]
[null,null,null,null,null,null,null,null,null,null,null,null,null,null,null,null,null,1]
[null,null,null,null,null,null,null,null,null,null,null,null,null,null,null,null,null,1]
[null,null,null,null,null,null,null,null,null,null,null,null,null,null,null,null,null,1]
[null,null,null,null,null,null,null,null,null,null,null,null,null,null,null,null,null,1]
[null,null,null,null,null,null,null,null,null,null,null,null,null,null,null,null,null,1]
[null,null,null,null,null,null,null,null,null,null,null,null,null,null,null,null,null,1]
[null,null,null,null,null,null,null,null,null,null,null,null,null,null,null,null,null,1]
[null,null,null,null,null,null,null,null,null,null,null,null,null,null,null,null,null,1]
[null,null,null,null,null,null,null,null,null,null,null,null,null,null,null,null,null,1]
[null,null,null,null,null,null,null,null,null,null,null,null,null,null,null,null,null,1]
[null,null,null,null,null,null,null,null,null,null,null,null,null,null,null,null,null,1]
[null,null,null,null,null,null,null,null,null,null,null,null,null,null,null,null,null,1]
[null,null,null,null,null,null,null,null,null,null,null,null,null,null,null,null,null,1]
[null,null,null,null,null,null,null,null,null,null,null,null,null,null,null,null,null,1]
[null,null,null,null,null,null,null,null,null,null,null,null,null,null,null,null,null,1]
[null,null,null,null,null,null,null,null,null,null,null,null,null,null,null,null,null,1]
[null,null,null,null,null,null,null,null,null,null,null,null,null,null,null,null,null,1]
[null,null,null,null,null,null,null,null,null,null,null,null,null,null,null,null,null,1]
[null,null,null,null,null,null,null,null,null,null,null,null,null,null,null,null,null,1]
[null,null,null,null,null,null,null,null,null,null,null,null,null,null,null,null,null,1]
[null,null,null,null,null,null,null,null,null,null,null,null,null,null,null,null,null,1]
[null,null,null,null,null,null,null,null,null,null,null,null,null,null,null,null,null,1]
[null,null,null,null,null,null,null,null,null,null,null,null,null,null,null,null,null,1]
[null,null,null,null,null,null,null,null,null,null,null,null,null,null,null,null,null,1]
[null,null,null,null,null,null,null,null,null,null,null,null,null,null,null,null,null,1]
[null,null,null,null,null,null,null,null,null,null,null,null,null,null,null,null,null,1]
[null,null,null,null,null,null,null,null,null,null,null,null,null,null,null,null,null,1]
[null,null,null,null,null,null,null,null,null,null,null,null,null,null,null,null,null,1]
[null,null,null,null,null,null,null,null,null,null,null,null,null,null,null,null,null,1]
[null,null,null,null,null,null,null,null,null,null,null,null,null,null,null,null,null,1]
[null,null,null,null,null,null,null,null,null,null,null,null,null,null,null,null,null,1]
[null,null,null,null,null,null,null,null,null,null,null,null,null,null,null,null,null,1]
[null,null,null,null,null,null,null,null,null,null,null,null,null,null,null,null,null,1]
[null,null,null,null,null,null,null,null,null,null,null,null,null,null,null,null,null,1]
[null,null,null,null,null,null,null,null,null,null,null,null,null,null,null,null,null,1]
[null,null,null,null,null,null,null,null,null,null,null,null,null,null,null,null,null,1]
[null,null,null,null,null,null,null,null,null,null,null,null,null,null,null,null,null,{"$f":"IF(R1026= \"\", 1, IF(Q1026= \"\",IF(ISNUMBER(R1026)=FALSE, 0, R1026), IF(ISNUMBER(R1026)=FALSE, 0, R1026) + 1))","v":1}]
[null,null,null,null,null,null,null,null,null,null,null,null,null,null,null,null,null,1]
[null,null,null,null,null,null,null,null,null,null,null,null,null,null,null,null,null,1]
[null,null,null,null,null,null,null,null,null,null,null,null,null,null,null,null,null,1]
[null,null,null,null,null,null,null,null,null,null,null,null,null,null,null,null,null,1]
[null,null,null,null,null,null,null,null,null,null,null,null,null,null,null,null,null,1]
[null,null,null,null,null,null,null,null,null,null,null,null,null,null,null,null,null,1]
[null,null,null,null,null,null,null,null,null,null,null,null,null,null,null,null,null,1]
[null,null,null,null,null,null,null,null,null,null,null,null,null,null,null,null,null,1]
[null,null,null,null,null,null,null,null,null,null,null,null,null,null,null,null,null,1]
[null,null,null,null,null,null,null,null,null,null,null,null,null,null,null,null,null,1]
[null,null,null,null,null,null,null,null,null,null,null,null,null,null,null,null,null,1]
[null,null,null,null,null,null,null,null,null,null,null,null,null,null,null,null,null,1]
[null,null,null,null,null,null,null,null,null,null,null,null,null,null,null,null,null,1]
[null,null,null,null,null,null,null,null,null,null,null,null,null,null,null,null,null,1]
[null,null,null,null,null,null,null,null,null,null,null,null,null,null,null,null,null,1]
[null,null,null,null,null,null,null,null,null,null,null,null,null,null,null,null,null,1]
[null,null,null,null,null,null,null,null,null,null,null,null,null,null,null,null,null,1]
[null,null,null,null,null,null,null,null,null,null,null,null,null,null,null,null,null,1]
[null,null,null,null,null,null,null,null,null,null,null,null,null,null,null,null,null,1]
[null,null,null,null,null,null,null,null,null,null,null,null,null,null,null,null,null,1]
[null,null,null,null,null,null,null,null,null,null,null,null,null,null,null,null,null,1]
[null,null,null,null,null,null,null,null,null,null,null,null,null,null,null,null,null,1]
[null,null,null,null,null,null,null,null,null,null,null,null,null,null,null,null,null,1]
[null,null,null,null,null,null,null,null,null,null,null,null,null,null,null,null,null,1]
[null,null,null,null,null,null,null,null,null,null,null,null,null,null,null,null,null,1]
[null,null,null,null,null,null,null,null,null,null,null,null,null,null,null,null,null,1]
[null,null,null,null,null,null,null,null,null,null,null,null,null,null,null,null,null,1]
[null,null,null,null,null,null,null,null,null,null,null,null,null,null,null,null,null,1]
[null,null,null,null,null,null,null,null,null,null,null,null,null,null,null,null,null,1]
[null,null,null,null,null,null,null,null,null,null,null,null,null,null,null,null,null,1]
[null,null,null,null,null,null,null,null,null,null,null,null,null,null,null,null,null,1]
[null,null,null,null,null,null,null,null,null,null,null,null,null,null,null,null,null,1]
[null,null,null,null,null,null,null,null,null,null,null,null,null,null,null,null,null,1]
[null,null,null,null,null,null,null,null,null,null,null,null,null,null,null,null,null,1]
[null,null,null,null,null,null,null,null,null,null,null,null,null,null,null,null,null,1]
[null,null,null,null,null,null,null,null,null,null,null,null,null,null,null,null,null,1]
[null,null,null,null,null,null,null,null,null,null,null,null,null,null,null,null,null,1]
[null,null,null,null,null,null,null,null,null,null,null,null,null,null,null,null,null,1]
[null,null,null,null,null,null,null,null,null,null,null,null,null,null,null,null,null,1]
[null,null,null,null,null,null,null,null,null,null,null,null,null,null,null,null,null,1]
[null,null,null,null,null,null,null,null,null,null,null,null,null,null,null,null,null,1]
[null,null,null,null,null,null,null,null,null,null,null,null,null,null,null,null,null,1]
[null,null,null,null,null,null,null,null,null,null,null,null,null,null,null,null,null,1]
[null,null,null,null,null,null,null,null,null,null,null,null,null,null,null,null,null,1]
[null,null,null,null,null,null,null,null,null,null,null,null,null,null,null,null,null,1]
[null,null,null,null,null,null,null,null,null,null,null,null,null,null,null,null,null,1]
[null,null,null,null,null,null,null,null,null,null,null,null,null,null,null,null,null,1]
[null,null,null,null,null,null,null,null,null,null,null,null,null,null,null,null,null,1]
[null,null,null,null,null,null,null,null,null,null,null,null,null,null,null,null,null,1]
[null,null,null,null,null,null,null,null,null,null,null,null,null,null,null,null,null,1]
[null,null,null,null,null,null,null,null,null,null,null,null,null,null,null,null,null,1]
[null,null,null,null,null,null,null,null,null,null,null,null,null,null,null,null,null,1]
[null,null,null,null,null,null,null,null,null,null,null,null,null,null,null,null,null,1]
[null,null,null,null,null,null,null,null,null,null,null,null,null,null,null,null,null,1]
[null,null,null,null,null,null,null,null,null,null,null,null,null,null,null,null,null,1]
[null,null,null,null,null,null,null,null,null,null,null,null,null,null,null,null,null,1]
[null,null,null,null,null,null,null,null,null,null,null,null,null,null,null,null,null,1]
[null,null,null,null,null,null,null,null,null,null,null,null,null,null,null,null,null,1]
[null,null,null,null,null,null,null,null,null,null,null,null,null,null,null,null,null,1]
[null,null,null,null,null,null,null,null,null,null,null,null,null,null,null,null,null,1]
[null,null,null,null,null,null,null,null,null,null,null,null,null,null,null,null,null,1]
[null,null,null,null,null,null,null,null,null,null,null,null,null,null,null,null,null,1]
[null,null,null,null,null,null,null,null,null,null,null,null,null,null,null,null,null,1]
[null,null,null,null,null,null,null,null,null,null,null,null,null,null,null,null,null,{"$f":"IF(R1090= \"\", 1, IF(Q1090= \"\",IF(ISNUMBER(R1090)=FALSE, 0, R1090), IF(ISNUMBER(R1090)=FALSE, 0, R1090) + 1))","v":1}]
[null,null,null,null,null,null,null,null,null,null,null,null,null,null,null,null,null,1]
[null,null,null,null,null,null,null,null,null,null,null,null,null,null,null,null,null,1]
[null,null,null,null,null,null,null,null,null,null,null,null,null,null,null,null,null,1]
[null,null,null,null,null,null,null,null,null,null,null,null,null,null,null,null,null,1]
[null,null,null,null,null,null,null,null,null,null,null,null,null,null,null,null,null,1]
[null,null,null,null,null,null,null,null,null,null,null,null,null,null,null,null,null,1]
[null,null,null,null,null,null,null,null,null,null,null,null,null,null,null,null,null,1]
[null,null,null,null,null,null,null,null,null,null,null,null,null,null,null,null,null,1]
[null,null,null,null,null,null,null,null,null,null,null,null,null,null,null,null,null,1]
[null,null,null,null,null,null,null,null,null,null,null,null,null,null,null,null,null,1]
[null,null,null,null,null,null,null,null,null,null,null,null,null,null,null,null,null,1]
[null,null,null,null,null,null,null,null,null,null,null,null,null,null,null,null,null,1]
[null,null,null,null,null,null,null,null,null,null,null,null,null,null,null,null,null,1]
[null,null,null,null,null,null,null,null,null,null,null,null,null,null,null,null,null,1]
[null,null,null,null,null,null,null,null,null,null,null,null,null,null,null,null,null,1]
[null,null,null,null,null,null,null,null,null,null,null,null,null,null,null,null,null,1]
[null,null,null,null,null,null,null,null,null,null,null,null,null,null,null,null,null,1]
[null,null,null,null,null,null,null,null,null,null,null,null,null,null,null,null,null,1]
[null,null,null,null,null,null,null,null,null,null,null,null,null,null,null,null,null,1]
[null,null,null,null,null,null,null,null,null,null,null,null,null,null,null,null,null,1]
[null,null,null,null,null,null,null,null,null,null,null,null,null,null,null,null,null,1]
[null,null,null,null,null,null,null,null,null,null,null,null,null,null,null,null,null,1]
[null,null,null,null,null,null,null,null,null,null,null,null,null,null,null,null,null,1]
[null,null,null,null,null,null,null,null,null,null,null,null,null,null,null,null,null,1]
[null,null,null,null,null,null,null,null,null,null,null,null,null,null,null,null,null,1]
[null,null,null,null,null,null,null,null,null,null,null,null,null,null,null,null,null,1]
[null,null,null,null,null,null,null,null,null,null,null,null,null,null,null,null,null,1]
[null,null,null,null,null,null,null,null,null,null,null,null,null,null,null,null,null,1]
[null,null,null,null,null,null,null,null,null,null,null,null,null,null,null,null,null,1]
[null,null,null,null,null,null,null,null,null,null,null,null,null,null,null,null,null,1]
[null,null,null,null,null,null,null,null,null,null,null,null,null,null,null,null,null,1]
[null,null,null,null,null,null,null,null,null,null,null,null,null,null,null,null,null,1]
[null,null,null,null,null,null,null,null,null,null,null,null,null,null,null,null,null,1]
[null,null,null,null,null,null,null,null,null,null,null,null,null,null,null,null,null,1]
[null,null,null,null,null,null,null,null,null,null,null,null,null,null,null,null,null,1]
[null,null,null,null,null,null,null,null,null,null,null,null,null,null,null,null,null,1]
[null,null,null,null,null,null,null,null,null,null,null,null,null,null,null,null,null,1]
[null,null,null,null,null,null,null,null,null,null,null,null,null,null,null,null,null,1]
[null,null,null,null,null,null,null,null,null,null,null,null,null,null,null,null,null,1]
[null,null,null,null,null,null,null,null,null,null,null,null,null,null,null,null,null,1]
[null,null,null,null,null,null,null,null,null,null,null,null,null,null,null,null,null,1]
[null,null,null,null,null,null,null,null,null,null,null,null,null,null,null,null,null,1]
[null,null,null,null,null,null,null,null,null,null,null,null,null,null,null,null,null,1]
[null,null,null,null,null,null,null,null,null,null,null,null,null,null,null,null,null,1]
[null,null,null,null,null,null,null,null,null,null,null,null,null,null,null,null,null,1]
[null,null,null,null,null,null,null,null,null,null,null,null,null,null,null,null,null,1]
[null,null,null,null,null,null,null,null,null,null,null,null,null,null,null,null,null,1]
[null,null,null,null,null,null,null,null,null,null,null,null,null,null,null,null,null,1]
[null,null,null,null,null,null,null,null,null,null,null,null,null,null,null,null,null,1]
[null,null,null,null,null,null,null,null,null,null,null,null,null,null,null,null,null,1]
[null,null,null,null,null,null,null,null,null,null,null,null,null,null,null,null,null,1]
[null,null,null,null,null,null,null,null,null,null,null,null,null,null,null,null,null,1]
[null,null,null,null,null,null,null,null,null,null,null,null,null,null,null,null,null,1]
[null,null,null,null,null,null,null,null,null,null,null,null,null,null,null,null,null,1]
[null,null,null,null,null,null,null,null,null,null,null,null,null,null,null,null,null,1]
[null,null,null,null,null,null,null,null,null,null,null,null,null,null,null,null,null,1]
[null,null,null,null,null,null,null,null,null,null,null,null,null,null,null,null,null,1]
[null,null,null,null,null,null,null,null,null,null,null,null,null,null,null,null,null,1]
[null,null,null,null,null,null,null,null,null,null,null,null,null,null,null,null,null,1]
[null,null,null,null,null,null,null,null,null,null,null,null,null,null,null,null,null,1]
[null,null,null,null,null,null,null,null,null,null,null,null,null,null,null,null,null,1]
[null,null,null,null,null,null,null,null,null,null,null,null,null,null,null,null,null,1]
[null,null,null,null,null,null,null,null,null,null,null,null,null,null,null,null,null,1]
[null,null,null,null,null,null,null,null,null,null,null,null,null,null,null,null,null,{"$f":"IF(R1154= \"\", 1, IF(Q1154= \"\",IF(ISNUMBER(R1154)=FALSE, 0, R1154), IF(ISNUMBER(R1154)=FALSE, 0, R1154) + 1))","v":1}]
[null,null,null,null,null,null,null,null,null,null,null,null,null,null,null,null,null,1]
[null,null,null,null,null,null,null,null,null,null,null,null,null,null,null,null,null,1]
[null,null,null,null,null,null,null,null,null,null,null,null,null,null,null,null,null,1]
[null,null,null,null,null,null,null,null,null,null,null,null,null,null,null,null,null,1]
[null,null,null,null,null,null,null,null,null,null,null,null,null,null,null,null,null,1]
[null,null,null,null,null,null,null,null,null,null,null,null,null,null,null,null,null,1]
[null,null,null,null,null,null,null,null,null,null,null,null,null,null,null,null,null,1]
[null,null,null,null,null,null,null,null,null,null,null,null,null,null,null,null,null,1]
[null,null,null,null,null,null,null,null,null,null,null,null,null,null,null,null,null,1]
[null,null,null,null,null,null,null,null,null,null,null,null,null,null,null,null,null,1]
[null,null,null,null,null,null,null,null,null,null,null,null,null,null,null,null,null,1]
[null,null,null,null,null,null,null,null,null,null,null,null,null,null,null,null,null,1]
[null,null,null,null,null,null,null,null,null,null,null,null,null,null,null,null,null,1]
[null,null,null,null,null,null,null,null,null,null,null,null,null,null,null,null,null,1]
[null,null,null,null,null,null,null,null,null,null,null,null,null,null,null,null,null,1]
[null,null,null,null,null,null,null,null,null,null,null,null,null,null,null,null,null,1]
[null,null,null,null,null,null,null,null,null,null,null,null,null,null,null,null,null,1]
[null,null,null,null,null,null,null,null,null,null,null,null,null,null,null,null,null,1]
[null,null,null,null,null,null,null,null,null,null,null,null,null,null,null,null,null,1]
[null,null,null,null,null,null,null,null,null,null,null,null,null,null,null,null,null,1]
[null,null,null,null,null,null,null,null,null,null,null,null,null,null,null,null,null,1]
[null,null,null,null,null,null,null,null,null,null,null,null,null,null,null,null,null,1]
[null,null,null,null,null,null,null,null,null,null,null,null,null,null,null,null,null,1]
[null,null,null,null,null,null,null,null,null,null,null,null,null,null,null,null,null,1]
[null,null,null,null,null,null,null,null,null,null,null,null,null,null,null,null,null,1]
[null,null,null,null,null,null,null,null,null,null,null,null,null,null,null,null,null,1]
[null,null,null,null,null,null,null,null,null,null,null,null,null,null,null,null,null,1]
[null,null,null,null,null,null,null,null,null,null,null,null,null,null,null,null,null,1]
[null,null,null,null,null,null,null,null,null,null,null,null,null,null,null,null,null,1]
[null,null,null,null,null,null,null,null,null,null,null,null,null,null,null,null,null,1]
[null,null,null,null,null,null,null,null,null,null,null,null,null,null,null,null,null,1]
[null,null,null,null,null,null,null,null,null,null,null,null,null,null,null,null,null,1]
[null,null,null,null,null,null,null,null,null,null,null,null,null,null,null,null,null,1]
[null,null,null,null,null,null,null,null,null,null,null,null,null,null,null,null,null,1]
[null,null,null,null,null,null,null,null,null,null,null,null,null,null,null,null,null,1]
[null,null,null,null,null,null,null,null,null,null,null,null,null,null,null,null,null,1]
[null,null,null,null,null,null,null,null,null,null,null,null,null,null,null,null,null,1]
[null,null,null,null,null,null,null,null,null,null,null,null,null,null,null,null,null,1]
[null,null,null,null,null,null,null,null,null,null,null,null,null,null,null,null,null,1]
[null,null,null,null,null,null,null,null,null,null,null,null,null,null,null,null,null,1]
[null,null,null,null,null,null,null,null,null,null,null,null,null,null,null,null,null,1]
[null,null,null,null,null,null,null,null,null,null,null,null,null,null,null,null,null,1]
[null,null,null,null,null,null,null,null,null,null,null,null,null,null,null,null,null,1]
[null,null,null,null,null,null,null,null,null,null,null,null,null,null,null,null,null,1]
[null,null,null,null,null,null,null,null,null,null,null,null,null,null,null,null,null,1]
[null,null,null,null,null,null,null,null,null,null,null,null,null,null,null,null,null,1]
[null,null,null,null,null,null,null,null,null,null,null,null,null,null,null,null,null,1]
[null,null,null,null,null,null,null,null,null,null,null,null,null,null,null,null,null,1]
[null,null,null,null,null,null,null,null,null,null,null,null,null,null,null,null,null,1]
[null,null,null,null,null,null,null,null,null,null,null,null,null,null,null,null,null,1]
[null,null,null,null,null,null,null,null,null,null,null,null,null,null,null,null,null,1]
[null,null,null,null,null,null,null,null,null,null,null,null,null,null,null,null,null,1]
[null,null,null,null,null,null,null,null,null,null,null,null,null,null,null,null,null,1]
[null,null,null,null,null,null,null,null,null,null,null,null,null,null,null,null,null,1]
[null,null,null,null,null,null,null,null,null,null,null,null,null,null,null,null,null,1]
[null,null,null,null,null,null,null,null,null,null,null,null,null,null,null,null,null,1]
[null,null,null,null,null,null,null,null,null,null,null,null,null,null,null,null,null,1]
[null,null,null,null,null,null,null,null,null,null,null,null,null,null,null,null,null,1]
[null,null,null,null,null,null,null,null,null,null,null,null,null,null,null,null,null,1]
[null,null,null,null,null,null,null,null,null,null,null,null,null,null,null,null,null,1]
[null,null,null,null,null,null,null,null,null,null,null,null,null,null,null,null,null,1]
[null,null,null,null,null,null,null,null,null,null,null,null,null,null,null,null,null,1]
[null,null,null,null,null,null,null,null,null,null,null,null,null,null,null,null,null,1]
[null,null,null,null,null,null,null,null,null,null,null,null,null,null,null,null,null,{"$f":"IF(R1218= \"\", 1, IF(Q1218= \"\",IF(ISNUMBER(R1218)=FALSE, 0, R1218), IF(ISNUMBER(R1218)=FALSE, 0, R1218) + 1))","v":1}]
[null,null,null,null,null,null,null,null,null,null,null,null,null,null,null,null,null,1]
[null,null,null,null,null,null,null,null,null,null,null,null,null,null,null,null,null,1]
[null,null,null,null,null,null,null,null,null,null,null,null,null,null,null,null,null,1]
[null,null,null,null,null,null,null,null,null,null,null,null,null,null,null,null,null,1]
[null,null,null,null,null,null,null,null,null,null,null,null,null,null,null,null,null,1]
[null,null,null,null,null,null,null,null,null,null,null,null,null,null,null,null,null,1]
[null,null,null,null,null,null,null,null,null,null,null,null,null,null,null,null,null,1]
[null,null,null,null,null,null,null,null,null,null,null,null,null,null,null,null,null,1]
[null,null,null,null,null,null,null,null,null,null,null,null,null,null,null,null,null,1]
[null,null,null,null,null,null,null,null,null,null,null,null,null,null,null,null,null,1]
[null,null,null,null,null,null,null,null,null,null,null,null,null,null,null,null,null,1]
[null,null,null,null,null,null,null,null,null,null,null,null,null,null,null,null,null,1]
[null,null,null,null,null,null,null,null,null,null,null,null,null,null,null,null,null,1]
[null,null,null,null,null,null,null,null,null,null,null,null,null,null,null,null,null,1]
[null,null,null,null,null,null,null,null,null,null,null,null,null,null,null,null,null,1]
[null,null,null,null,null,null,null,null,null,null,null,null,null,null,null,null,null,1]
[null,null,null,null,null,null,null,null,null,null,null,null,null,null,null,null,null,1]
[null,null,null,null,null,null,null,null,null,null,null,null,null,null,null,null,null,1]
[null,null,null,null,null,null,null,null,null,null,null,null,null,null,null,null,null,1]
[null,null,null,null,null,null,null,null,null,null,null,null,null,null,null,null,null,1]
[null,null,null,null,null,null,null,null,null,null,null,null,null,null,null,null,null,1]
[null,null,null,null,null,null,null,null,null,null,null,null,null,null,null,null,null,1]
[null,null,null,null,null,null,null,null,null,null,null,null,null,null,null,null,null,1]
[null,null,null,null,null,null,null,null,null,null,null,null,null,null,null,null,null,1]
[null,null,null,null,null,null,null,null,null,null,null,null,null,null,null,null,null,1]
[null,null,null,null,null,null,null,null,null,null,null,null,null,null,null,null,null,1]
[null,null,null,null,null,null,null,null,null,null,null,null,null,null,null,null,null,1]
[null,null,null,null,null,null,null,null,null,null,null,null,null,null,null,null,null,1]
[null,null,null,null,null,null,null,null,null,null,null,null,null,null,null,null,null,1]
[null,null,null,null,null,null,null,null,null,null,null,null,null,null,null,null,null,1]
[null,null,null,null,null,null,null,null,null,null,null,null,null,null,null,null,null,1]
[null,null,null,null,null,null,null,null,null,null,null,null,null,null,null,null,null,1]
[null,null,null,null,null,null,null,null,null,null,null,null,null,null,null,null,null,1]
[null,null,null,null,null,null,null,null,null,null,null,null,null,null,null,null,null,1]
[null,null,null,null,null,null,null,null,null,null,null,null,null,null,null,null,null,1]
[null,null,null,null,null,null,null,null,null,null,null,null,null,null,null,null,null,1]
[null,null,null,null,null,null,null,null,null,null,null,null,null,null,null,null,null,1]
[null,null,null,null,null,null,null,null,null,null,null,null,null,null,null,null,null,1]
[null,null,null,null,null,null,null,null,null,null,null,null,null,null,null,null,null,1]
[null,null,null,null,null,null,null,null,null,null,null,null,null,null,null,null,null,1]
[null,null,null,null,null,null,null,null,null,null,null,null,null,null,null,null,null,1]
[null,null,null,null,null,null,null,null,null,null,null,null,null,null,null,null,null,1]
[null,null,null,null,null,null,null,null,null,null,null,null,null,null,null,null,null,1]
[null,null,null,null,null,null,null,null,null,null,null,null,null,null,null,null,null,1]
[null,null,null,null,null,null,null,null,null,null,null,null,null,null,null,null,null,1]
[null,null,null,null,null,null,null,null,null,null,null,null,null,null,null,null,null,1]
[null,null,null,null,null,null,null,null,null,null,null,null,null,null,null,null,null,1]
[null,null,null,null,null,null,null,null,null,null,null,null,null,null,null,null,null,1]
[null,null,null,null,null,null,null,null,null,null,null,null,null,null,null,null,null,1]
[null,null,null,null,null,null,null,null,null,null,null,null,null,null,null,null,null,1]
[null,null,null,null,null,null,null,null,null,null,null,null,null,null,null,null,null,1]
[null,null,null,null,null,null,null,null,null,null,null,null,null,null,null,null,null,1]
[null,null,null,null,null,null,null,null,null,null,null,null,null,null,null,null,null,1]
[null,null,null,null,null,null,null,null,null,null,null,null,null,null,null,null,null,1]
[null,null,null,null,null,null,null,null,null,null,null,null,null,null,null,null,null,1]
[null,null,null,null,null,null,null,null,null,null,null,null,null,null,null,null,null,1]
[null,null,null,null,null,null,null,null,null,null,null,null,null,null,null,null,null,1]
[null,null,null,null,null,null,null,null,null,null,null,null,null,null,null,null,null,1]
[null,null,null,null,null,null,null,null,null,null,null,null,null,null,null,null,null,1]
[null,null,null,null,null,null,null,null,null,null,null,null,null,null,null,null,null,1]
[null,null,null,null,null,null,null,null,null,null,null,null,null,null,null,null,null,1]
[null,null,null,null,null,null,null,null,null,null,null,null,null,null,null,null,null,1]
[null,null,null,null,null,null,null,null,null,null,null,null,null,null,null,null,null,1]
[null,null,null,null,null,null,null,null,null,null,null,null,null,null,null,null,null,{"$f":"IF(R1282= \"\", 1, IF(Q1282= \"\",IF(ISNUMBER(R1282)=FALSE, 0, R1282), IF(ISNUMBER(R1282)=FALSE, 0, R1282) + 1))","v":1}]
[null,null,null,null,null,null,null,null,null,null,null,null,null,null,null,null,null,1]
[null,null,null,null,null,null,null,null,null,null,null,null,null,null,null,null,null,1]
[null,null,null,null,null,null,null,null,null,null,null,null,null,null,null,null,null,1]
[null,null,null,null,null,null,null,null,null,null,null,null,null,null,null,null,null,1]
[null,null,null,null,null,null,null,null,null,null,null,null,null,null,null,null,null,1]
[null,null,null,null,null,null,null,null,null,null,null,null,null,null,null,null,null,1]
[null,null,null,null,null,null,null,null,null,null,null,null,null,null,null,null,null,1]
[null,null,null,null,null,null,null,null,null,null,null,null,null,null,null,null,null,1]
[null,null,null,null,null,null,null,null,null,null,null,null,null,null,null,null,null,1]
[null,null,null,null,null,null,null,null,null,null,null,null,null,null,null,null,null,1]
[null,null,null,null,null,null,null,null,null,null,null,null,null,null,null,null,null,1]
[null,null,null,null,null,null,null,null,null,null,null,null,null,null,null,null,null,1]
[null,null,null,null,null,null,null,null,null,null,null,null,null,null,null,null,null,1]
[null,null,null,null,null,null,null,null,null,null,null,null,null,null,null,null,null,1]
[null,null,null,null,null,null,null,null,null,null,null,null,null,null,null,null,null,1]
[null,null,null,null,null,null,null,null,null,null,null,null,null,null,null,null,null,1]
[null,null,null,null,null,null,null,null,null,null,null,null,null,null,null,null,null,1]
[null,null,null,null,null,null,null,null,null,null,null,null,null,null,null,null,null,1]
[null,null,null,null,null,null,null,null,null,null,null,null,null,null,null,null,null,1]
[null,null,null,null,null,null,null,null,null,null,null,null,null,null,null,null,null,1]
[null,null,null,null,null,null,null,null,null,null,null,null,null,null,null,null,null,1]
[null,null,null,null,null,null,null,null,null,null,null,null,null,null,null,null,null,1]
[null,null,null,null,null,null,null,null,null,null,null,null,null,null,null,null,null,1]
[null,null,null,null,null,null,null,null,null,null,null,null,null,null,null,null,null,1]
[null,null,null,null,null,null,null,null,null,null,null,null,null,null,null,null,null,1]
[null,null,null,null,null,null,null,null,null,null,null,null,null,null,null,null,null,1]
[null,null,null,null,null,null,null,null,null,null,null,null,null,null,null,null,null,1]
[null,null,null,null,null,null,null,null,null,null,null,null,null,null,null,null,null,1]
[null,null,null,null,null,null,null,null,null,null,null,null,null,null,null,null,null,1]
[null,null,null,null,null,null,null,null,null,null,null,null,null,null,null,null,null,1]
[null,null,null,null,null,null,null,null,null,null,null,null,null,null,null,null,null,1]
[null,null,null,null,null,null,null,null,null,null,null,null,null,null,null,null,null,1]
[null,null,null,null,null,null,null,null,null,null,null,null,null,null,null,null,null,1]
[null,null,null,null,null,null,null,null,null,null,null,null,null,null,null,null,null,1]
[null,null,null,null,null,null,null,null,null,null,null,null,null,null,null,null,null,1]
[null,null,null,null,null,null,null,null,null,null,null,null,null,null,null,null,null,1]
[null,null,null,null,null,null,null,null,null,null,null,null,null,null,null,null,null,1]
[null,null,null,null,null,null,null,null,null,null,null,null,null,null,null,null,null,1]
[null,null,null,null,null,null,null,null,null,null,null,null,null,null,null,null,null,1]
[null,null,null,null,null,null,null,null,null,null,null,null,null,null,null,null,null,1]
[null,null,null,null,null,null,null,null,null,null,null,null,null,null,null,null,null,1]
[null,null,null,null,null,null,null,null,null,null,null,null,null,null,null,null,null,1]
[null,null,null,null,null,null,null,null,null,null,null,null,null,null,null,null,null,1]
[null,null,null,null,null,null,null,null,null,null,null,null,null,null,null,null,null,1]
[null,null,null,null,null,null,null,null,null,null,null,null,null,null,null,null,null,1]
[null,null,null,null,null,null,null,null,null,null,null,null,null,null,null,null,null,1]
[null,null,null,null,null,null,null,null,null,null,null,null,null,null,null,null,null,1]
[null,null,null,null,null,null,null,null,null,null,null,null,null,null,null,null,null,1]
[null,null,null,null,null,null,null,null,null,null,null,null,null,null,null,null,null,1]
[null,null,null,null,null,null,null,null,null,null,null,null,null,null,null,null,null,1]
[null,null,null,null,null,null,null,null,null,null,null,null,null,null,null,null,null,1]
[null,null,null,null,null,null,null,null,null,null,null,null,null,null,null,null,null,1]
[null,null,null,null,null,null,null,null,null,null,null,null,null,null,null,null,null,1]
[null,null,null,null,null,null,null,null,null,null,null,null,null,null,null,null,null,1]
[null,null,null,null,null,null,null,null,null,null,null,null,null,null,null,null,null,1]
[null,null,null,null,null,null,null,null,null,null,null,null,null,null,null,null,null,1]
[null,null,null,null,null,null,null,null,null,null,null,null,null,null,null,null,null,1]
[null,null,null,null,null,null,null,null,null,null,null,null,null,null,null,null,null,1]
[null,null,null,null,null,null,null,null,null,null,null,null,null,null,null,null,null,1]
[null,null,null,null,null,null,null,null,null,null,null,null,null,null,null,null,null,1]
[null,null,null,null,null,null,null,null,null,null,null,null,null,null,null,null,null,1]
[null,null,null,null,null,null,null,null,null,null,null,null,null,null,null,null,null,1]
[null,null,null,null,null,null,null,null,null,null,null,null,null,null,null,null,null,1]
[null,null,null,null,null,null,null,null,null,null,null,null,null,null,null,null,null,{"$f":"IF(R1346= \"\", 1, IF(Q1346= \"\",IF(ISNUMBER(R1346)=FALSE, 0, R1346), IF(ISNUMBER(R1346)=FALSE, 0, R1346) + 1))","v":1}]
[null,null,null,null,null,null,null,null,null,null,null,null,null,null,null,null,null,1]
[null,null,null,null,null,null,null,null,null,null,null,null,null,null,null,null,null,1]
[null,null,null,null,null,null,null,null,null,null,null,null,null,null,null,null,null,1]
[null,null,null,null,null,null,null,null,null,null,null,null,null,null,null,null,null,1]
[null,null,null,null,null,null,null,null,null,null,null,null,null,null,null,null,null,1]
[null,null,null,null,null,null,null,null,null,null,null,null,null,null,null,null,null,1]
[null,null,null,null,null,null,null,null,null,null,null,null,null,null,null,null,null,1]
[null,null,null,null,null,null,null,null,null,null,null,null,null,null,null,null,null,1]
[null,null,null,null,null,null,null,null,null,null,null,null,null,null,null,null,null,1]
[null,null,null,null,null,null,null,null,null,null,null,null,null,null,null,null,null,1]
[null,null,null,null,null,null,null,null,null,null,null,null,null,null,null,null,null,1]
[null,null,null,null,null,null,null,null,null,null,null,null,null,null,null,null,null,1]
[null,null,null,null,null,null,null,null,null,null,null,null,null,null,null,null,null,1]
[null,null,null,null,null,null,null,null,null,null,null,null,null,null,null,null,null,1]
[null,null,null,null,null,null,null,null,null,null,null,null,null,null,null,null,null,1]
[null,null,null,null,null,null,null,null,null,null,null,null,null,null,null,null,null,1]
[null,null,null,null,null,null,null,null,null,null,null,null,null,null,null,null,null,1]
[null,null,null,null,null,null,null,null,null,null,null,null,null,null,null,null,null,1]
[null,null,null,null,null,null,null,null,null,null,null,null,null,null,null,null,null,1]
[null,null,null,null,null,null,null,null,null,null,null,null,null,null,null,null,null,1]
[null,null,null,null,null,null,null,null,null,null,null,null,null,null,null,null,null,1]
[null,null,null,null,null,null,null,null,null,null,null,null,null,null,null,null,null,1]
[null,null,null,null,null,null,null,null,null,null,null,null,null,null,null,null,null,1]
[null,null,null,null,null,null,null,null,null,null,null,null,null,null,null,null,null,1]
[null,null,null,null,null,null,null,null,null,null,null,null,null,null,null,null,null,1]
[null,null,null,null,null,null,null,null,null,null,null,null,null,null,null,null,null,1]
[null,null,null,null,null,null,null,null,null,null,null,null,null,null,null,null,null,1]
[null,null,null,null,null,null,null,null,null,null,null,null,null,null,null,null,null,1]
[null,null,null,null,null,null,null,null,null,null,null,null,null,null,null,null,null,1]
[null,null,null,null,null,null,null,null,null,null,null,null,null,null,null,null,null,1]
[null,null,null,null,null,null,null,null,null,null,null,null,null,null,null,null,null,1]
[null,null,null,null,null,null,null,null,null,null,null,null,null,null,null,null,null,1]
[null,null,null,null,null,null,null,null,null,null,null,null,null,null,null,null,null,1]
[null,null,null,null,null,null,null,null,null,null,null,null,null,null,null,null,null,1]
[null,null,null,null,null,null,null,null,null,null,null,null,null,null,null,null,null,1]
[null,null,null,null,null,null,null,null,null,null,null,null,null,null,null,null,null,1]
[null,null,null,null,null,null,null,null,null,null,null,null,null,null,null,null,null,1]
[null,null,null,null,null,null,null,null,null,null,null,null,null,null,null,null,null,1]
[null,null,null,null,null,null,null,null,null,null,null,null,null,null,null,null,null,1]
[null,null,null,null,null,null,null,null,null,null,null,null,null,null,null,null,null,1]
[null,null,null,null,null,null,null,null,null,null,null,null,null,null,null,null,null,1]
[null,null,null,null,null,null,null,null,null,null,null,null,null,null,null,null,null,1]
[null,null,null,null,null,null,null,null,null,null,null,null,null,null,null,null,null,1]
[null,null,null,null,null,null,null,null,null,null,null,null,null,null,null,null,null,1]
[null,null,null,null,null,null,null,null,null,null,null,null,null,null,null,null,null,1]
[null,null,null,null,null,null,null,null,null,null,null,null,null,null,null,null,null,1]
[null,null,null,null,null,null,null,null,null,null,null,null,null,null,null,null,null,1]
[null,null,null,null,null,null,null,null,null,null,null,null,null,null,null,null,null,1]
[null,null,null,null,null,null,null,null,null,null,null,null,null,null,null,null,null,1]
[null,null,null,null,null,null,null,null,null,null,null,null,null,null,null,null,null,1]
[null,null,null,null,null,null,null,null,null,null,null,null,null,null,null,null,null,1]
[null,null,null,null,null,null,null,null,null,null,null,null,null,null,null,null,null,1]
[null,null,null,null,null,null,null,null,null,null,null,null,null,null,null,null,null,1]
[null,null,null,null,null,null,null,null,null,null,null,null,null,null,null,null,null,1]
[null,null,null,null,null,null,null,null,null,null,null,null,null,null,null,null,null,1]
[null,null,null,null,null,null,null,null,null,null,null,null,null,null,null,null,null,1]
[null,null,null,null,null,null,null,null,null,null,null,null,null,null,null,null,null,1]
[null,null,null,null,null,null,null,null,null,null,null,null,null,null,null,null,null,1]
[null,null,null,null,null,null,null,null,null,null,null,null,null,null,null,null,null,1]
[null,null,null,null,null,null,null,null,null,null,null,null,null,null,null,null,null,1]
[null,null,null,null,null,null,null,null,null,null,null,null,null,null,null,null,null,1]
[null,null,null,null,null,null,null,null,null,null,null,null,null,null,null,null,null,1]
[null,null,null,null,null,null,null,null,null,null,null,null,null,null,null,null,null,1]
[null,null,null,null,null,null,null,null,null,null,null,null,null,null,null,null,null,{"$f":"IF(R1410= \"\", 1, IF(Q1410= \"\",IF(ISNUMBER(R1410)=FALSE, 0, R1410), IF(ISNUMBER(R1410)=FALSE, 0, R1410) + 1))","v":1}]
[null,null,null,null,null,null,null,null,null,null,null,null,null,null,null,null,null,1]
[null,null,null,null,null,null,null,null,null,null,null,null,null,null,null,null,null,1]
[null,null,null,null,null,null,null,null,null,null,null,null,null,null,null,null,null,1]
[null,null,null,null,null,null,null,null,null,null,null,null,null,null,null,null,null,1]
[null,null,null,null,null,null,null,null,null,null,null,null,null,null,null,null,null,1]
[null,null,null,null,null,null,null,null,null,null,null,null,null,null,null,null,null,1]
[null,null,null,null,null,null,null,null,null,null,null,null,null,null,null,null,null,1]
[null,null,null,null,null,null,null,null,null,null,null,null,null,null,null,null,null,1]
[null,null,null,null,null,null,null,null,null,null,null,null,null,null,null,null,null,1]
[null,null,null,null,null,null,null,null,null,null,null,null,null,null,null,null,null,1]
[null,null,null,null,null,null,null,null,null,null,null,null,null,null,null,null,null,1]
[null,null,null,null,null,null,null,null,null,null,null,null,null,null,null,null,null,1]
[null,null,null,null,null,null,null,null,null,null,null,null,null,null,null,null,null,1]
[null,null,null,null,null,null,null,null,null,null,null,null,null,null,null,null,null,1]
[null,null,null,null,null,null,null,null,null,null,null,null,null,null,null,null,null,1]
[null,null,null,null,null,null,null,null,null,null,null,null,null,null,null,null,null,1]
[null,null,null,null,null,null,null,null,null,null,null,null,null,null,null,null,null,1]
[null,null,null,null,null,null,null,null,null,null,null,null,null,null,null,null,null,1]
[null,null,null,null,null,null,null,null,null,null,null,null,null,null,null,null,null,1]
[null,null,null,null,null,null,null,null,null,null,null,null,null,null,null,null,null,1]
[null,null,null,null,null,null,null,null,null,null,null,null,null,null,null,null,null,1]
[null,null,null,null,null,null,null,null,null,null,null,null,null,null,null,null,null,1]
[null,null,null,null,null,null,null,null,null,null,null,null,null,null,null,null,null,1]
[null,null,null,null,null,null,null,null,null,null,null,null,null,null,null,null,null,1]
[null,null,null,null,null,null,null,null,null,null,null,null,null,null,null,null,null,1]
[null,null,null,null,null,null,null,null,null,null,null,null,null,null,null,null,null,1]
[null,null,null,null,null,null,null,null,null,null,null,null,null,null,null,null,null,1]
[null,null,null,null,null,null,null,null,null,null,null,null,null,null,null,null,null,1]
[null,null,null,null,null,null,null,null,null,null,null,null,null,null,null,null,null,1]
[null,null,null,null,null,null,null,null,null,null,null,null,null,null,null,null,null,1]
[null,null,null,null,null,null,null,null,null,null,null,null,null,null,null,null,null,1]
[null,null,null,null,null,null,null,null,null,null,null,null,null,null,null,null,null,1]
[null,null,null,null,null,null,null,null,null,null,null,null,null,null,null,null,null,1]
[null,null,null,null,null,null,null,null,null,null,null,null,null,null,null,null,null,1]
[null,null,null,null,null,null,null,null,null,null,null,null,null,null,null,null,null,1]
[null,null,null,null,null,null,null,null,null,null,null,null,null,null,null,null,null,1]
[null,null,null,null,null,null,null,null,null,null,null,null,null,null,null,null,null,1]
[null,null,null,null,null,null,null,null,null,null,null,null,null,null,null,null,null,1]
[null,null,null,null,null,null,null,null,null,null,null,null,null,null,null,null,null,1]
[null,null,null,null,null,null,null,null,null,null,null,null,null,null,null,null,null,1]
[null,null,null,null,null,null,null,null,null,null,null,null,null,null,null,null,null,1]
[null,null,null,null,null,null,null,null,null,null,null,null,null,null,null,null,null,1]
[null,null,null,null,null,null,null,null,null,null,null,null,null,null,null,null,null,1]
[null,null,null,null,null,null,null,null,null,null,null,null,null,null,null,null,null,1]
[null,null,null,null,null,null,null,null,null,null,null,null,null,null,null,null,null,1]
[null,null,null,null,null,null,null,null,null,null,null,null,null,null,null,null,null,1]
[null,null,null,null,null,null,null,null,null,null,null,null,null,null,null,null,null,1]
[null,null,null,null,null,null,null,null,null,null,null,null,null,null,null,null,null,1]
[null,null,null,null,null,null,null,null,null,null,null,null,null,null,null,null,null,1]
[null,null,null,null,null,null,null,null,null,null,null,null,null,null,null,null,null,1]
[null,null,null,null,null,null,null,null,null,null,null,null,null,null,null,null,null,1]
[null,null,null,null,null,null,null,null,null,null,null,null,null,null,null,null,null,1]
[null,null,null,null,null,null,null,null,null,null,null,null,null,null,null,null,null,1]
[null,null,null,null,null,null,null,null,null,null,null,null,null,null,null,null,null,1]
[null,null,null,null,null,null,null,null,null,null,null,null,null,null,null,null,null,1]
[null,null,null,null,null,null,null,null,null,null,null,null,null,null,null,null,null,1]
[null,null,null,null,null,null,null,null,null,null,null,null,null,null,null,null,null,1]
[null,null,null,null,null,null,null,null,null,null,null,null,null,null,null,null,null,1]
[null,null,null,null,null,null,null,null,null,null,null,null,null,null,null,null,null,1]
[null,null,null,null,null,null,null,null,null,null,null,null,null,null,null,null,null,1]
[null,null,null,null,null,null,null,null,null,null,null,null,null,null,null,null,null,1]
[null,null,null,null,null,null,null,null,null,null,null,null,null,null,null,null,null,1]
[null,null,null,null,null,null,null,null,null,null,null,null,null,null,null,null,null,1]
[null,null,null,null,null,null,null,null,null,null,null,null,null,null,null,null,null,{"$f":"IF(R1474= \"\", 1, IF(Q1474= \"\",IF(ISNUMBER(R1474)=FALSE, 0, R1474), IF(ISNUMBER(R1474)=FALSE, 0, R1474) + 1))","v":1}]
[null,null,null,null,null,null,null,null,null,null,null,null,null,null,null,null,null,1]
[null,null,null,null,null,null,null,null,null,null,null,null,null,null,null,null,null,1]
[null,null,null,null,null,null,null,null,null,null,null,null,null,null,null,null,null,1]
[null,null,null,null,null,null,null,null,null,null,null,null,null,null,null,null,null,1]
[null,null,null,null,null,null,null,null,null,null,null,null,null,null,null,null,null,1]
[null,null,null,null,null,null,null,null,null,null,null,null,null,null,null,null,null,1]
[null,null,null,null,null,null,null,null,null,null,null,null,null,null,null,null,null,1]
[null,null,null,null,null,null,null,null,null,null,null,null,null,null,null,null,null,1]
[null,null,null,null,null,null,null,null,null,null,null,null,null,null,null,null,null,1]
[null,null,null,null,null,null,null,null,null,null,null,null,null,null,null,null,null,1]
[null,null,null,null,null,null,null,null,null,null,null,null,null,null,null,null,null,1]
[null,null,null,null,null,null,null,null,null,null,null,null,null,null,null,null,null,1]
[null,null,null,null,null,null,null,null,null,null,null,null,null,null,null,null,null,1]
[null,null,null,null,null,null,null,null,null,null,null,null,null,null,null,null,null,1]
[null,null,null,null,null,null,null,null,null,null,null,null,null,null,null,null,null,1]
[null,null,null,null,null,null,null,null,null,null,null,null,null,null,null,null,null,1]
[null,null,null,null,null,null,null,null,null,null,null,null,null,null,null,null,null,1]
[null,null,null,null,null,null,null,null,null,null,null,null,null,null,null,null,null,1]
[null,null,null,null,null,null,null,null,null,null,null,null,null,null,null,null,null,1]
[null,null,null,null,null,null,null,null,null,null,null,null,null,null,null,null,null,1]
[null,null,null,null,null,null,null,null,null,null,null,null,null,null,null,null,null,1]
[null,null,null,null,null,null,null,null,null,null,null,null,null,null,null,null,null,1]
[null,null,null,null,null,null,null,null,null,null,null,null,null,null,null,null,null,1]
[null,null,null,null,null,null,null,null,null,null,null,null,null,null,null,null,null,1]
[null,null,null,null,null,null,null,null,null,null,null,null,null,null,null,null,null,1]
[null,null,null,null,null,null,null,null,null,null,null,null,null,null,null,null,null,1]

{"sheet":"Summary","index":3,"n_rows":160,"n_cols":17,"rows_kept":160,"cut":false,"hidden":true,"merged":[[151,5,151,6],[22,1,28,1],[51,1,57,1],[80,1,86,1],[109,1,115,1],[138,1,144,1],[44,1,50,1],[117,1,123,1],[124,1,130,1],[131,1,137,1],[59,1,65,1],[102,1,108,1],[1,0,29,0],[30,0,58,0],[59,0,87,0],[88,0,116,0],[151,3,151,4],[1,1,7,1],[8,1,14,1],[15,1,21,1],[30,1,36,1],[37,1,43,1],[151,0,151,1],[117,0,145,0],[66,1,72,1],[73,1,79,1],[88,1,94,1],[95,1,101,1]]}
["Strategic Direction","Type","Media Channel/Type","Time Period of Placements","Circulation Viewers Listeners","Media Impressions","Cost","Total Added Value","Value of coverage",null,{"$f":"TRIM(TRIM(MID(CELL(\"filename\",A1),SEARCH(\"]\",CELL(\"filename\",A1),1)+1,LEN(CELL(\"filename\",A1))-(SEARCH(\"]\",CELL(\"filename\",A1),1)+LEN(\"Summary\")))) & \" MediaLog\")","v":"MediaLog"},{"$f":"TRIM(MID(CELL(\"filename\",B1),SEARCH(\"]\",CELL(\"filename\",B1),1)+1,LEN(CELL(\"filename\",B1))-(SEARCH(\"]\",CELL(\"filename\",B1),1))))","v":"Summary"},{"$f":"TRIM(MID(CELL(\"filename\",A1),SEARCH(\"]\",CELL(\"filename\",A1),1)+1,LEN(CELL(\"filename\",A1))-(SEARCH(\"]\",CELL(\"filename\",A1),1)+LEN(\"Summary\"))))","v":""},"Partner","Sub-Recipients","Public-Earned","Public-Paid"]
["Tobacco-free living",{"$f":"$P$1","v":"Public-Earned"},"Television",{"$f":"$M$1","v":""},{"$f":"SUMPRODUCT((INDIRECT(\"'\" & $K$1 & \"'!$C$2:$C$1501\")= $K2)*(INDIRECT(\"'\" & $K$1 & \"'!$B$2:$B$1501\")= $L2)*(INDIRECT(\"'\" & $K$1 & \"'!$E$2:$E$1501\")= $M2)*(INDIRECT(\"'\" & $K$1 & \"'!$H$2:$H$1501\")))","v":0},{"$f":"SUMPRODUCT((INDIRECT(\"'\" & $K$1 & \"'!$C$2:$C$1501\")= $K2)*(INDIRECT(\"'\" & $K$1 & \"'!$B$2:$B$1501\")=$L2)*(INDIRECT(\"'\" & $K$1 & \"'!$E$2:$E$1501\")= $M2)*(INDIRECT(\"'\" & $K$1 & \"'!$I$2:$I$1501\")))","v":0},{"$f":"SUMPRODUCT((INDIRECT(\"'\" & $K$1 & \"'!$C$2:$C$1501\")=$K2)*(INDIRECT(\"'\" & $K$1 & \"'!$B$2:$B$1501\")=$L2)*(INDIRECT(\"'\" & $K$1 & \"'!$E$2:$E$1501\")=$M2)*(INDIRECT(\"'\" & $K$1 & \"'!$J$2:$J$1501\")))","v":0},{"$f":"SUMPRODUCT((INDIRECT(\"'\" & $K$1 & \"'!$C$2:$C$1501\")=$K2)*(INDIRECT(\"'\" & $K$1 & \"'!$B$2:$B$1501\")=$L2)*(INDIRECT(\"'\" & $K$1 & \"'!$E$2:$E$1501\")=$M2)*(INDIRECT(\"'\" & $K$1 & \"'!$M$2:$M$1501\")))","v":0},{"$f":"SUMPRODUCT((INDIRECT(\"'\" & $K$1 & \"'!$C$2:$C$1501\")=$K2)*(INDIRECT(\"'\" & $K$1 & \"'!$B$2:$B$1501\")=$L2)*(INDIRECT(\"'\" & $K$1 & \"'!$E$2:$E$1501\")=$M2)*(INDIRECT(\"'\" & $K$1 & \"'!$O$2:$O$1501\")))","v":0},null,{"$f":"IF(OR(A1=\"Strategic Direction\", A1=\"Type\", A1=\"Media Channel/Type\", A1=0), IF(A2=0, K1, A2), A1)","v":"Tobacco-free living"},{"$f":"IF(OR(B1=\"Strategic Direction\", B1=\"Type\", B1=\"Media Channel/Type\", B1=0, B1=\"TOTAL\"), IF(B2=0, L1, IF(B2=$N$1, \"Partner\",IF(B2=$O$1, \"Sub-Recipients\", IF(B2=$P$1, \"Public-Earned\", IF(B2=$Q$1, \"Public-Paid\", B2))))), IF(B1=$N$1, \"Partner\",IF(B1=$O$1, \"Sub-Recipients\", IF(B1=$P$1, \"Public-Earned\", IF(B1=$Q$1, \"Public-Paid\", L1)))))","v":"Public-Earned"},{"$f":"C2","v":"Television"}]
[null,null,"Radio",{"$f":"$M$1","v":""},{"$f":"SUMPRODUCT((INDIRECT(\"'\" & $K$1 & \"'!$C$2:$C$1501\")= $K3)*(INDIRECT(\"'\" & $K$1 & \"'!$B$2:$B$1501\")= $L3)*(INDIRECT(\"'\" & $K$1 & \"'!$E$2:$E$1501\")= $M3)*(INDIRECT(\"'\" & $K$1 & \"'!$H$2:$H$1501\")))","v":0},{"$f":"SUMPRODUCT((INDIRECT(\"'\" & $K$1 & \"'!$C$2:$C$1501\")= $K3)*(INDIRECT(\"'\" & $K$1 & \"'!$B$2:$B$1501\")=$L3)*(INDIRECT(\"'\" & $K$1 & \"'!$E$2:$E$1501\")= $M3)*(INDIRECT(\"'\" & $K$1 & \"'!$I$2:$I$1501\")))","v":0},{"$f":"SUMPRODUCT((INDIRECT(\"'\" & $K$1 & \"'!$C$2:$C$1501\")=$K3)*(INDIRECT(\"'\" & $K$1 & \"'!$B$2:$B$1501\")=$L3)*(INDIRECT(\"'\" & $K$1 & \"'!$E$2:$E$1501\")=$M3)*(INDIRECT(\"'\" & $K$1 & \"'!$J$2:$J$1501\")))","v":0},{"$f":"SUMPRODUCT((INDIRECT(\"'\" & $K$1 & \"'!$C$2:$C$1501\")=$K3)*(INDIRECT(\"'\" & $K$1 & \"'!$B$2:$B$1501\")=$L3)*(INDIRECT(\"'\" & $K$1 & \"'!$E$2:$E$1501\")=$M3)*(INDIRECT(\"'\" & $K$1 & \"'!$M$2:$M$1501\")))","v":0},{"$f":"SUMPRODUCT((INDIRECT(\"'\" & $K$1 & \"'!$C$2:$C$1501\")=$K3)*(INDIRECT(\"'\" & $K$1 & \"'!$B$2:$B$1501\")=$L3)*(INDIRECT(\"'\" & $K$1 & \"'!$E$2:$E$1501\")=$M3)*(INDIRECT(\"'\" & $K$1 & \"'!$O$2:$O$1501\")))","v":0},null,{"$f":"IF(OR(A2=\"Strategic Direction\", A2=\"Type\", A2=\"Media Channel/Type\", A2=0), IF(A3=0, K2, A3), A2)","v":"Tobacco-free living"},{"$f":"IF(OR(B2=\"Strategic Direction\", B2=\"Type\", B2=\"Media Channel/Type\", B2=0, B2=\"TOTAL\"), IF(B3=0, L2, IF(B3=$N$1, \"Partner\",IF(B3=$O$1, \"Sub-Recipients\", IF(B3=$P$1, \"Public-Earned\", IF(B3=$Q$1, \"Public-Paid\", B3))))), IF(B2=$N$1, \"Partner\",IF(B2=$O$1, \"Sub-Recipients\", IF(B2=$P$1, \"Public-Earned\", IF(B2=$Q$1, \"Public-Paid\", L2)))))","v":"Public-Earned"},{"$f":"C3","v":"Radio"}]
[null,null,"Print","",0,0,0,0,0,null,"Tobacco-free living","Public-Earned","Print"]
[null,null,"Social/Digital Media","",0,0,0,0,0,null,"Tobacco-free living","Public-Earned","Social/Digital Media"]
[null,null,"Outdoor","",0,0,0,0,0,null,"Tobacco-free living","Public-Earned","Outdoor"]
[null,null,"Other","",0,0,0,0,0,null,"Tobacco-free living","Public-Earned","Other"]
[null,null,"Subtotal",null,{"$f":"IF(SUM(E2:E7)=0, 0, SUM(E2:E7))","v":0},{"$f":"IF(SUM(F2:F7)=0, 0, SUM(F2:F7))","v":0},0,0,0,null,"Tobacco-free living","Public-Earned","Subtotal"]
[null,{"$f":"$Q$1","v":"Public-Paid"},"Television","",{"$f":"SUMPRODUCT((INDIRECT(\"'\" & $K$1 & \"'!$C$2:$C$1501\")= $K9)*(INDIRECT(\"'\" & $K$1 & \"'!$B$2:$B$1501\")= $L9)*(INDIRECT(\"'\" & $K$1 & \"'!$E$2:$E$1501\")= $M9)*(INDIRECT(\"'\" & $K$1 & \"'!$H$2:$H$1501\")))","v":0},{"$f":"SUMPRODUCT((INDIRECT(\"'\" & $K$1 & \"'!$C$2:$C$1501\")= $K9)*(INDIRECT(\"'\" & $K$1 & \"'!$B$2:$B$1501\")=$L9)*(INDIRECT(\"'\" & $K$1 & \"'!$E$2:$E$1501\")= $M9)*(INDIRECT(\"'\" & $K$1 & \"'!$I$2:$I$1501\")))","v":0},{"$f":"SUMPRODUCT((INDIRECT(\"'\" & $K$1 & \"'!$C$2:$C$1501\")=$K9)*(INDIRECT(\"'\" & $K$1 & \"'!$B$2:$B$1501\")=$L9)*(INDIRECT(\"'\" & $K$1 & \"'!$E$2:$E$1501\")=$M9)*(INDIRECT(\"'\" & $K$1 & \"'!$J$2:$J$1501\")))","v":0},{"$f":"SUMPRODUCT((INDIRECT(\"'\" & $K$1 & \"'!$C$2:$C$1501\")=$K9)*(INDIRECT(\"'\" & $K$1 & \"'!$B$2:$B$1501\")=$L9)*(INDIRECT(\"'\" & $K$1 & \"'!$E$2:$E$1501\")=$M9)*(INDIRECT(\"'\" & $K$1 & \"'!$M$2:$M$1501\")))","v":0},{"$f":"SUMPRODUCT((INDIRECT(\"'\" & $K$1 & \"'!$C$2:$C$1501\")=$K9)*(INDIRECT(\"'\" & $K$1 & \"'!$B$2:$B$1501\")=$L9)*(INDIRECT(\"'\" & $K$1 & \"'!$E$2:$E$1501\")=$M9)*(INDIRECT(\"'\" & $K$1 & \"'!$O$2:$O$1501\")))","v":0},null,"Tobacco-free living","Public-Paid","Television"]
[null,null,"Radio","",{"$f":"SUMPRODUCT((INDIRECT(\"'\" & $K$1 & \"'!$C$2:$C$1501\")= $K10)*(INDIRECT(\"'\" & $K$1 & \"'!$B$2:$B$1501\")= $L10)*(INDIRECT(\"'\" & $K$1 & \"'!$E$2:$E$1501\")= $M10)*(INDIRECT(\"'\" & $K$1 & \"'!$H$2:$H$1501\")))","v":0},{"$f":"SUMPRODUCT((INDIRECT(\"'\" & $K$1 & \"'!$C$2:$C$1501\")= $K10)*(INDIRECT(\"'\" & $K$1 & \"'!$B$2:$B$1501\")=$L10)*(INDIRECT(\"'\" & $K$1 & \"'!$E$2:$E$1501\")= $M10)*(INDIRECT(\"'\" & $K$1 & \"'!$I$2:$I$1501\")))","v":0},{"$f":"SUMPRODUCT((INDIRECT(\"'\" & $K$1 & \"'!$C$2:$C$1501\")=$K10)*(INDIRECT(\"'\" & $K$1 & \"'!$B$2:$B$1501\")=$L10)*(INDIRECT(\"'\" & $K$1 & \"'!$E$2:$E$1501\")=$M10)*(INDIRECT(\"'\" & $K$1 & \"'!$J$2:$J$1501\")))","v":0},{"$f":"SUMPRODUCT((INDIRECT(\"'\" & $K$1 & \"'!$C$2:$C$1501\")=$K10)*(INDIRECT(\"'\" & $K$1 & \"'!$B$2:$B$1501\")=$L10)*(INDIRECT(\"'\" & $K$1 & \"'!$E$2:$E$1501\")=$M10)*(INDIRECT(\"'\" & $K$1 & \"'!$M$2:$M$1501\")))","v":0},{"$f":"SUMPRODUCT((INDIRECT(\"'\" & $K$1 & \"'!$C$2:$C$1501\")=$K10)*(INDIRECT(\"'\" & $K$1 & \"'!$B$2:$B$1501\")=$L10)*(INDIRECT(\"'\" & $K$1 & \"'!$E$2:$E$1501\")=$M10)*(INDIRECT(\"'\" & $K$1 & \"'!$O$2:$O$1501\")))","v":0},null,"Tobacco-free living","Public-Paid","Radio"]
[null,null,"Print","",0,0,0,0,0,null,"Tobacco-free living","Public-Paid","Print"]
[null,null,"Social/Digital Media","",0,0,0,0,0,null,"Tobacco-free living","Public-Paid","Social/Digital Media"]
[null,null,"Outdoor","",0,0,0,0,0,null,"Tobacco-free living","Public-Paid","Outdoor"]
[null,null,"Other","",0,0,0,0,0,null,"Tobacco-free living","Public-Paid","Other"]
[null,null,"Subtotal",null,{"$f":"IF(SUM(E9:E14)=0, 0, SUM(E9:E14))","v":0},{"$f":"IF(SUM(F9:F14)=0, 0, SUM(F9:F14))","v":0},{"$f":"IF(SUM(G9:G14)=0, 0, SUM(G9:G14))","v":0},{"$f":"IF(SUM(H9:H14)=0, 0, SUM(H9:H14))","v":0},{"$f":"IF(SUM(I9:I14)=0, 0, SUM(I9:I14))","v":0},null,"Tobacco-free living","Public-Paid","Subtotal"]
[null,{"$f":"$N$1","v":"Partner"},"Television","",{"$f":"SUMPRODUCT((INDIRECT(\"'\" & $K$1 & \"'!$C$2:$C$1501\")= $K16)*(INDIRECT(\"'\" & $K$1 & \"'!$B$2:$B$1501\")= $L16)*(INDIRECT(\"'\" & $K$1 & \"'!$E$2:$E$1501\")= $M16)*(INDIRECT(\"'\" & $K$1 & \"'!$H$2:$H$1501\")))","v":0},{"$f":"SUMPRODUCT((INDIRECT(\"'\" & $K$1 & \"'!$C$2:$C$1501\")= $K16)*(INDIRECT(\"'\" & $K$1 & \"'!$B$2:$B$1501\")=$L16)*(INDIRECT(\"'\" & $K$1 & \"'!$E$2:$E$1501\")= $M16)*(INDIRECT(\"'\" & $K$1 & \"'!$I$2:$I$1501\")))","v":0},{"$f":"SUMPRODUCT((INDIRECT(\"'\" & $K$1 & \"'!$C$2:$C$1501\")=$K16)*(INDIRECT(\"'\" & $K$1 & \"'!$B$2:$B$1501\")=$L16)*(INDIRECT(\"'\" & $K$1 & \"'!$E$2:$E$1501\")=$M16)*(INDIRECT(\"'\" & $K$1 & \"'!$J$2:$J$1501\")))","v":0},{"$f":"SUMPRODUCT((INDIRECT(\"'\" & $K$1 & \"'!$C$2:$C$1501\")=$K16)*(INDIRECT(\"'\" & $K$1 & \"'!$B$2:$B$1501\")=$L16)*(INDIRECT(\"'\" & $K$1 & \"'!$E$2:$E$1501\")=$M16)*(INDIRECT(\"'\" & $K$1 & \"'!$M$2:$M$1501\")))","v":0},{"$f":"SUMPRODUCT((INDIRECT(\"'\" & $K$1 & \"'!$C$2:$C$1501\")=$K16)*(INDIRECT(\"'\" & $K$1 & \"'!$B$2:$B$1501\")=$L16)*(INDIRECT(\"'\" & $K$1 & \"'!$E$2:$E$1501\")=$M16)*(INDIRECT(\"'\" & $K$1 & \"'!$O$2:$O$1501\")))","v":0},null,"Tobacco-free living","Partner","Television"]
[null,null,"Radio","",{"$f":"SUMPRODUCT((INDIRECT(\"'\" & $K$1 & \"'!$C$2:$C$1501\")= $K17)*(INDIRECT(\"'\" & $K$1 & \"'!$B$2:$B$1501\")= $L17)*(INDIRECT(\"'\" & $K$1 & \"'!$E$2:$E$1501\")= $M17)*(INDIRECT(\"'\" & $K$1 & \"'!$H$2:$H$1501\")))","v":0},{"$f":"SUMPRODUCT((INDIRECT(\"'\" & $K$1 & \"'!$C$2:$C$1501\")= $K17)*(INDIRECT(\"'\" & $K$1 & \"'!$B$2:$B$1501\")=$L17)*(INDIRECT(\"'\" & $K$1 & \"'!$E$2:$E$1501\")= $M17)*(INDIRECT(\"'\" & $K$1 & \"'!$I$2:$I$1501\")))","v":0},{"$f":"SUMPRODUCT((INDIRECT(\"'\" & $K$1 & \"'!$C$2:$C$1501\")=$K17)*(INDIRECT(\"'\" & $K$1 & \"'!$B$2:$B$1501\")=$L17)*(INDIRECT(\"'\" & $K$1 & \"'!$E$2:$E$1501\")=$M17)*(INDIRECT(\"'\" & $K$1 & \"'!$J$2:$J$1501\")))","v":0},{"$f":"SUMPRODUCT((INDIRECT(\"'\" & $K$1 & \"'!$C$2:$C$1501\")=$K17)*(INDIRECT(\"'\" & $K$1 & \"'!$B$2:$B$1501\")=$L17)*(INDIRECT(\"'\" & $K$1 & \"'!$E$2:$E$1501\")=$M17)*(INDIRECT(\"'\" & $K$1 & \"'!$M$2:$M$1501\")))","v":0},{"$f":"SUMPRODUCT((INDIRECT(\"'\" & $K$1 & \"'!$C$2:$C$1501\")=$K17)*(INDIRECT(\"'\" & $K$1 & \"'!$B$2:$B$1501\")=$L17)*(INDIRECT(\"'\" & $K$1 & \"'!$E$2:$E$1501\")=$M17)*(INDIRECT(\"'\" & $K$1 & \"'!$O$2:$O$1501\")))","v":0},null,"Tobacco-free living","Partner","Radio"]
[null,null,"Print","",0,0,0,0,0,null,"Tobacco-free living","Partner","Print"]
[null,null,"Social/Digital Media","",0,0,0,0,0,null,"Tobacco-free living","Partner","Social/Digital Media"]
[null,null,"Outdoor","",0,0,0,0,0,null,"Tobacco-free living","Partner","Outdoor"]
[null,null,"Other","",0,0,0,0,0,null,"Tobacco-free living","Partner","Other"]
[null,null,"Subtotal",null,{"$f":"IF(SUM(E16:E21)=0, 0, SUM(E16:E21))","v":0},{"$f":"IF(SUM(F16:F21)=0, 0, SUM(F16:F21))","v":0},{"$f":"IF(SUM(G16:G21)=0, 0, SUM(G16:G21))","v":0},{"$f":"IF(SUM(H16:H21)=0, 0, SUM(H16:H21))","v":0},{"$f":"IF(SUM(I16:I21)=0, 0, SUM(I16:I21))","v":0},null,"Tobacco-free living","Partner","Subtotal"]
[null,{"$f":"$O$1","v":"Sub-Recipients"},"Television","",null,null,null,null,null,null,"Tobacco-free living","Sub-Recipients","Television"]
[null,null,"Radio","",null,null,null,null,null,null,"Tobacco-free living","Sub-Recipients","Radio"]
[null,null,"Print","",null,null,null,null,null,null,"Tobacco-free living","Sub-Recipients","Print"]
[null,null,"Social/New Media","",null,null,null,null,null,null,"Tobacco-free living","Sub-Recipients","Social/New Media"]
[null,null,"Outdoor","",null,null,null,null,null,null,"Tobacco-free living","Sub-Recipients","Outdoor"]
[null,null,"Other","",null,null,null,null,null,null,"Tobacco-free living","Sub-Recipients","Other"]
[null,null,"Subtotal","",null,null,null,null,null,null,"Tobacco-free living","Sub-Recipients","Subtotal"]
[null,"TOTAL",null,null,{"$f":"SUMPRODUCT(($M2:$M29=$C$22)*(E2:E29))","v":0},{"$f":"SUMPRODUCT(($M2:$M29=$C$22)*(F2:F29))","v":0},0,0,0,null,"Tobacco-free living","TOTAL",0]
["Nutrition",{"$f":"$P$1","v":"Public-Earned"},"Television","",{"$f":"SUMPRODUCT((INDIRECT(\"'\" & $K$1 & \"'!$C$2:$C$1501\")= $K31)*(INDIRECT(\"'\" & $K$1 & \"'!$B$2:$B$1501\")= $L31)*(INDIRECT(\"'\" & $K$1 & \"'!$E$2:$E$1501\")= $M31)*(INDIRECT(\"'\" & $K$1 & \"'!$H$2:$H$1501\")))","v":0},{"$f":"SUMPRODUCT((INDIRECT(\"'\" & $K$1 & \"'!$C$2:$C$1501\")= $K31)*(INDIRECT(\"'\" & $K$1 & \"'!$B$2:$B$1501\")=$L31)*(INDIRECT(\"'\" & $K$1 & \"'!$E$2:$E$1501\")= $M31)*(INDIRECT(\"'\" & $K$1 & \"'!$I$2:$I$1501\")))","v":0},{"$f":"SUMPRODUCT((INDIRECT(\"'\" & $K$1 & \"'!$C$2:$C$1501\")=$K31)*(INDIRECT(\"'\" & $K$1 & \"'!$B$2:$B$1501\")=$L31)*(INDIRECT(\"'\" & $K$1 & \"'!$E$2:$E$1501\")=$M31)*(INDIRECT(\"'\" & $K$1 & \"'!$J$2:$J$1501\")))","v":0},{"$f":"SUMPRODUCT((INDIRECT(\"'\" & $K$1 & \"'!$C$2:$C$1501\")=$K31)*(INDIRECT(\"'\" & $K$1 & \"'!$B$2:$B$1501\")=$L31)*(INDIRECT(\"'\" & $K$1 & \"'!$E$2:$E$1501\")=$M31)*(INDIRECT(\"'\" & $K$1 & \"'!$M$2:$M$1501\")))","v":0},{"$f":"SUMPRODUCT((INDIRECT(\"'\" & $K$1 & \"'!$C$2:$C$1501\")=$K31)*(INDIRECT(\"'\" & $K$1 & \"'!$B$2:$B$1501\")=$L31)*(INDIRECT(\"'\" & $K$1 & \"'!$E$2:$E$1501\")=$M31)*(INDIRECT(\"'\" & $K$1 & \"'!$O$2:$O$1501\")))","v":0},null,"Nutrition","Public-Earned","Television"]
[null,null,"Radio","",{"$f":"SUMPRODUCT((INDIRECT(\"'\" & $K$1 & \"'!$C$2:$C$1501\")= $K32)*(INDIRECT(\"'\" & $K$1 & \"'!$B$2:$B$1501\")= $L32)*(INDIRECT(\"'\" & $K$1 & \"'!$E$2:$E$1501\")= $M32)*(INDIRECT(\"'\" & $K$1 & \"'!$H$2:$H$1501\")))","v":0},{"$f":"SUMPRODUCT((INDIRECT(\"'\" & $K$1 & \"'!$C$2:$C$1501\")= $K32)*(INDIRECT(\"'\" & $K$1 & \"'!$B$2:$B$1501\")=$L32)*(INDIRECT(\"'\" & $K$1 & \"'!$E$2:$E$1501\")= $M32)*(INDIRECT(\"'\" & $K$1 & \"'!$I$2:$I$1501\")))","v":0},{"$f":"SUMPRODUCT((INDIRECT(\"'\" & $K$1 & \"'!$C$2:$C$1501\")=$K32)*(INDIRECT(\"'\" & $K$1 & \"'!$B$2:$B$1501\")=$L32)*(INDIRECT(\"'\" & $K$1 & \"'!$E$2:$E$1501\")=$M32)*(INDIRECT(\"'\" & $K$1 & \"'!$J$2:$J$1501\")))","v":0},{"$f":"SUMPRODUCT((INDIRECT(\"'\" & $K$1 & \"'!$C$2:$C$1501\")=$K32)*(INDIRECT(\"'\" & $K$1 & \"'!$B$2:$B$1501\")=$L32)*(INDIRECT(\"'\" & $K$1 & \"'!$E$2:$E$1501\")=$M32)*(INDIRECT(\"'\" & $K$1 & \"'!$M$2:$M$1501\")))","v":0},{"$f":"SUMPRODUCT((INDIRECT(\"'\" & $K$1 & \"'!$C$2:$C$1501\")=$K32)*(INDIRECT(\"'\" & $K$1 & \"'!$B$2:$B$1501\")=$L32)*(INDIRECT(\"'\" & $K$1 & \"'!$E$2:$E$1501\")=$M32)*(INDIRECT(\"'\" & $K$1 & \"'!$O$2:$O$1501\")))","v":0},null,"Nutrition","Public-Earned","Radio"]
[null,null,"Print","",0,0,0,0,0,null,"Nutrition","Public-Earned","Print"]
[null,null,"Social/Digital Media","",0,0,0,0,0,null,"Nutrition","Public-Earned","Social/Digital Media"]
[null,null,"Outdoor","",0,0,0,0,0,null,"Nutrition","Public-Earned","Outdoor"]
[null,null,"Other","",0,0,0,0,0,null,"Nutrition","Public-Earned","Other"]
[null,null,"Subtotal",null,{"$f":"IF(SUM(E31:E36)=0, 0, SUM(E31:E36))","v":0},{"$f":"IF(SUM(F31:F36)=0, 0, SUM(F31:F36))","v":0},{"$f":"IF(SUM(G31:G36)=0, 0, SUM(G31:G36))","v":0},{"$f":"IF(SUM(H31:H36)=0, 0, SUM(H31:H36))","v":0},{"$f":"IF(SUM(I31:I36)=0, 0, SUM(I31:I36))","v":0},null,"Nutrition","Public-Earned","Subtotal"]
[null,{"$f":"$Q$1","v":"Public-Paid"},"Television","",{"$f":"SUMPRODUCT((INDIRECT(\"'\" & $K$1 & \"'!$C$2:$C$1501\")= $K38)*(INDIRECT(\"'\" & $K$1 & \"'!$B$2:$B$1501\")= $L38)*(INDIRECT(\"'\" & $K$1 & \"'!$E$2:$E$1501\")= $M38)*(INDIRECT(\"'\" & $K$1 & \"'!$H$2:$H$1501\")))","v":0},{"$f":"SUMPRODUCT((INDIRECT(\"'\" & $K$1 & \"'!$C$2:$C$1501\")= $K38)*(INDIRECT(\"'\" & $K$1 & \"'!$B$2:$B$1501\")=$L38)*(INDIRECT(\"'\" & $K$1 & \"'!$E$2:$E$1501\")= $M38)*(INDIRECT(\"'\" & $K$1 & \"'!$I$2:$I$1501\")))","v":0},{"$f":"SUMPRODUCT((INDIRECT(\"'\" & $K$1 & \"'!$C$2:$C$1501\")=$K38)*(INDIRECT(\"'\" & $K$1 & \"'!$B$2:$B$1501\")=$L38)*(INDIRECT(\"'\" & $K$1 & \"'!$E$2:$E$1501\")=$M38)*(INDIRECT(\"'\" & $K$1 & \"'!$J$2:$J$1501\")))","v":0},{"$f":"SUMPRODUCT((INDIRECT(\"'\" & $K$1 & \"'!$C$2:$C$1501\")=$K38)*(INDIRECT(\"'\" & $K$1 & \"'!$B$2:$B$1501\")=$L38)*(INDIRECT(\"'\" & $K$1 & \"'!$E$2:$E$1501\")=$M38)*(INDIRECT(\"'\" & $K$1 & \"'!$M$2:$M$1501\")))","v":0},{"$f":"SUMPRODUCT((INDIRECT(\"'\" & $K$1 & \"'!$C$2:$C$1501\")=$K38)*(INDIRECT(\"'\" & $K$1 & \"'!$B$2:$B$1501\")=$L38)*(INDIRECT(\"'\" & $K$1 & \"'!$E$2:$E$1501\")=$M38)*(INDIRECT(\"'\" & $K$1 & \"'!$O$2:$O$1501\")))","v":0},null,"Nutrition","Public-Paid","Television"]
[null,null,"Radio","",{"$f":"SUMPRODUCT((INDIRECT(\"'\" & $K$1 & \"'!$C$2:$C$1501\")= $K39)*(INDIRECT(\"'\" & $K$1 & \"'!$B$2:$B$1501\")= $L39)*(INDIRECT(\"'\" & $K$1 & \"'!$E$2:$E$1501\")= $M39)*(INDIRECT(\"'\" & $K$1 & \"'!$H$2:$H$1501\")))","v":0},{"$f":"SUMPRODUCT((INDIRECT(\"'\" & $K$1 & \"'!$C$2:$C$1501\")= $K39)*(INDIRECT(\"'\" & $K$1 & \"'!$B$2:$B$1501\")=$L39)*(INDIRECT(\"'\" & $K$1 & \"'!$E$2:$E$1501\")= $M39)*(INDIRECT(\"'\" & $K$1 & \"'!$I$2:$I$1501\")))","v":0},{"$f":"SUMPRODUCT((INDIRECT(\"'\" & $K$1 & \"'!$C$2:$C$1501\")=$K39)*(INDIRECT(\"'\" & $K$1 & \"'!$B$2:$B$1501\")=$L39)*(INDIRECT(\"'\" & $K$1 & \"'!$E$2:$E$1501\")=$M39)*(INDIRECT(\"'\" & $K$1 & \"'!$J$2:$J$1501\")))","v":0},{"$f":"SUMPRODUCT((INDIRECT(\"'\" & $K$1 & \"'!$C$2:$C$1501\")=$K39)*(INDIRECT(\"'\" & $K$1 & \"'!$B$2:$B$1501\")=$L39)*(INDIRECT(\"'\" & $K$1 & \"'!$E$2:$E$1501\")=$M39)*(INDIRECT(\"'\" & $K$1 & \"'!$M$2:$M$1501\")))","v":0},{"$f":"SUMPRODUCT((INDIRECT(\"'\" & $K$1 & \"'!$C$2:$C$1501\")=$K39)*(INDIRECT(\"'\" & $K$1 & \"'!$B$2:$B$1501\")=$L39)*(INDIRECT(\"'\" & $K$1 & \"'!$E$2:$E$1501\")=$M39)*(INDIRECT(\"'\" & $K$1 & \"'!$O$2:$O$1501\")))","v":0},null,"Nutrition","Public-Paid","Radio"]
[null,null,"Print","",0,0,0,0,0,null,"Nutrition","Public-Paid","Print"]
[null,null,"Social/Digital Media","",0,0,0,0,0,null,"Nutrition","Public-Paid","Social/Digital Media"]
[null,null,"Outdoor","",0,0,0,0,0,null,"Nutrition","Public-Paid","Outdoor"]
[null,null,"Other","",0,0,0,0,0,null,"Nutrition","Public-Paid","Other"]
[null,null,"Subtotal",null,{"$f":"IF(SUM(E38:E43)=0, 0, SUM(E38:E43))","v":0},{"$f":"IF(SUM(F38:F43)=0, 0, SUM(F38:F43))","v":0},{"$f":"IF(SUM(G38:G43)=0, 0, SUM(G38:G43))","v":0},{"$f":"IF(SUM(H38:H43)=0, 0, SUM(H38:H43))","v":0},{"$f":"IF(SUM(I38:I43)=0, 0, SUM(I38:I43))","v":0},null,"Nutrition","Public-Paid","Subtotal"]
[null,{"$f":"$N$1","v":"Partner"},"Television","",{"$f":"SUMPRODUCT((INDIRECT(\"'\" & $K$1 & \"'!$C$2:$C$1501\")= $K45)*(INDIRECT(\"'\" & $K$1 & \"'!$B$2:$B$1501\")= $L45)*(INDIRECT(\"'\" & $K$1 & \"'!$E$2:$E$1501\")= $M45)*(INDIRECT(\"'\" & $K$1 & \"'!$H$2:$H$1501\")))","v":0},{"$f":"SUMPRODUCT((INDIRECT(\"'\" & $K$1 & \"'!$C$2:$C$1501\")= $K45)*(INDIRECT(\"'\" & $K$1 & \"'!$B$2:$B$1501\")=$L45)*(INDIRECT(\"'\" & $K$1 & \"'!$E$2:$E$1501\")= $M45)*(INDIRECT(\"'\" & $K$1 & \"'!$I$2:$I$1501\")))","v":0},{"$f":"SUMPRODUCT((INDIRECT(\"'\" & $K$1 & \"'!$C$2:$C$1501\")=$K45)*(INDIRECT(\"'\" & $K$1 & \"'!$B$2:$B$1501\")=$L45)*(INDIRECT(\"'\" & $K$1 & \"'!$E$2:$E$1501\")=$M45)*(INDIRECT(\"'\" & $K$1 & \"'!$J$2:$J$1501\")))","v":0},{"$f":"SUMPRODUCT((INDIRECT(\"'\" & $K$1 & \"'!$C$2:$C$1501\")=$K45)*(INDIRECT(\"'\" & $K$1 & \"'!$B$2:$B$1501\")=$L45)*(INDIRECT(\"'\" & $K$1 & \"'!$E$2:$E$1501\")=$M45)*(INDIRECT(\"'\" & $K$1 & \"'!$M$2:$M$1501\")))","v":0},{"$f":"SUMPRODUCT((INDIRECT(\"'\" & $K$1 & \"'!$C$2:$C$1501\")=$K45)*(INDIRECT(\"'\" & $K$1 & \"'!$B$2:$B$1501\")=$L45)*(INDIRECT(\"'\" & $K$1 & \"'!$E$2:$E$1501\")=$M45)*(INDIRECT(\"'\" & $K$1 & \"'!$O$2:$O$1501\")))","v":0},null,"Nutrition","Partner","Television"]
[null,null,"Radio","",{"$f":"SUMPRODUCT((INDIRECT(\"'\" & $K$1 & \"'!$C$2:$C$1501\")= $K46)*(INDIRECT(\"'\" & $K$1 & \"'!$B$2:$B$1501\")= $L46)*(INDIRECT(\"'\" & $K$1 & \"'!$E$2:$E$1501\")= $M46)*(INDIRECT(\"'\" & $K$1 & \"'!$H$2:$H$1501\")))","v":0},{"$f":"SUMPRODUCT((INDIRECT(\"'\" & $K$1 & \"'!$C$2:$C$1501\")= $K46)*(INDIRECT(\"'\" & $K$1 & \"'!$B$2:$B$1501\")=$L46)*(INDIRECT(\"'\" & $K$1 & \"'!$E$2:$E$1501\")= $M46)*(INDIRECT(\"'\" & $K$1 & \"'!$I$2:$I$1501\")))","v":0},{"$f":"SUMPRODUCT((INDIRECT(\"'\" & $K$1 & \"'!$C$2:$C$1501\")=$K46)*(INDIRECT(\"'\" & $K$1 & \"'!$B$2:$B$1501\")=$L46)*(INDIRECT(\"'\" & $K$1 & \"'!$E$2:$E$1501\")=$M46)*(INDIRECT(\"'\" & $K$1 & \"'!$J$2:$J$1501\")))","v":0},{"$f":"SUMPRODUCT((INDIRECT(\"'\" & $K$1 & \"'!$C$2:$C$1501\")=$K46)*(INDIRECT(\"'\" & $K$1 & \"'!$B$2:$B$1501\")=$L46)*(INDIRECT(\"'\" & $K$1 & \"'!$E$2:$E$1501\")=$M46)*(INDIRECT(\"'\" & $K$1 & \"'!$M$2:$M$1501\")))","v":0},{"$f":"SUMPRODUCT((INDIRECT(\"'\" & $K$1 & \"'!$C$2:$C$1501\")=$K46)*(INDIRECT(\"'\" & $K$1 & \"'!$B$2:$B$1501\")=$L46)*(INDIRECT(\"'\" & $K$1 & \"'!$E$2:$E$1501\")=$M46)*(INDIRECT(\"'\" & $K$1 & \"'!$O$2:$O$1501\")))","v":0},null,"Nutrition","Partner","Radio"]
[null,null,"Print","",0,0,0,0,0,null,"Nutrition","Partner","Print"]
[null,null,"Social/Digital Media","",0,0,0,0,0,null,"Nutrition","Partner","Social/Digital Media"]
[null,null,"Outdoor","",0,0,0,0,0,null,"Nutrition","Partner","Outdoor"]
[null,null,"Other","",0,0,0,0,0,null,"Nutrition","Partner","Other"]
[null,null,"Subtotal",null,{"$f":"IF(SUM(E45:E50)=0, 0, SUM(E45:E50))","v":0},{"$f":"IF(SUM(F45:F50)=0, 0, SUM(F45:F50))","v":0},{"$f":"IF(SUM(G45:G50)=0, 0, SUM(G45:G50))","v":0},{"$f":"IF(SUM(H45:H50)=0, 0, SUM(H45:H50))","v":0},{"$f":"IF(SUM(I45:I50)=0, 0, SUM(I45:I50))","v":0},null,"Nutrition","Partner","Subtotal"]
[null,{"$f":"$O$1","v":"Sub-Recipients"},"Television","",null,null,null,null,null,null,"Nutrition","Sub-Recipients","Television"]
[null,null,"Radio","",null,null,null,null,null,null,"Nutrition","Sub-Recipients","Radio"]
[null,null,"Print","",null,null,null,null,null,null,"Nutrition","Sub-Recipients","Print"]
[null,null,"Social/New Media","",null,null,null,null,null,null,"Nutrition","Sub-Recipients","Social/New Media"]
[null,null,"Outdoor","",null,null,null,null,null,null,"Nutrition","Sub-Recipients","Outdoor"]
[null,null,"Other","",null,null,null,null,null,null,"Nutrition","Sub-Recipients","Other"]
[null,null,"Subtotal","",null,null,null,null,null,null,"Nutrition","Sub-Recipients","Subtotal"]
[null,"TOTAL",null,null,{"$f":"SUMPRODUCT(($M31:$M58=$C$22)*(E31:E58))","v":0},{"$f":"SUMPRODUCT(($M31:$M58=$C$22)*(F31:F58))","v":0},{"$f":"SUMPRODUCT(($M31:$M58=$C$22)*(G31:G58))","v":0},{"$f":"SUMPRODUCT(($M31:$M58=$C$22)*(H31:H58))","v":0},{"$f":"SUMPRODUCT(($M31:$M58=$C$22)*(I31:I58))","v":0},null,"Nutrition","TOTAL",0]
["Physical Activity",{"$f":"$P$1","v":"Public-Earned"},"Television","",{"$f":"SUMPRODUCT((INDIRECT(\"'\" & $K$1 & \"'!$C$2:$C$1501\")= $K60)*(INDIRECT(\"'\" & $K$1 & \"'!$B$2:$B$1501\")= $L60)*(INDIRECT(\"'\" & $K$1 & \"'!$E$2:$E$1501\")= $M60)*(INDIRECT(\"'\" & $K$1 & \"'!$H$2:$H$1501\")))","v":0},{"$f":"SUMPRODUCT((INDIRECT(\"'\" & $K$1 & \"'!$C$2:$C$1501\")= $K60)*(INDIRECT(\"'\" & $K$1 & \"'!$B$2:$B$1501\")=$L60)*(INDIRECT(\"'\" & $K$1 & \"'!$E$2:$E$1501\")= $M60)*(INDIRECT(\"'\" & $K$1 & \"'!$I$2:$I$1501\")))","v":0},{"$f":"SUMPRODUCT((INDIRECT(\"'\" & $K$1 & \"'!$C$2:$C$1501\")=$K60)*(INDIRECT(\"'\" & $K$1 & \"'!$B$2:$B$1501\")=$L60)*(INDIRECT(\"'\" & $K$1 & \"'!$E$2:$E$1501\")=$M60)*(INDIRECT(\"'\" & $K$1 & \"'!$J$2:$J$1501\")))","v":0},{"$f":"SUMPRODUCT((INDIRECT(\"'\" & $K$1 & \"'!$C$2:$C$1501\")=$K60)*(INDIRECT(\"'\" & $K$1 & \"'!$B$2:$B$1501\")=$L60)*(INDIRECT(\"'\" & $K$1 & \"'!$E$2:$E$1501\")=$M60)*(INDIRECT(\"'\" & $K$1 & \"'!$M$2:$M$1501\")))","v":0},{"$f":"SUMPRODUCT((INDIRECT(\"'\" & $K$1 & \"'!$C$2:$C$1501\")=$K60)*(INDIRECT(\"'\" & $K$1 & \"'!$B$2:$B$1501\")=$L60)*(INDIRECT(\"'\" & $K$1 & \"'!$E$2:$E$1501\")=$M60)*(INDIRECT(\"'\" & $K$1 & \"'!$O$2:$O$1501\")))","v":0},null,"Physical Activity","Public-Earned","Television"]
[null,null,"Radio","",{"$f":"SUMPRODUCT((INDIRECT(\"'\" & $K$1 & \"'!$C$2:$C$1501\")= $K61)*(INDIRECT(\"'\" & $K$1 & \"'!$B$2:$B$1501\")= $L61)*(INDIRECT(\"'\" & $K$1 & \"'!$E$2:$E$1501\")= $M61)*(INDIRECT(\"'\" & $K$1 & \"'!$H$2:$H$1501\")))","v":0},{"$f":"SUMPRODUCT((INDIRECT(\"'\" & $K$1 & \"'!$C$2:$C$1501\")= $K61)*(INDIRECT(\"'\" & $K$1 & \"'!$B$2:$B$1501\")=$L61)*(INDIRECT(\"'\" & $K$1 & \"'!$E$2:$E$1501\")= $M61)*(INDIRECT(\"'\" & $K$1 & \"'!$I$2:$I$1501\")))","v":0},{"$f":"SUMPRODUCT((INDIRECT(\"'\" & $K$1 & \"'!$C$2:$C$1501\")=$K61)*(INDIRECT(\"'\" & $K$1 & \"'!$B$2:$B$1501\")=$L61)*(INDIRECT(\"'\" & $K$1 & \"'!$E$2:$E$1501\")=$M61)*(INDIRECT(\"'\" & $K$1 & \"'!$J$2:$J$1501\")))","v":0},{"$f":"SUMPRODUCT((INDIRECT(\"'\" & $K$1 & \"'!$C$2:$C$1501\")=$K61)*(INDIRECT(\"'\" & $K$1 & \"'!$B$2:$B$1501\")=$L61)*(INDIRECT(\"'\" & $K$1 & \"'!$E$2:$E$1501\")=$M61)*(INDIRECT(\"'\" & $K$1 & \"'!$M$2:$M$1501\")))","v":0},{"$f":"SUMPRODUCT((INDIRECT(\"'\" & $K$1 & \"'!$C$2:$C$1501\")=$K61)*(INDIRECT(\"'\" & $K$1 & \"'!$B$2:$B$1501\")=$L61)*(INDIRECT(\"'\" & $K$1 & \"'!$E$2:$E$1501\")=$M61)*(INDIRECT(\"'\" & $K$1 & \"'!$O$2:$O$1501\")))","v":0},null,"Physical Activity","Public-Earned","Radio"]
[null,null,"Print","",0,0,0,0,0,null,"Physical Activity","Public-Earned","Print"]
[null,null,"Social/Digital Media","",0,0,0,0,0,null,"Physical Activity","Public-Earned","Social/Digital Media"]
[null,null,"Outdoor","",0,0,0,0,0,null,"Physical Activity","Public-Earned","Outdoor"]
[null,null,"Other","",0,0,0,0,0,null,"Physical Activity","Public-Earned","Other"]
[null,null,"Subtotal",null,{"$f":"IF(SUM(E60:E65)=0, 0, SUM(E60:E65))","v":0},{"$f":"IF(SUM(F60:F65)=0, 0, SUM(F60:F65))","v":0},{"$f":"IF(SUM(G60:G65)=0, 0, SUM(G60:G65))","v":0},{"$f":"IF(SUM(H60:H65)=0, 0, SUM(H60:H65))","v":0},{"$f":"IF(SUM(I60:I65)=0, 0, SUM(I60:I65))","v":0},null,"Physical Activity","Public-Earned","Subtotal"]
[null,{"$f":"$Q$1","v":"Public-Paid"},"Television",{"$f":"$M$1","v":""},{"$f":"SUMPRODUCT((INDIRECT(\"'\" & $K$1 & \"'!$C$2:$C$1501\")= $K67)*(INDIRECT(\"'\" & $K$1 & \"'!$B$2:$B$1501\")= $L67)*(INDIRECT(\"'\" & $K$1 & \"'!$E$2:$E$1501\")= $M67)*(INDIRECT(\"'\" & $K$1 & \"'!$H$2:$H$1501\")))","v":0},{"$f":"SUMPRODUCT((INDIRECT(\"'\" & $K$1 & \"'!$C$2:$C$1501\")= $K67)*(INDIRECT(\"'\" & $K$1 & \"'!$B$2:$B$1501\")=$L67)*(INDIRECT(\"'\" & $K$1 & \"'!$E$2:$E$1501\")= $M67)*(INDIRECT(\"'\" & $K$1 & \"'!$I$2:$I$1501\")))","v":0},{"$f":"SUMPRODUCT((INDIRECT(\"'\" & $K$1 & \"'!$C$2:$C$1501\")=$K67)*(INDIRECT(\"'\" & $K$1 & \"'!$B$2:$B$1501\")=$L67)*(INDIRECT(\"'\" & $K$1 & \"'!$E$2:$E$1501\")=$M67)*(INDIRECT(\"'\" & $K$1 & \"'!$J$2:$J$1501\")))","v":0},{"$f":"SUMPRODUCT((INDIRECT(\"'\" & $K$1 & \"'!$C$2:$C$1501\")=$K67)*(INDIRECT(\"'\" & $K$1 & \"'!$B$2:$B$1501\")=$L67)*(INDIRECT(\"'\" & $K$1 & \"'!$E$2:$E$1501\")=$M67)*(INDIRECT(\"'\" & $K$1 & \"'!$M$2:$M$1501\")))","v":0},{"$f":"SUMPRODUCT((INDIRECT(\"'\" & $K$1 & \"'!$C$2:$C$1501\")=$K67)*(INDIRECT(\"'\" & $K$1 & \"'!$B$2:$B$1501\")=$L67)*(INDIRECT(\"'\" & $K$1 & \"'!$E$2:$E$1501\")=$M67)*(INDIRECT(\"'\" & $K$1 & \"'!$O$2:$O$1501\")))","v":0},null,{"$f":"IF(OR(A66=\"Strategic Direction\", A66=\"Type\", A66=\"Media Channel/Type\", A66=0), IF(A67=0, K66, A67), A66)","v":"Physical Activity"},{"$f":"IF(OR(B66=\"Strategic Direction\", B66=\"Type\", B66=\"Media Channel/Type\", B66=0, B66=\"TOTAL\"), IF(B67=0, L66, IF(B67=$N$1, \"Partner\",IF(B67=$O$1, \"Sub-Recipients\", IF(B67=$P$1, \"Public-Earned\", IF(B67=$Q$1, \"Public-Paid\", B67))))), IF(B66=$N$1, \"Partner\",IF(B66=$O$1, \"Sub-Recipients\", IF(B66=$P$1, \"Public-Earned\", IF(B66=$Q$1, \"Public-Paid\", L66)))))","v":"Public-Paid"},{"$f":"C67","v":"Television"}]
[null,null,"Radio","",{"$f":"SUMPRODUCT((INDIRECT(\"'\" & $K$1 & \"'!$C$2:$C$1501\")= $K68)*(INDIRECT(\"'\" & $K$1 & \"'!$B$2:$B$1501\")= $L68)*(INDIRECT(\"'\" & $K$1 & \"'!$E$2:$E$1501\")= $M68)*(INDIRECT(\"'\" & $K$1 & \"'!$H$2:$H$1501\")))","v":0},{"$f":"SUMPRODUCT((INDIRECT(\"'\" & $K$1 & \"'!$C$2:$C$1501\")= $K68)*(INDIRECT(\"'\" & $K$1 & \"'!$B$2:$B$1501\")=$L68)*(INDIRECT(\"'\" & $K$1 & \"'!$E$2:$E$1501\")= $M68)*(INDIRECT(\"'\" & $K$1 & \"'!$I$2:$I$1501\")))","v":0},{"$f":"SUMPRODUCT((INDIRECT(\"'\" & $K$1 & \"'!$C$2:$C$1501\")=$K68)*(INDIRECT(\"'\" & $K$1 & \"'!$B$2:$B$1501\")=$L68)*(INDIRECT(\"'\" & $K$1 & \"'!$E$2:$E$1501\")=$M68)*(INDIRECT(\"'\" & $K$1 & \"'!$J$2:$J$1501\")))","v":0},{"$f":"SUMPRODUCT((INDIRECT(\"'\" & $K$1 & \"'!$C$2:$C$1501\")=$K68)*(INDIRECT(\"'\" & $K$1 & \"'!$B$2:$B$1501\")=$L68)*(INDIRECT(\"'\" & $K$1 & \"'!$E$2:$E$1501\")=$M68)*(INDIRECT(\"'\" & $K$1 & \"'!$M$2:$M$1501\")))","v":0},{"$f":"SUMPRODUCT((INDIRECT(\"'\" & $K$1 & \"'!$C$2:$C$1501\")=$K68)*(INDIRECT(\"'\" & $K$1 & \"'!$B$2:$B$1501\")=$L68)*(INDIRECT(\"'\" & $K$1 & \"'!$E$2:$E$1501\")=$M68)*(INDIRECT(\"'\" & $K$1 & \"'!$O$2:$O$1501\")))","v":0},null,"Physical Activity","Public-Paid","Radio"]
[null,null,"Print","",0,0,0,0,0,null,"Physical Activity","Public-Paid","Print"]
[null,null,"Social/Digital Media","",0,0,0,0,0,null,"Physical Activity","Public-Paid","Social/Digital Media"]
[null,null,"Outdoor","",0,0,0,0,0,null,"Physical Activity","Public-Paid","Outdoor"]
[null,null,"Other","",0,0,0,0,0,null,"Physical Activity","Public-Paid","Other"]
[null,null,"Subtotal",null,{"$f":"IF(SUM(E67:E72)=0, 0, SUM(E67:E72))","v":0},{"$f":"IF(SUM(F67:F72)=0, 0, SUM(F67:F72))","v":0},{"$f":"IF(SUM(G67:G72)=0, 0, SUM(G67:G72))","v":0},{"$f":"IF(SUM(H67:H72)=0, 0, SUM(H67:H72))","v":0},{"$f":"IF(SUM(I67:I72)=0, 0, SUM(I67:I72))","v":0},null,"Physical Activity","Public-Paid","Subtotal"]
[null,{"$f":"$N$1","v":"Partner"},"Television","",{"$f":"SUMPRODUCT((INDIRECT(\"'\" & $K$1 & \"'!$C$2:$C$1501\")= $K74)*(INDIRECT(\"'\" & $K$1 & \"'!$B$2:$B$1501\")= $L74)*(INDIRECT(\"'\" & $K$1 & \"'!$E$2:$E$1501\")= $M74)*(INDIRECT(\"'\" & $K$1 & \"'!$H$2:$H$1501\")))","v":0},{"$f":"SUMPRODUCT((INDIRECT(\"'\" & $K$1 & \"'!$C$2:$C$1501\")= $K74)*(INDIRECT(\"'\" & $K$1 & \"'!$B$2:$B$1501\")=$L74)*(INDIRECT(\"'\" & $K$1 & \"'!$E$2:$E$1501\")= $M74)*(INDIRECT(\"'\" & $K$1 & \"'!$I$2:$I$1501\")))","v":0},{"$f":"SUMPRODUCT((INDIRECT(\"'\" & $K$1 & \"'!$C$2:$C$1501\")=$K74)*(INDIRECT(\"'\" & $K$1 & \"'!$B$2:$B$1501\")=$L74)*(INDIRECT(\"'\" & $K$1 & \"'!$E$2:$E$1501\")=$M74)*(INDIRECT(\"'\" & $K$1 & \"'!$J$2:$J$1501\")))","v":0},{"$f":"SUMPRODUCT((INDIRECT(\"'\" & $K$1 & \"'!$C$2:$C$1501\")=$K74)*(INDIRECT(\"'\" & $K$1 & \"'!$B$2:$B$1501\")=$L74)*(INDIRECT(\"'\" & $K$1 & \"'!$E$2:$E$1501\")=$M74)*(INDIRECT(\"'\" & $K$1 & \"'!$M$2:$M$1501\")))","v":0},{"$f":"SUMPRODUCT((INDIRECT(\"'\" & $K$1 & \"'!$C$2:$C$1501\")=$K74)*(INDIRECT(\"'\" & $K$1 & \"'!$B$2:$B$1501\")=$L74)*(INDIRECT(\"'\" & $K$1 & \"'!$E$2:$E$1501\")=$M74)*(INDIRECT(\"'\" & $K$1 & \"'!$O$2:$O$1501\")))","v":0},null,"Physical Activity","Partner","Television"]
[null,null,"Radio","",{"$f":"SUMPRODUCT((INDIRECT(\"'\" & $K$1 & \"'!$C$2:$C$1501\")= $K75)*(INDIRECT(\"'\" & $K$1 & \"'!$B$2:$B$1501\")= $L75)*(INDIRECT(\"'\" & $K$1 & \"'!$E$2:$E$1501\")= $M75)*(INDIRECT(\"'\" & $K$1 & \"'!$H$2:$H$1501\")))","v":0},{"$f":"SUMPRODUCT((INDIRECT(\"'\" & $K$1 & \"'!$C$2:$C$1501\")= $K75)*(INDIRECT(\"'\" & $K$1 & \"'!$B$2:$B$1501\")=$L75)*(INDIRECT(\"'\" & $K$1 & \"'!$E$2:$E$1501\")= $M75)*(INDIRECT(\"'\" & $K$1 & \"'!$I$2:$I$1501\")))","v":0},{"$f":"SUMPRODUCT((INDIRECT(\"'\" & $K$1 & \"'!$C$2:$C$1501\")=$K75)*(INDIRECT(\"'\" & $K$1 & \"'!$B$2:$B$1501\")=$L75)*(INDIRECT(\"'\" & $K$1 & \"'!$E$2:$E$1501\")=$M75)*(INDIRECT(\"'\" & $K$1 & \"'!$J$2:$J$1501\")))","v":0},{"$f":"SUMPRODUCT((INDIRECT(\"'\" & $K$1 & \"'!$C$2:$C$1501\")=$K75)*(INDIRECT(\"'\" & $K$1 & \"'!$B$2:$B$1501\")=$L75)*(INDIRECT(\"'\" & $K$1 & \"'!$E$2:$E$1501\")=$M75)*(INDIRECT(\"'\" & $K$1 & \"'!$M$2:$M$1501\")))","v":0},{"$f":"SUMPRODUCT((INDIRECT(\"'\" & $K$1 & \"'!$C$2:$C$1501\")=$K75)*(INDIRECT(\"'\" & $K$1 & \"'!$B$2:$B$1501\")=$L75)*(INDIRECT(\"'\" & $K$1 & \"'!$E$2:$E$1501\")=$M75)*(INDIRECT(\"'\" & $K$1 & \"'!$O$2:$O$1501\")))","v":0},null,"Physical Activity","Partner","Radio"]
[null,null,"Print","",0,0,0,0,0,null,"Physical Activity","Partner","Print"]
[null,null,"Social/Digital Media","",0,0,0,0,0,null,"Physical Activity","Partner","Social/Digital Media"]
[null,null,"Outdoor","",0,0,0,0,0,null,"Physical Activity","Partner","Outdoor"]
[null,null,"Other","",0,0,0,0,0,null,"Physical Activity","Partner","Other"]
[null,null,"Subtotal",null,{"$f":"IF(SUM(E74:E79)=0, 0, SUM(E74:E79))","v":0},{"$f":"IF(SUM(F74:F79)=0, 0, SUM(F74:F79))","v":0},{"$f":"IF(SUM(G74:G79)=0, 0, SUM(G74:G79))","v":0},{"$f":"IF(SUM(H74:H79)=0, 0, SUM(H74:H79))","v":0},{"$f":"IF(SUM(I74:I79)=0, 0, SUM(I74:I79))","v":0},null,"Physical Activity","Partner","Subtotal"]
[null,{"$f":"$O$1","v":"Sub-Recipients"},"Television","",null,null,null,null,null,null,"Physical Activity","Sub-Recipients","Television"]
[null,null,"Radio","",null,null,null,null,null,null,"Physical Activity","Sub-Recipients","Radio"]
[null,null,"Print","",null,null,null,null,null,null,"Physical Activity","Sub-Recipients","Print"]
[null,null,"Social/New Media","",null,null,null,null,null,null,"Physical Activity","Sub-Recipients","Social/New Media"]
[null,null,"Outdoor","",null,null,null,null,null,null,"Physical Activity","Sub-Recipients","Outdoor"]
[null,null,"Other","",null,null,null,null,null,null,"Physical Activity","Sub-Recipients","Other"]
[null,null,"Subtotal","",null,null,null,null,null,null,"Physical Activity","Sub-Recipients","Subtotal"]
[null,"TOTAL",null,null,{"$f":"SUMPRODUCT(($M60:$M87=$C$22)*(E60:E87))","v":0},{"$f":"SUMPRODUCT(($M60:$M87=$C$22)*(F60:F87))","v":0},{"$f":"SUMPRODUCT(($M60:$M87=$C$22)*(G60:G87))","v":0},{"$f":"SUMPRODUCT(($M60:$M87=$C$22)*(H60:H87))","v":0},{"$f":"SUMPRODUCT(($M60:$M87=$C$22)*(I60:I87))","v":0},null,"Physical Activity","TOTAL",0]
["Community-Clinical Linkages",{"$f":"$P$1","v":"Public-Earned"},"Television","",{"$f":"SUMPRODUCT((INDIRECT(\"'\" & $K$1 & \"'!$C$2:$C$1501\")= $K89)*(INDIRECT(\"'\" & $K$1 & \"'!$B$2:$B$1501\")= $L89)*(INDIRECT(\"'\" & $K$1 & \"'!$E$2:$E$1501\")= $M89)*(INDIRECT(\"'\" & $K$1 & \"'!$H$2:$H$1501\")))","v":0},{"$f":"SUMPRODUCT((INDIRECT(\"'\" & $K$1 & \"'!$C$2:$C$1501\")= $K89)*(INDIRECT(\"'\" & $K$1 & \"'!$B$2:$B$1501\")=$L89)*(INDIRECT(\"'\" & $K$1 & \"'!$E$2:$E$1501\")= $M89)*(INDIRECT(\"'\" & $K$1 & \"'!$I$2:$I$1501\")))","v":0},{"$f":"SUMPRODUCT((INDIRECT(\"'\" & $K$1 & \"'!$C$2:$C$1501\")=$K89)*(INDIRECT(\"'\" & $K$1 & \"'!$B$2:$B$1501\")=$L89)*(INDIRECT(\"'\" & $K$1 & \"'!$E$2:$E$1501\")=$M89)*(INDIRECT(\"'\" & $K$1 & \"'!$J$2:$J$1501\")))","v":0},{"$f":"SUMPRODUCT((INDIRECT(\"'\" & $K$1 & \"'!$C$2:$C$1501\")=$K89)*(INDIRECT(\"'\" & $K$1 & \"'!$B$2:$B$1501\")=$L89)*(INDIRECT(\"'\" & $K$1 & \"'!$E$2:$E$1501\")=$M89)*(INDIRECT(\"'\" & $K$1 & \"'!$M$2:$M$1501\")))","v":0},{"$f":"SUMPRODUCT((INDIRECT(\"'\" & $K$1 & \"'!$C$2:$C$1501\")=$K89)*(INDIRECT(\"'\" & $K$1 & \"'!$B$2:$B$1501\")=$L89)*(INDIRECT(\"'\" & $K$1 & \"'!$E$2:$E$1501\")=$M89)*(INDIRECT(\"'\" & $K$1 & \"'!$O$2:$O$1501\")))","v":0},null,"Community-Clinical Linkages","Public-Earned","Television"]
[null,null,"Radio","",{"$f":"SUMPRODUCT((INDIRECT(\"'\" & $K$1 & \"'!$C$2:$C$1501\")= $K90)*(INDIRECT(\"'\" & $K$1 & \"'!$B$2:$B$1501\")= $L90)*(INDIRECT(\"'\" & $K$1 & \"'!$E$2:$E$1501\")= $M90)*(INDIRECT(\"'\" & $K$1 & \"'!$H$2:$H$1501\")))","v":0},{"$f":"SUMPRODUCT((INDIRECT(\"'\" & $K$1 & \"'!$C$2:$C$1501\")= $K90)*(INDIRECT(\"'\" & $K$1 & \"'!$B$2:$B$1501\")=$L90)*(INDIRECT(\"'\" & $K$1 & \"'!$E$2:$E$1501\")= $M90)*(INDIRECT(\"'\" & $K$1 & \"'!$I$2:$I$1501\")))","v":0},{"$f":"SUMPRODUCT((INDIRECT(\"'\" & $K$1 & \"'!$C$2:$C$1501\")=$K90)*(INDIRECT(\"'\" & $K$1 & \"'!$B$2:$B$1501\")=$L90)*(INDIRECT(\"'\" & $K$1 & \"'!$E$2:$E$1501\")=$M90)*(INDIRECT(\"'\" & $K$1 & \"'!$J$2:$J$1501\")))","v":0},{"$f":"SUMPRODUCT((INDIRECT(\"'\" & $K$1 & \"'!$C$2:$C$1501\")=$K90)*(INDIRECT(\"'\" & $K$1 & \"'!$B$2:$B$1501\")=$L90)*(INDIRECT(\"'\" & $K$1 & \"'!$E$2:$E$1501\")=$M90)*(INDIRECT(\"'\" & $K$1 & \"'!$M$2:$M$1501\")))","v":0},{"$f":"SUMPRODUCT((INDIRECT(\"'\" & $K$1 & \"'!$C$2:$C$1501\")=$K90)*(INDIRECT(\"'\" & $K$1 & \"'!$B$2:$B$1501\")=$L90)*(INDIRECT(\"'\" & $K$1 & \"'!$E$2:$E$1501\")=$M90)*(INDIRECT(\"'\" & $K$1 & \"'!$O$2:$O$1501\")))","v":0},null,"Community-Clinical Linkages","Public-Earned","Radio"]
[null,null,"Print","",0,0,0,0,0,null,"Community-Clinical Linkages","Public-Earned","Print"]
[null,null,"Social/Digital Media","",0,0,0,0,0,null,"Community-Clinical Linkages","Public-Earned","Social/Digital Media"]
[null,null,"Outdoor","",0,0,0,0,0,null,"Community-Clinical Linkages","Public-Earned","Outdoor"]
[null,null,"Other","",0,0,0,0,0,null,"Community-Clinical Linkages","Public-Earned","Other"]
[null,null,"Subtotal",null,{"$f":"IF(SUM(E89:E94)=0, 0, SUM(E89:E94))","v":0},{"$f":"IF(SUM(F89:F94)=0, 0, SUM(F89:F94))","v":0},{"$f":"IF(SUM(G89:G94)=0, 0, SUM(G89:G94))","v":0},{"$f":"IF(SUM(H89:H94)=0, 0, SUM(H89:H94))","v":0},{"$f":"IF(SUM(I89:I94)=0, 0, SUM(I89:I94))","v":0},null,"Community-Clinical Linkages","Public-Earned","Subtotal"]
[null,{"$f":"$Q$1","v":"Public-Paid"},"Television","",{"$f":"SUMPRODUCT((INDIRECT(\"'\" & $K$1 & \"'!$C$2:$C$1501\")= $K96)*(INDIRECT(\"'\" & $K$1 & \"'!$B$2:$B$1501\")= $L96)*(INDIRECT(\"'\" & $K$1 & \"'!$E$2:$E$1501\")= $M96)*(INDIRECT(\"'\" & $K$1 & \"'!$H$2:$H$1501\")))","v":0},{"$f":"SUMPRODUCT((INDIRECT(\"'\" & $K$1 & \"'!$C$2:$C$1501\")= $K96)*(INDIRECT(\"'\" & $K$1 & \"'!$B$2:$B$1501\")=$L96)*(INDIRECT(\"'\" & $K$1 & \"'!$E$2:$E$1501\")= $M96)*(INDIRECT(\"'\" & $K$1 & \"'!$I$2:$I$1501\")))","v":0},{"$f":"SUMPRODUCT((INDIRECT(\"'\" & $K$1 & \"'!$C$2:$C$1501\")=$K96)*(INDIRECT(\"'\" & $K$1 & \"'!$B$2:$B$1501\")=$L96)*(INDIRECT(\"'\" & $K$1 & \"'!$E$2:$E$1501\")=$M96)*(INDIRECT(\"'\" & $K$1 & \"'!$J$2:$J$1501\")))","v":0},{"$f":"SUMPRODUCT((INDIRECT(\"'\" & $K$1 & \"'!$C$2:$C$1501\")=$K96)*(INDIRECT(\"'\" & $K$1 & \"'!$B$2:$B$1501\")=$L96)*(INDIRECT(\"'\" & $K$1 & \"'!$E$2:$E$1501\")=$M96)*(INDIRECT(\"'\" & $K$1 & \"'!$M$2:$M$1501\")))","v":0},{"$f":"SUMPRODUCT((INDIRECT(\"'\" & $K$1 & \"'!$C$2:$C$1501\")=$K96)*(INDIRECT(\"'\" & $K$1 & \"'!$B$2:$B$1501\")=$L96)*(INDIRECT(\"'\" & $K$1 & \"'!$E$2:$E$1501\")=$M96)*(INDIRECT(\"'\" & $K$1 & \"'!$O$2:$O$1501\")))","v":0},null,"Community-Clinical Linkages","Public-Paid","Television"]
[null,null,"Radio","",{"$f":"SUMPRODUCT((INDIRECT(\"'\" & $K$1 & \"'!$C$2:$C$1501\")= $K97)*(INDIRECT(\"'\" & $K$1 & \"'!$B$2:$B$1501\")= $L97)*(INDIRECT(\"'\" & $K$1 & \"'!$E$2:$E$1501\")= $M97)*(INDIRECT(\"'\" & $K$1 & \"'!$H$2:$H$1501\")))","v":0},{"$f":"SUMPRODUCT((INDIRECT(\"'\" & $K$1 & \"'!$C$2:$C$1501\")= $K97)*(INDIRECT(\"'\" & $K$1 & \"'!$B$2:$B$1501\")=$L97)*(INDIRECT(\"'\" & $K$1 & \"'!$E$2:$E$1501\")= $M97)*(INDIRECT(\"'\" & $K$1 & \"'!$I$2:$I$1501\")))","v":0},{"$f":"SUMPRODUCT((INDIRECT(\"'\" & $K$1 & \"'!$C$2:$C$1501\")=$K97)*(INDIRECT(\"'\" & $K$1 & \"'!$B$2:$B$1501\")=$L97)*(INDIRECT(\"'\" & $K$1 & \"'!$E$2:$E$1501\")=$M97)*(INDIRECT(\"'\" & $K$1 & \"'!$J$2:$J$1501\")))","v":0},{"$f":"SUMPRODUCT((INDIRECT(\"'\" & $K$1 & \"'!$C$2:$C$1501\")=$K97)*(INDIRECT(\"'\" & $K$1 & \"'!$B$2:$B$1501\")=$L97)*(INDIRECT(\"'\" & $K$1 & \"'!$E$2:$E$1501\")=$M97)*(INDIRECT(\"'\" & $K$1 & \"'!$M$2:$M$1501\")))","v":0},{"$f":"SUMPRODUCT((INDIRECT(\"'\" & $K$1 & \"'!$C$2:$C$1501\")=$K97)*(INDIRECT(\"'\" & $K$1 & \"'!$B$2:$B$1501\")=$L97)*(INDIRECT(\"'\" & $K$1 & \"'!$E$2:$E$1501\")=$M97)*(INDIRECT(\"'\" & $K$1 & \"'!$O$2:$O$1501\")))","v":0},null,"Community-Clinical Linkages","Public-Paid","Radio"]
[null,null,"Print","",0,0,0,0,0,null,"Community-Clinical Linkages","Public-Paid","Print"]
[null,null,"Social/Digital Media","",0,0,0,0,0,null,"Community-Clinical Linkages","Public-Paid","Social/Digital Media"]
[null,null,"Outdoor","",0,0,0,0,0,null,"Community-Clinical Linkages","Public-Paid","Outdoor"]
[null,null,"Other","",0,0,0,0,0,null,"Community-Clinical Linkages","Public-Paid","Other"]
[null,null,"Subtotal",null,{"$f":"IF(SUM(E96:E101)=0, 0, SUM(E96:E101))","v":0},{"$f":"IF(SUM(F96:F101)=0, 0, SUM(F96:F101))","v":0},{"$f":"IF(SUM(G96:G101)=0, 0, SUM(G96:G101))","v":0},{"$f":"IF(SUM(H96:H101)=0, 0, SUM(H96:H101))","v":0},{"$f":"IF(SUM(I96:I101)=0, 0, SUM(I96:I101))","v":0},null,"Community-Clinical Linkages","Public-Paid","Subtotal"]
[null,{"$f":"$N$1","v":"Partner"},"Television","",{"$f":"SUMPRODUCT((INDIRECT(\"'\" & $K$1 & \"'!$C$2:$C$1501\")= $K103)*(INDIRECT(\"'\" & $K$1 & \"'!$B$2:$B$1501\")= $L103)*(INDIRECT(\"'\" & $K$1 & \"'!$E$2:$E$1501\")= $M103)*(INDIRECT(\"'\" & $K$1 & \"'!$H$2:$H$1501\")))","v":0},{"$f":"SUMPRODUCT((INDIRECT(\"'\" & $K$1 & \"'!$C$2:$C$1501\")= $K103)*(INDIRECT(\"'\" & $K$1 & \"'!$B$2:$B$1501\")=$L103)*(INDIRECT(\"'\" & $K$1 & \"'!$E$2:$E$1501\")= $M103)*(INDIRECT(\"'\" & $K$1 & \"'!$I$2:$I$1501\")))","v":0},{"$f":"SUMPRODUCT((INDIRECT(\"'\" & $K$1 & \"'!$C$2:$C$1501\")=$K103)*(INDIRECT(\"'\" & $K$1 & \"'!$B$2:$B$1501\")=$L103)*(INDIRECT(\"'\" & $K$1 & \"'!$E$2:$E$1501\")=$M103)*(INDIRECT(\"'\" & $K$1 & \"'!$J$2:$J$1501\")))","v":0},{"$f":"SUMPRODUCT((INDIRECT(\"'\" & $K$1 & \"'!$C$2:$C$1501\")=$K103)*(INDIRECT(\"'\" & $K$1 & \"'!$B$2:$B$1501\")=$L103)*(INDIRECT(\"'\" & $K$1 & \"'!$E$2:$E$1501\")=$M103)*(INDIRECT(\"'\" & $K$1 & \"'!$M$2:$M$1501\")))","v":0},{"$f":"SUMPRODUCT((INDIRECT(\"'\" & $K$1 & \"'!$C$2:$C$1501\")=$K103)*(INDIRECT(\"'\" & $K$1 & \"'!$B$2:$B$1501\")=$L103)*(INDIRECT(\"'\" & $K$1 & \"'!$E$2:$E$1501\")=$M103)*(INDIRECT(\"'\" & $K$1 & \"'!$O$2:$O$1501\")))","v":0},null,"Community-Clinical Linkages","Partner","Television"]
[null,null,"Radio","",{"$f":"SUMPRODUCT((INDIRECT(\"'\" & $K$1 & \"'!$C$2:$C$1501\")= $K104)*(INDIRECT(\"'\" & $K$1 & \"'!$B$2:$B$1501\")= $L104)*(INDIRECT(\"'\" & $K$1 & \"'!$E$2:$E$1501\")= $M104)*(INDIRECT(\"'\" & $K$1 & \"'!$H$2:$H$1501\")))","v":0},{"$f":"SUMPRODUCT((INDIRECT(\"'\" & $K$1 & \"'!$C$2:$C$1501\")= $K104)*(INDIRECT(\"'\" & $K$1 & \"'!$B$2:$B$1501\")=$L104)*(INDIRECT(\"'\" & $K$1 & \"'!$E$2:$E$1501\")= $M104)*(INDIRECT(\"'\" & $K$1 & \"'!$I$2:$I$1501\")))","v":0},{"$f":"SUMPRODUCT((INDIRECT(\"'\" & $K$1 & \"'!$C$2:$C$1501\")=$K104)*(INDIRECT(\"'\" & $K$1 & \"'!$B$2:$B$1501\")=$L104)*(INDIRECT(\"'\" & $K$1 & \"'!$E$2:$E$1501\")=$M104)*(INDIRECT(\"'\" & $K$1 & \"'!$J$2:$J$1501\")))","v":0},{"$f":"SUMPRODUCT((INDIRECT(\"'\" & $K$1 & \"'!$C$2:$C$1501\")=$K104)*(INDIRECT(\"'\" & $K$1 & \"'!$B$2:$B$1501\")=$L104)*(INDIRECT(\"'\" & $K$1 & \"'!$E$2:$E$1501\")=$M104)*(INDIRECT(\"'\" & $K$1 & \"'!$M$2:$M$1501\")))","v":0},{"$f":"SUMPRODUCT((INDIRECT(\"'\" & $K$1 & \"'!$C$2:$C$1501\")=$K104)*(INDIRECT(\"'\" & $K$1 & \"'!$B$2:$B$1501\")=$L104)*(INDIRECT(\"'\" & $K$1 & \"'!$E$2:$E$1501\")=$M104)*(INDIRECT(\"'\" & $K$1 & \"'!$O$2:$O$1501\")))","v":0},null,"Community-Clinical Linkages","Partner","Radio"]
[null,null,"Print","",0,0,0,0,0,null,"Community-Clinical Linkages","Partner","Print"]
[null,null,"Social/Digital Media","",0,0,0,0,0,null,"Community-Clinical Linkages","Partner","Social/Digital Media"]
[null,null,"Outdoor","",0,0,0,0,0,null,"Community-Clinical Linkages","Partner","Outdoor"]
[null,null,"Other","",0,0,0,0,0,null,"Community-Clinical Linkages","Partner","Other"]
[null,null,"Subtotal",null,{"$f":"IF(SUM(E103:E108)=0, 0, SUM(E103:E108))","v":0},{"$f":"IF(SUM(F103:F108)=0, 0, SUM(F103:F108))","v":0},{"$f":"IF(SUM(G103:G108)=0, 0, SUM(G103:G108))","v":0},{"$f":"IF(SUM(H103:H108)=0, 0, SUM(H103:H108))","v":0},{"$f":"IF(SUM(I103:I108)=0, 0, SUM(I103:I108))","v":0},null,"Community-Clinical Linkages","Partner","Subtotal"]
[null,{"$f":"$O$1","v":"Sub-Recipients"},"Television","",null,null,null,null,null,null,"Community-Clinical Linkages","Sub-Recipients","Television"]
[null,null,"Radio","",null,null,null,null,null,null,"Community-Clinical Linkages","Sub-Recipients","Radio"]
[null,null,"Print","",null,null,null,null,null,null,"Community-Clinical Linkages","Sub-Recipients","Print"]
[null,null,"Social/New Media","",null,null,null,null,null,null,"Community-Clinical Linkages","Sub-Recipients","Social/New Media"]
[null,null,"Outdoor","",null,null,null,null,null,null,"Community-Clinical Linkages","Sub-Recipients","Outdoor"]
[null,null,"Other","",null,null,null,null,null,null,"Community-Clinical Linkages","Sub-Recipients","Other"]
[null,null,"Subtotal","",null,null,null,null,null,null,"Community-Clinical Linkages","Sub-Recipients","Subtotal"]
[null,"TOTAL",null,null,{"$f":"SUMPRODUCT(($M89:$M116=$C$22)*(E89:E116))","v":0},{"$f":"SUMPRODUCT(($M89:$M116=$C$22)*(F89:F116))","v":0},{"$f":"SUMPRODUCT(($M89:$M116=$C$22)*(G89:G116))","v":0},{"$f":"SUMPRODUCT(($M89:$M116=$C$22)*(H89:H116))","v":0},{"$f":"SUMPRODUCT(($M89:$M116=$C$22)*(I89:I116))","v":0},null,"Community-Clinical Linkages","TOTAL",0]
["Cross-cutting General",{"$f":"$P$1","v":"Public-Earned"},"Television","",{"$f":"SUMPRODUCT((INDIRECT(\"'\" & $K$1 & \"'!$C$2:$C$1501\")= $K118)*(INDIRECT(\"'\" & $K$1 & \"'!$B$2:$B$1501\")= $L118)*(INDIRECT(\"'\" & $K$1 & \"'!$E$2:$E$1501\")= $M118)*(INDIRECT(\"'\" & $K$1 & \"'!$H$2:$H$1501\")))","v":0},{"$f":"SUMPRODUCT((INDIRECT(\"'\" & $K$1 & \"'!$C$2:$C$1501\")= $K118)*(INDIRECT(\"'\" & $K$1 & \"'!$B$2:$B$1501\")=$L118)*(INDIRECT(\"'\" & $K$1 & \"'!$E$2:$E$1501\")= $M118)*(INDIRECT(\"'\" & $K$1 & \"'!$I$2:$I$1501\")))","v":0},{"$f":"SUMPRODUCT((INDIRECT(\"'\" & $K$1 & \"'!$C$2:$C$1501\")=$K118)*(INDIRECT(\"'\" & $K$1 & \"'!$B$2:$B$1501\")=$L118)*(INDIRECT(\"'\" & $K$1 & \"'!$E$2:$E$1501\")=$M118)*(INDIRECT(\"'\" & $K$1 & \"'!$J$2:$J$1501\")))","v":0},{"$f":"SUMPRODUCT((INDIRECT(\"'\" & $K$1 & \"'!$C$2:$C$1501\")=$K118)*(INDIRECT(\"'\" & $K$1 & \"'!$B$2:$B$1501\")=$L118)*(INDIRECT(\"'\" & $K$1 & \"'!$E$2:$E$1501\")=$M118)*(INDIRECT(\"'\" & $K$1 & \"'!$M$2:$M$1501\")))","v":0},{"$f":"SUMPRODUCT((INDIRECT(\"'\" & $K$1 & \"'!$C$2:$C$1501\")=$K118)*(INDIRECT(\"'\" & $K$1 & \"'!$B$2:$B$1501\")=$L118)*(INDIRECT(\"'\" & $K$1 & \"'!$E$2:$E$1501\")=$M118)*(INDIRECT(\"'\" & $K$1 & \"'!$O$2:$O$1501\")))","v":0},null,"Cross-cutting General","Public-Earned","Television"]
[null,null,"Radio","",{"$f":"SUMPRODUCT((INDIRECT(\"'\" & $K$1 & \"'!$C$2:$C$1501\")= $K119)*(INDIRECT(\"'\" & $K$1 & \"'!$B$2:$B$1501\")= $L119)*(INDIRECT(\"'\" & $K$1 & \"'!$E$2:$E$1501\")= $M119)*(INDIRECT(\"'\" & $K$1 & \"'!$H$2:$H$1501\")))","v":0},{"$f":"SUMPRODUCT((INDIRECT(\"'\" & $K$1 & \"'!$C$2:$C$1501\")= $K119)*(INDIRECT(\"'\" & $K$1 & \"'!$B$2:$B$1501\")=$L119)*(INDIRECT(\"'\" & $K$1 & \"'!$E$2:$E$1501\")= $M119)*(INDIRECT(\"'\" & $K$1 & \"'!$I$2:$I$1501\")))","v":0},{"$f":"SUMPRODUCT((INDIRECT(\"'\" & $K$1 & \"'!$C$2:$C$1501\")=$K119)*(INDIRECT(\"'\" & $K$1 & \"'!$B$2:$B$1501\")=$L119)*(INDIRECT(\"'\" & $K$1 & \"'!$E$2:$E$1501\")=$M119)*(INDIRECT(\"'\" & $K$1 & \"'!$J$2:$J$1501\")))","v":0},{"$f":"SUMPRODUCT((INDIRECT(\"'\" & $K$1 & \"'!$C$2:$C$1501\")=$K119)*(INDIRECT(\"'\" & $K$1 & \"'!$B$2:$B$1501\")=$L119)*(INDIRECT(\"'\" & $K$1 & \"'!$E$2:$E$1501\")=$M119)*(INDIRECT(\"'\" & $K$1 & \"'!$M$2:$M$1501\")))","v":0},{"$f":"SUMPRODUCT((INDIRECT(\"'\" & $K$1 & \"'!$C$2:$C$1501\")=$K119)*(INDIRECT(\"'\" & $K$1 & \"'!$B$2:$B$1501\")=$L119)*(INDIRECT(\"'\" & $K$1 & \"'!$E$2:$E$1501\")=$M119)*(INDIRECT(\"'\" & $K$1 & \"'!$O$2:$O$1501\")))","v":0},null,"Cross-cutting General","Public-Earned","Radio"]
[null,null,"Print","",0,0,0,0,0,null,"Cross-cutting General","Public-Earned","Print"]
[null,null,"Social/Digital Media","",0,0,0,0,0,null,"Cross-cutting General","Public-Earned","Social/Digital Media"]
[null,null,"Outdoor","",0,0,0,0,0,null,"Cross-cutting General","Public-Earned","Outdoor"]
[null,null,"Other","",0,0,0,0,0,null,"Cross-cutting General","Public-Earned","Other"]
[null,null,"Subtotal",null,{"$f":"IF(SUM(E118:E123)=0, 0, SUM(E118:E123))","v":0},{"$f":"IF(SUM(F118:F123)=0, 0, SUM(F118:F123))","v":0},{"$f":"IF(SUM(G118:G123)=0, 0, SUM(G118:G123))","v":0},{"$f":"IF(SUM(H118:H123)=0, 0, SUM(H118:H123))","v":0},{"$f":"IF(SUM(I118:I123)=0, 0, SUM(I118:I123))","v":0},null,"Cross-cutting General","Public-Earned","Subtotal"]
[null,{"$f":"$Q$1","v":"Public-Paid"},"Television","",{"$f":"SUMPRODUCT((INDIRECT(\"'\" & $K$1 & \"'!$C$2:$C$1501\")= $K125)*(INDIRECT(\"'\" & $K$1 & \"'!$B$2:$B$1501\")= $L125)*(INDIRECT(\"'\" & $K$1 & \"'!$E$2:$E$1501\")= $M125)*(INDIRECT(\"'\" & $K$1 & \"'!$H$2:$H$1501\")))","v":0},{"$f":"SUMPRODUCT((INDIRECT(\"'\" & $K$1 & \"'!$C$2:$C$1501\")= $K125)*(INDIRECT(\"'\" & $K$1 & \"'!$B$2:$B$1501\")=$L125)*(INDIRECT(\"'\" & $K$1 & \"'!$E$2:$E$1501\")= $M125)*(INDIRECT(\"'\" & $K$1 & \"'!$I$2:$I$1501\")))","v":0},{"$f":"SUMPRODUCT((INDIRECT(\"'\" & $K$1 & \"'!$C$2:$C$1501\")=$K125)*(INDIRECT(\"'\" & $K$1 & \"'!$B$2:$B$1501\")=$L125)*(INDIRECT(\"'\" & $K$1 & \"'!$E$2:$E$1501\")=$M125)*(INDIRECT(\"'\" & $K$1 & \"'!$J$2:$J$1501\")))","v":0},{"$f":"SUMPRODUCT((INDIRECT(\"'\" & $K$1 & \"'!$C$2:$C$1501\")=$K125)*(INDIRECT(\"'\" & $K$1 & \"'!$B$2:$B$1501\")=$L125)*(INDIRECT(\"'\" & $K$1 & \"'!$E$2:$E$1501\")=$M125)*(INDIRECT(\"'\" & $K$1 & \"'!$M$2:$M$1501\")))","v":0},{"$f":"SUMPRODUCT((INDIRECT(\"'\" & $K$1 & \"'!$C$2:$C$1501\")=$K125)*(INDIRECT(\"'\" & $K$1 & \"'!$B$2:$B$1501\")=$L125)*(INDIRECT(\"'\" & $K$1 & \"'!$E$2:$E$1501\")=$M125)*(INDIRECT(\"'\" & $K$1 & \"'!$O$2:$O$1501\")))","v":0},null,"Cross-cutting General","Public-Paid","Television"]
[null,null,"Radio","",{"$f":"SUMPRODUCT((INDIRECT(\"'\" & $K$1 & \"'!$C$2:$C$1501\")= $K126)*(INDIRECT(\"'\" & $K$1 & \"'!$B$2:$B$1501\")= $L126)*(INDIRECT(\"'\" & $K$1 & \"'!$E$2:$E$1501\")= $M126)*(INDIRECT(\"'\" & $K$1 & \"'!$H$2:$H$1501\")))","v":0},{"$f":"SUMPRODUCT((INDIRECT(\"'\" & $K$1 & \"'!$C$2:$C$1501\")= $K126)*(INDIRECT(\"'\" & $K$1 & \"'!$B$2:$B$1501\")=$L126)*(INDIRECT(\"'\" & $K$1 & \"'!$E$2:$E$1501\")= $M126)*(INDIRECT(\"'\" & $K$1 & \"'!$I$2:$I$1501\")))","v":0},{"$f":"SUMPRODUCT((INDIRECT(\"'\" & $K$1 & \"'!$C$2:$C$1501\")=$K126)*(INDIRECT(\"'\" & $K$1 & \"'!$B$2:$B$1501\")=$L126)*(INDIRECT(\"'\" & $K$1 & \"'!$E$2:$E$1501\")=$M126)*(INDIRECT(\"'\" & $K$1 & \"'!$J$2:$J$1501\")))","v":0},{"$f":"SUMPRODUCT((INDIRECT(\"'\" & $K$1 & \"'!$C$2:$C$1501\")=$K126)*(INDIRECT(\"'\" & $K$1 & \"'!$B$2:$B$1501\")=$L126)*(INDIRECT(\"'\" & $K$1 & \"'!$E$2:$E$1501\")=$M126)*(INDIRECT(\"'\" & $K$1 & \"'!$M$2:$M$1501\")))","v":0},{"$f":"SUMPRODUCT((INDIRECT(\"'\" & $K$1 & \"'!$C$2:$C$1501\")=$K126)*(INDIRECT(\"'\" & $K$1 & \"'!$B$2:$B$1501\")=$L126)*(INDIRECT(\"'\" & $K$1 & \"'!$E$2:$E$1501\")=$M126)*(INDIRECT(\"'\" & $K$1 & \"'!$O$2:$O$1501\")))","v":0},null,"Cross-cutting General","Public-Paid","Radio"]
[null,null,"Print","",0,0,0,0,0,null,"Cross-cutting General","Public-Paid","Print"]
[null,null,"Social/Digital Media","",0,0,0,0,0,null,"Cross-cutting General","Public-Paid","Social/Digital Media"]
[null,null,"Outdoor","",0,0,0,0,0,null,"Cross-cutting General","Public-Paid","Outdoor"]
[null,null,"Other","",0,0,0,0,0,null,"Cross-cutting General","Public-Paid","Other"]
[null,null,"Subtotal",null,{"$f":"IF(SUM(E125:E130)=0, 0, SUM(E125:E130))","v":0},{"$f":"IF(SUM(F125:F130)=0, 0, SUM(F125:F130))","v":0},{"$f":"IF(SUM(G125:G130)=0, 0, SUM(G125:G130))","v":0},{"$f":"IF(SUM(H125:H130)=0, 0, SUM(H125:H130))","v":0},{"$f":"IF(SUM(I125:I130)=0, 0, SUM(I125:I130))","v":0},null,{"$f":"IF(OR(A130=\"Strategic Direction\", A130=\"Type\", A130=\"Media Channel/Type\", A130=0), IF(A131=0, K130, A131), A130)","v":"Cross-cutting General"},{"$f":"IF(OR(B130=\"Strategic Direction\", B130=\"Type\", B130=\"Media Channel/Type\", B130=0, B130=\"TOTAL\"), IF(B131=0, L130, IF(B131=$N$1, \"Partner\",IF(B131=$O$1, \"Sub-Recipients\", IF(B131=$P$1, \"Public-Earned\", IF(B131=$Q$1, \"Public-Paid\", B131))))), IF(B130=$N$1, \"Partner\",IF(B130=$O$1, \"Sub-Recipients\", IF(B130=$P$1, \"Public-Earned\", IF(B130=$Q$1, \"Public-Paid\", L130)))))","v":"Public-Paid"},{"$f":"C131","v":"Subtotal"}]
[null,{"$f":"$N$1","v":"Partner"},"Television",{"$f":"$M$1","v":""},{"$f":"SUMPRODUCT((INDIRECT(\"'\" & $K$1 & \"'!$C$2:$C$1501\")= $K132)*(INDIRECT(\"'\" & $K$1 & \"'!$B$2:$B$1501\")= $L132)*(INDIRECT(\"'\" & $K$1 & \"'!$E$2:$E$1501\")= $M132)*(INDIRECT(\"'\" & $K$1 & \"'!$H$2:$H$1501\")))","v":0},{"$f":"SUMPRODUCT((INDIRECT(\"'\" & $K$1 & \"'!$C$2:$C$1501\")= $K132)*(INDIRECT(\"'\" & $K$1 & \"'!$B$2:$B$1501\")=$L132)*(INDIRECT(\"'\" & $K$1 & \"'!$E$2:$E$1501\")= $M132)*(INDIRECT(\"'\" & $K$1 & \"'!$I$2:$I$1501\")))","v":0},{"$f":"SUMPRODUCT((INDIRECT(\"'\" & $K$1 & \"'!$C$2:$C$1501\")=$K132)*(INDIRECT(\"'\" & $K$1 & \"'!$B$2:$B$1501\")=$L132)*(INDIRECT(\"'\" & $K$1 & \"'!$E$2:$E$1501\")=$M132)*(INDIRECT(\"'\" & $K$1 & \"'!$J$2:$J$1501\")))","v":0},{"$f":"SUMPRODUCT((INDIRECT(\"'\" & $K$1 & \"'!$C$2:$C$1501\")=$K132)*(INDIRECT(\"'\" & $K$1 & \"'!$B$2:$B$1501\")=$L132)*(INDIRECT(\"'\" & $K$1 & \"'!$E$2:$E$1501\")=$M132)*(INDIRECT(\"'\" & $K$1 & \"'!$M$2:$M$1501\")))","v":0},{"$f":"SUMPRODUCT((INDIRECT(\"'\" & $K$1 & \"'!$C$2:$C$1501\")=$K132)*(INDIRECT(\"'\" & $K$1 & \"'!$B$2:$B$1501\")=$L132)*(INDIRECT(\"'\" & $K$1 & \"'!$E$2:$E$1501\")=$M132)*(INDIRECT(\"'\" & $K$1 & \"'!$O$2:$O$1501\")))","v":0},null,"Cross-cutting General","Partner","Television"]
[null,null,"Radio","",{"$f":"SUMPRODUCT((INDIRECT(\"'\" & $K$1 & \"'!$C$2:$C$1501\")= $K133)*(INDIRECT(\"'\" & $K$1 & \"'!$B$2:$B$1501\")= $L133)*(INDIRECT(\"'\" & $K$1 & \"'!$E$2:$E$1501\")= $M133)*(INDIRECT(\"'\" & $K$1 & \"'!$H$2:$H$1501\")))","v":0},{"$f":"SUMPRODUCT((INDIRECT(\"'\" & $K$1 & \"'!$C$2:$C$1501\")= $K133)*(INDIRECT(\"'\" & $K$1 & \"'!$B$2:$B$1501\")=$L133)*(INDIRECT(\"'\" & $K$1 & \"'!$E$2:$E$1501\")= $M133)*(INDIRECT(\"'\" & $K$1 & \"'!$I$2:$I$1501\")))","v":0},{"$f":"SUMPRODUCT((INDIRECT(\"'\" & $K$1 & \"'!$C$2:$C$1501\")=$K133)*(INDIRECT(\"'\" & $K$1 & \"'!$B$2:$B$1501\")=$L133)*(INDIRECT(\"'\" & $K$1 & \"'!$E$2:$E$1501\")=$M133)*(INDIRECT(\"'\" & $K$1 & \"'!$J$2:$J$1501\")))","v":0},{"$f":"SUMPRODUCT((INDIRECT(\"'\" & $K$1 & \"'!$C$2:$C$1501\")=$K133)*(INDIRECT(\"'\" & $K$1 & \"'!$B$2:$B$1501\")=$L133)*(INDIRECT(\"'\" & $K$1 & \"'!$E$2:$E$1501\")=$M133)*(INDIRECT(\"'\" & $K$1 & \"'!$M$2:$M$1501\")))","v":0},{"$f":"SUMPRODUCT((INDIRECT(\"'\" & $K$1 & \"'!$C$2:$C$1501\")=$K133)*(INDIRECT(\"'\" & $K$1 & \"'!$B$2:$B$1501\")=$L133)*(INDIRECT(\"'\" & $K$1 & \"'!$E$2:$E$1501\")=$M133)*(INDIRECT(\"'\" & $K$1 & \"'!$O$2:$O$1501\")))","v":0},null,"Cross-cutting General","Partner","Radio"]
[null,null,"Print","",0,0,0,0,0,null,"Cross-cutting General","Partner","Print"]
[null,null,"Social/Digital Media","",0,0,0,0,0,null,"Cross-cutting General","Partner","Social/Digital Media"]
[null,null,"Outdoor","",0,0,0,0,0,null,"Cross-cutting General","Partner","Outdoor"]
[null,null,"Other","",0,0,0,0,0,null,"Cross-cutting General","Partner","Other"]
[null,null,"Subtotal",null,{"$f":"IF(SUM(E132:E137)=0, 0, SUM(E132:E137))","v":0},{"$f":"IF(SUM(F132:F137)=0, 0, SUM(F132:F137))","v":0},{"$f":"IF(SUM(G132:G137)=0, 0, SUM(G132:G137))","v":0},{"$f":"IF(SUM(H132:H137)=0, 0, SUM(H132:H137))","v":0},{"$f":"IF(SUM(I132:I137)=0, 0, SUM(I132:I137))","v":0},null,"Cross-cutting General","Partner","Subtotal"]
[null,{"$f":"$O$1","v":"Sub-Recipients"},"Television",{"$f":"time_pd_place","v":0},null,null,null,null,null,null,"Cross-cutting General","Sub-Recipients","Television"]
[null,null,"Radio",0,null,null,null,null,null,null,"Cross-cutting General","Sub-Recipients","Radio"]
[null,null,"Print",0,null,null,null,null,null,null,"Cross-cutting General","Sub-Recipients","Print"]
[null,null,"Social/New Media",0,null,null,null,null,null,null,"Cross-cutting General","Sub-Recipients","Social/New Media"]
[null,null,"Outdoor",0,null,null,null,null,null,null,"Cross-cutting General","Sub-Recipients","Outdoor"]
[null,null,"Other",0,null,null,null,null,null,null,"Cross-cutting General","Sub-Recipients","Other"]
[null,null,"Subtotal",null,null,null,null,null,null,null,"Cross-cutting General","Sub-Recipients","Subtotal"]
[null,"TOTAL",null,null,{"$f":"SUMPRODUCT(($M118:$M145=$C$22)*(E118:E145))","v":0},{"$f":"SUMPRODUCT(($M118:$M145=$C$22)*(F118:F145))","v":0},{"$f":"SUMPRODUCT(($M118:$M145=$C$22)*(G118:G145))","v":0},{"$f":"SUMPRODUCT(($M118:$M145=$C$22)*(H118:H145))","v":0},{"$f":"SUMPRODUCT(($M118:$M145=$C$22)*(I118:I145))","v":0},null,"Cross-cutting General","TOTAL",0]
[{"$f":"\"Total \" & $P$1","v":"Total Public-Earned"},"Public-Earned","Subtotal",null,{"$f":"SUMPRODUCT(($L$2:$L$138=$B147)*($M$2:$M$138=$C147)*(E$2:E$138))","v":0},{"$f":"SUMPRODUCT(($L$2:$L$138=$B147)*($M$2:$M$138=$C147)*(F$2:F$138))","v":0},0,0,0]
[{"$f":"\"Total \" & $Q$1","v":"Total Public-Paid"},"Public-Paid","Subtotal",null,{"$f":"SUMPRODUCT(($L$2:$L$138=$B148)*($M$2:$M$138=$C148)*(E$2:E$138))","v":0},0,0,0,0]
[{"$f":"\"Total \" & $N$1","v":"Total Partner"},"Partner","Subtotal",null,0,0,0,0,0]
["Total","TOTAL",null,null,{"$f":"SUMPRODUCT(($L$2:$L$146=$B$150)*(E$2:E$146))","v":0},{"$f":"SUMPRODUCT(($L$2:$L$146=$B$150)*(F$2:F$146))","v":0},0,0,0]
[]
["Grantee Messages",null,null,"Partner Messages",null,"Sub-Recipient"]
["Public-Earned",{"$f":"SUMPRODUCT((INDIRECT(\"'\" & $K$1 & \"'!$B$2:$B$5001\")= A153)*(INDIRECT(\"'\" & $K$1 & \"'!$a$2:$a$5001\")=\"Grantee\")*(INDIRECT(\"'\" & $K$1 & \"'!$p$2:$p$5001\")=\"N\")) + SUMPRODUCT((INDIRECT(\"'\" & $K$1 & \"'!$B$2:$B$5001\")= A153)*(INDIRECT(\"'\" & $K$1 & \"'!$a$2:$a$5001\")=\"Grantee\")*(INDIRECT(\"'\" & $K$1 & \"'!$p$2:$p$5001\")=\"Y\")*(INDIRECT(\"'\" & $K$1 & \"'!$g$2:$g$5001\")))","v":0},null,"Public-Earned",{"$f":"SUMPRODUCT((INDIRECT(\"'\" & $K$1 & \"'!$B$2:$B$5001\")= D153)*(INDIRECT(\"'\" & $K$1 & \"'!$a$2:$a$5001\")=\"Partner\")*(INDIRECT(\"'\" & $K$1 & \"'!$p$2:$p$5001\")=\"N\")) + SUMPRODUCT((INDIRECT(\"'\" & $K$1 & \"'!$B$2:$B$5001\")= D153)*(INDIRECT(\"'\" & $K$1 & \"'!$a$2:$a$5001\")=\"Partner\")*(INDIRECT(\"'\" & $K$1 & \"'!$p$2:$p$5001\")=\"Y\")*(INDIRECT(\"'\" & $K$1 & \"'!$g$2:$g$5001\")))","v":0},"Public-Earned",{"$f":"SUMPRODUCT((INDIRECT(\"'\" & $K$1 & \"'!$B$2:$B$5001\")= F153)*(INDIRECT(\"'\" & $K$1 & \"'!$a$2:$a$5001\")=$F$153))","v":0}]
["Public-Paid",{"$f":"SUMPRODUCT((INDIRECT(\"'\" & $K$1 & \"'!$B$2:$B$5001\")= A154)*(INDIRECT(\"'\" & $K$1 & \"'!$a$2:$a$5001\")=\"Grantee\")*(INDIRECT(\"'\" & $K$1 & \"'!$p$2:$p$5001\")=\"N\")) + SUMPRODUCT((INDIRECT(\"'\" & $K$1 & \"'!$B$2:$B$5001\")= A154)*(INDIRECT(\"'\" & $K$1 & \"'!$a$2:$a$5001\")=\"Grantee\")*(INDIRECT(\"'\" & $K$1 & \"'!$p$2:$p$5001\")=\"Y\")*(INDIRECT(\"'\" & $K$1 & \"'!$g$2:$g$5001\")))","v":0},null,"Public-Paid",{"$f":"SUMPRODUCT((INDIRECT(\"'\" & $K$1 & \"'!$B$2:$B$5001\")= D154)*(INDIRECT(\"'\" & $K$1 & \"'!$a$2:$a$5001\")=\"Partner\")*(INDIRECT(\"'\" & $K$1 & \"'!$p$2:$p$5001\")=\"N\")) + SUMPRODUCT((INDIRECT(\"'\" & $K$1 & \"'!$B$2:$B$5001\")= D154)*(INDIRECT(\"'\" & $K$1 & \"'!$a$2:$a$5001\")=\"Partner\")*(INDIRECT(\"'\" & $K$1 & \"'!$p$2:$p$5001\")=\"Y\")*(INDIRECT(\"'\" & $K$1 & \"'!$g$2:$g$5001\")))","v":0},"Public-Paid",{"$f":"SUMPRODUCT((INDIRECT(\"'\" & $K$1 & \"'!$B$2:$B$5001\")= F154)*(INDIRECT(\"'\" & $K$1 & \"'!$a$2:$a$5001\")=$F$153))","v":0}]
["Grantee to Public",{"$f":"SUM(B153:B154)","v":0}]
["Grantee to Partner",{"$f":"SUMPRODUCT((INDIRECT(\"'\" & $K$1 & \"'!$B$2:$B$5001\")= \"Partner\")*(INDIRECT(\"'\" & $K$1 & \"'!$a$2:$a$5001\")=\"Grantee\")*(INDIRECT(\"'\" & $K$1 & \"'!$p$2:$p$5001\")=\"N\")) + SUMPRODUCT((INDIRECT(\"'\" & $K$1 & \"'!$B$2:$B$5001\")= \"Partner\")*(INDIRECT(\"'\" & $K$1 & \"'!$a$2:$a$5001\")=\"Grantee\")*(INDIRECT(\"'\" & $K$1 & \"'!$p$2:$p$5001\")=\"Y\")*(INDIRECT(\"'\" & $K$1 & \"'!$g$2:$g$5001\")))","v":0},null,null,null,"Partner",{"$f":"SUMPRODUCT((INDIRECT(\"'\" & $K$1 & \"'!$B$2:$B$5001\")= F156)*(INDIRECT(\"'\" & $K$1 & \"'!$a$2:$a$5001\")=$F$153))","v":0}]
[]
["Total Grantee Messages",{"$f":"SUM(B155, B156:B157)","v":0},null,"Total Partner Messages",{"$f":"SUM(E153:E154)","v":0},"Total Sub-Recipient",{"$f":"SUM(G153:G156)","v":0}]
[]
["Total",{"$f":"SUM(E158,G158,B158)","v":0}]

{"sheet":"LookupData","index":4,"n_rows":7,"n_cols":22,"rows_kept":7,"cut":false,"hidden":true,"merged":[]}
[null,"Type",null,"Strategic Direction",null,"Media Type",null,"pl_time_periods",null,"Awardee / Partner",null,"Awardee",null,"Partner",null,"Partner_2",null,"Tabs"," to ","Group",null,0]
[null,"Partner",null,"Tobacco-free Living",null,"Television",null,"<Select Time Period>",null,"Grantee",null,"Public-Earned",null,"Public-Earned",null,"Public-Earned",null,null,null,"Y"]
[null,"Public-Earned",null,"Nutrition",null,"Radio",null,"9/30/2014 to 9/29/2015",null,"Partner",null,"Public-Paid",null,"Public-Paid",null,"Public-Paid",null,null,null,"N"]
[null,"Public-Paid",null,"Physical Activity",null,"Print",null,"9/30/2015 to 9/29/2016",null,null,null,"Partner",null,null,null,"Sub-Recipients",null,null,"2021-11-01"]
[null,null,null,"Community-Clinical Linkages",null,"Social/Digital Media",null,"9/30/2016 to 9/29/2017",null,null,null,null,null,null,null,null,null,null,"2021-09-01"]
[null,null,null,"Cross-cutting General",null,"Outdoor",null,null,null,null,null,null,null,null,null,null,null,null,"2021-12-01"]
[null,null,null,null,null,"Other",null,null,null,null,null,null,null,null,null,null,null,null,null,{"$f":"MAX(S4:S6)","v":"2021-12-01"}]

{"sheet":"PicklistData","index":5,"n_rows":96,"n_cols":30,"rows_kept":96,"cut":false,"hidden":true,"merged":[]}
[]
[null,"pl_directon",null,"pl_pops",null,"pl_pri_pops",null,"pl_quarters",null,"pl_FOA",null,null,"pl_awardee_pich",null,null,"pl_awardee_reach",null,null,"pl_awardee_national orgs",null,"pl_settings",null,"pl_months",null,"pl_years",null,"pl_prepositions",null,null,"pl_all_awardee"]
[null,"Increase",null,"Population Wide",null,"African American/Black",null,"Oct - Dec 2014 (FY14 Q1)",null,"<Select FOA>",null,"PICH","<Select Awardee>",null,"REACH 2014","<Select Awardee>",null,"select","<Select Awardee>",null,"<Select Setting>",null,"January",null,2014,null,"about",null,"PICH/REACH/National Org","<Select Awardee>"]
[null,"Decrease",null,"Priority Population",null,"American Indian/Alaska Native",null,"Jan - Mar 2015 (FY14 Q2)",null,"PICH",null,"PICH","Albemarle Regional Health Services",null,"REACH 2014","AltaMed Health Services Corporation",null,"National Orgs ","American Heart Association",null,"--Health Care Systems--",null,"Feburary",null,2015,null,"above",null,"PICH","PICH - Albemarle Regional Health Services"]
[null,null,null,null,null,"Asian American",null,"Apr - Jun 2015 (FY14 Q3)",null,"REACH 2014",null,"PICH","Boston Public Health Commission",null,"REACH 2014","Asian Media Access",null,"National Orgs ","American Planning Association",null,"Hospitals",null,"March",null,2016,null,"across",null,"PICH","PICH - Boston Public Health Commission"]
[null,null,null,null,null,"Hispanic/Latino",null,"Jul - Sep 2015 (FY14 Q4)",null,null,null,"PICH","Broward Regional Health Planning Council, Inc.",null,"REACH 2014","Asian Services In Action, Inc.",null,"National Orgs ","Assoc of State & Terr Directors of Hlth Promo and PH Education (ASTDHPPHE)",null,"Primary Care Providers",null,"April",null,2017,null,"after",null,"PICH","PICH - Broward Regional Health Planning Council, Inc."]
[null,null,null,null,null,"Native Hawaiian/ Other Pacific Islander",null,"Oct - Dec 2015 (FY15 Q1)",null,null,null,"PICH","Cherokee Nation Health Service Group",null,"REACH 2014","Boat People SOS-California",null,"National Orgs ","National WIC Association",null,"Mental Illness Providers",null,"May",null,null,null,"among",null,"PICH","PICH - Cherokee Nation Health Service Group"]
[null,null,null,null,null,null,null,"Jan - Mar 2016 (FY15 Q2)",null,null,null,"PICH","Cheshire Medical Center",null,"REACH 2014","Boston Public Health Commission",null,"National Orgs ","Society for Public Health Education",null,"Substance Abuse Facilities",null,"June",null,null,null,"around",null,"PICH","PICH - Cheshire Medical Center"]
[null,null,null,null,null,null,null,"Apr - Jun 2016 (FY15 Q3)",null,null,null,"PICH","Community Action Partnership of Orange County",null,"REACH 2014","Bronx Community Health Network, Inc.",null,null,null,null,"Health Insurance Companies",null,"July",null,null,null,"at",null,"PICH","PICH - Community Action Partnership of Orange County"]
[null,null,null,null,null,null,null,"Jul - Sep 2016 (FY15 Q4)",null,null,null,"PICH","Cook County Department of Public Health",null,"REACH 2014","California Center for Public Health Advocacy",null,null,null,null,"Pharmacies",null,"August",null,null,null,"before",null,"PICH","PICH - Cook County Department of Public Health"]
[null,null,null,null,null,null,null,"Oct - Dec 2016 (FY16 Q1)",null,null,null,"PICH","County Of Santa Clara Public Health Department",null,"REACH 2014","Central Maine Community Health Corp.",null,null,null,null,"Dental Offices",null,"September",null,null,null,"behind",null,"PICH","PICH - County Of Santa Clara Public Health Department"]
[null,null,null,null,null,null,null,"Jan - Mar 2017 (FY16 Q2)",null,null,null,"PICH","Cumberland Cape Atlantic YMCA",null,"REACH 2014","City of Pasadena",null,null,null,null,"--Education--",null,"October",null,null,null,"below",null,"PICH","PICH - Cumberland Cape Atlantic YMCA"]
[null,null,null,null,null,null,null,"Apr - Jun 2017 (FY16 Q3)",null,null,null,"PICH","Eastern Maine Healthcare Systems (EMHS)",null,"REACH 2014","Coeur d'Alene Tribe (Benewah Medical Center)",null,null,null,null,"Outside Of School Care Providers ",null,"November",null,null,null,"beneath",null,"PICH","PICH - Eastern Maine Healthcare Systems (EMHS)"]
[null,null,null,null,null,null,null,"Jul - Sep 2017 (FY16 Q4)",null,null,null,"PICH","Fort Defiance Indian Hospital Board, Inc.",null,"REACH 2014","Colorado Black Health Collaborative, Inc.",null,null,null,null,"K-12 Schools",null,"December",null,null,null,"beside",null,"PICH","PICH - Fort Defiance Indian Hospital Board, Inc."]
[null,null,null,null,null,null,null,null,null,null,null,"PICH","Fresno County Department of Public Health",null,"REACH 2014","Community Coalition for Substance Abuse Prevention and Treatment",null,null,null,null,"Colleges/Universities",null,null,null,null,null,"between",null,"PICH","PICH - Fresno County Department of Public Health"]
[null,null,null,null,null,null,null,null,null,null,null,"PICH","Fulton County",null,"REACH 2014","Community Health Improvement Partners",null,null,null,null,"Trade Schools",null,null,null,null,null,"by",null,"PICH","PICH - Fulton County"]
[null,null,null,null,null,null,null,null,null,null,null,"PICH","Fund for Public Health in New York, Inc.",null,"REACH 2014","Creighton University",null,null,null,null,"--Housing--",null,null,null,null,null,"down",null,"PICH","PICH - Fund for Public Health in New York, Inc."]
[null,null,null,null,null,null,null,null,null,null,null,"PICH","Great Plains Tribal Chairmen’s Health Board",null,"REACH 2014","Cuyahoga County District Board of Health",null,null,null,null,"Single Family Homes",null,null,null,null,null,"during",null,"PICH","PICH - Great Plains Tribal Chairmen’s Health Board"]
[null,null,null,null,null,null,null,null,null,null,null,"PICH","Heart of Florida Health Center",null,"REACH 2014","DeKalb County Board of Health",null,null,null,null,"Multi-Unit Housing Units",null,null,null,null,null,"except",null,"PICH","PICH - Heart of Florida Health Center"]
[null,null,null,null,null,null,null,null,null,null,null,"PICH","Hospital Council of Northwest Ohio",null,"REACH 2014","Greenwood Leflore Hospital",null,null,null,null,"Foster Care Providers",null,null,null,null,null,"for",null,"PICH","PICH - Hospital Council of Northwest Ohio"]
[null,null,null,null,null,null,null,null,null,null,null,"PICH","Lawrence-Douglas County Health Department",null,"REACH 2014","Inter-Tribal Council of Michigan, Inc.",null,null,null,null,"Hotels/Motels",null,null,null,null,null,"from",null,"PICH","PICH - Lawrence-Douglas County Health Department"]
[null,null,null,null,null,null,null,null,null,null,null,"PICH","Los Angeles County Office of Education",null,"REACH 2014","Kent County Health Department",null,null,null,null,"Prisons",null,null,null,null,null,"in",null,"PICH","PICH - Los Angeles County Office of Education"]
[null,null,null,null,null,null,null,null,null,null,null,"PICH","Maine General Medical Center",null,"REACH 2014","Kokua Kalihi Valley Comprehensive Family Services",null,null,null,null,"Juvenile Detention Centers",null,null,null,null,null,"instead of",null,"PICH","PICH - Maine General Medical Center"]
[null,null,null,null,null,null,null,null,null,null,null,"PICH","Merced County Department of Public Health",null,"REACH 2014","Leadership Council for Healthy Communities",null,null,null,null,"Group Homes",null,null,null,null,null,"into",null,"PICH","PICH - Merced County Department of Public Health"]
[null,null,null,null,null,null,null,null,null,null,null,"PICH","Miami-Dade County",null,"REACH 2014","Mandela MarketPlace, Inc.",null,null,null,null,"--Government--",null,null,null,null,null,"like",null,"PICH","PICH - Miami-Dade County"]
[null,null,null,null,null,null,null,null,null,null,null,"PICH","My Brother's Keeper, Inc.",null,"REACH 2014","Meharry Medical College",null,null,null,null,"Military Facilities",null,null,null,null,null,"of",null,"PICH","PICH - My Brother's Keeper, Inc."]
[null,null,null,null,null,null,null,null,null,null,null,"PICH","Nemours Alfred I. duPont Hospital for Children",null,"REACH 2014","Montgomery Area Community Wellness Coalition",null,null,null,null,"Veteran Facilities",null,null,null,null,null,"off",null,"PICH","PICH - Nemours Alfred I. duPont Hospital for Children"]
[null,null,null,null,null,null,null,null,null,null,null,"PICH","North Coast Opportunities",null,"REACH 2014","Morehouse School of Medicine, Inc",null,null,null,null,"Government Agencies",null,null,null,null,null,"on",null,"PICH","PICH - North Coast Opportunities"]
[null,null,null,null,null,null,null,null,null,null,null,"PICH","Partnership for a Healthy Lincoln",null,"REACH 2014","Multnomah County Health Department",null,null,null,null,"--Community--",null,null,null,null,null,"over",null,"PICH","PICH - Partnership for a Healthy Lincoln"]
[null,null,null,null,null,null,null,null,null,null,null,"PICH","Pawnee Nation of Oklahoma",null,"REACH 2014","New York University School of Medicine",null,null,null,null,"Faith Based Organizations",null,null,null,null,null,"since",null,"PICH","PICH - Pawnee Nation of Oklahoma"]
[null,null,null,null,null,null,null,null,null,null,null,"PICH","Pinellas County",null,"REACH 2014","Oakland University",null,null,null,null,"Non-Profit Organizations ",null,null,null,null,null,"through",null,"PICH","PICH - Pinellas County"]
[null,null,null,null,null,null,null,null,null,null,null,"PICH","Sault Ste Marie Tribe of Chippewa Indians",null,"REACH 2014","Old Colony Y",null,null,null,null,"Jurisdictions ",null,null,null,null,null,"to",null,"PICH","PICH - Sault Ste Marie Tribe of Chippewa Indians"]
[null,null,null,null,null,null,null,null,null,null,null,"PICH","Schenectady County",null,"REACH 2014","Operation Samahan, Inc.",null,null,null,null,"Recreation Areas ",null,null,null,null,null,"toward",null,"PICH","PICH - Schenectady County"]
[null,null,null,null,null,null,null,null,null,null,null,"PICH","Seattle-King County Department of Public Health",null,"REACH 2014","Partners In Health",null,null,null,null,"Gardens",null,null,null,null,null,"under",null,"PICH","PICH - Seattle-King County Department of Public Health"]
[null,null,null,null,null,null,null,null,null,null,null,"PICH","Solano County Public Health Services, County of Solano",null,"REACH 2014","Presbyterian Healthcare Services",null,null,null,null,"Worksites",null,null,null,null,null,"up",null,"PICH","PICH - Solano County Public Health Services, County of Solano"]
[null,null,null,null,null,null,null,null,null,null,null,"PICH","Southern Nevada Health District",null,"REACH 2014","Project Concern International",null,null,null,null,"Farms",null,null,null,null,null,"with",null,"PICH","PICH - Southern Nevada Health District"]
[null,null,null,null,null,null,null,null,null,null,null,"PICH","Tanner Medical Center, Inc.",null,"REACH 2014","Public Health Authority of Cabarrus County",null,null,null,null,"Entertainment Venues ",null,null,null,null,null,"without",null,"PICH","PICH - Tanner Medical Center, Inc."]
[null,null,null,null,null,null,null,null,null,null,null,"PICH","The Lima Family YMCA",null,"REACH 2014","Public Health Institute",null,null,null,null,"--Retail Environments--",null,null,null,null,null,"other (specify)",null,"PICH","PICH - The Lima Family YMCA"]
[null,null,null,null,null,null,null,null,null,null,null,"PICH","Toiyabe Indian Health Project, Inc.",null,"REACH 2014","Regents of the University of California, Los Angeles",null,null,null,null,"Farmer’s Markets",null,null,null,null,null,null,null,"PICH","PICH - Toiyabe Indian Health Project, Inc."]
[null,null,null,null,null,null,null,null,null,null,null,"PICH","Trinity Medical Center",null,"REACH 2014","San Francisco Department of Public Health",null,null,null,null,"Grocery Stores ",null,null,null,null,null,null,null,"PICH","PICH - Trinity Medical Center"]
[null,null,null,null,null,null,null,null,null,null,null,"PICH","Woodbury County",null,"REACH 2014","Temple University",null,null,null,null,"Restaurants/Bars",null,null,null,null,null,null,null,"PICH","PICH - Woodbury County"]
[null,null,null,null,null,null,null,null,null,null,null,"PICH","YMCA of Greenville",null,"REACH 2014","The Balm In Gilead, Inc.",null,null,null,null,"Mobile Vending Carts",null,null,null,null,null,null,null,"PICH","PICH - YMCA of Greenville"]
[null,null,null,null,null,null,null,null,null,null,null,null,null,null,"REACH 2014","The George Washington University",null,null,null,null,"Food Trucks",null,null,null,null,null,null,null,"REACH 2014","REACH 2014 - AltaMed Health Services Corporation"]
[null,null,null,null,null,null,null,null,null,null,null,null,null,null,"REACH 2014","The Institute for Family Health",null,null,null,null,"Concessions Stands",null,null,null,null,null,null,null,"REACH 2014","REACH 2014 - Asian Media Access"]
[null,null,null,null,null,null,null,null,null,null,null,null,null,null,"REACH 2014","The Regents of the University of California, San Diego",null,null,null,null,"Farm Stands",null,null,null,null,null,null,null,"REACH 2014","REACH 2014 - Asian Services In Action, Inc."]
[null,null,null,null,null,null,null,null,null,null,null,null,null,null,"REACH 2014","The Stapleton Foundation for Sustainable Urban Communities",null,null,null,null,"Other (Specify)",null,null,null,null,null,null,null,"REACH 2014","REACH 2014 - Boat People SOS-California"]
[null,null,null,null,null,null,null,null,null,null,null,null,null,null,"REACH 2014","The University of Alabama at Birmingham",null,null,null,null,null,null,null,null,null,null,null,null,"REACH 2014","REACH 2014 - Boston Public Health Commission"]
[null,null,null,null,null,null,null,null,null,null,null,null,null,null,"REACH 2014","Toiyabe Indian Health Project, Inc.",null,null,null,null,null,null,null,null,null,null,null,null,"REACH 2014","REACH 2014 - Bronx Community Health Network, Inc."]
[null,null,null,null,null,null,null,null,null,null,null,null,null,null,"REACH 2014","University of Arkansas for Medical Sciences",null,null,null,null,null,null,null,null,null,null,null,null,"REACH 2014","REACH 2014 - California Center for Public Health Advocacy"]
[null,null,null,null,null,null,null,null,null,null,null,null,null,null,"REACH 2014","University of Hawaii",null,null,null,null,null,null,null,null,null,null,null,null,"REACH 2014","REACH 2014 - Central Maine Community Health Corp."]
[null,null,null,null,null,null,null,null,null,null,null,null,null,null,"REACH 2014","University of Kansas Center for Research, Inc.",null,null,null,null,null,null,null,null,null,null,null,null,"REACH 2014","REACH 2014 - City of Pasadena"]
[null,null,null,null,null,null,null,null,null,null,null,null,null,null,"REACH 2014","YMCA of Greater Cleveland",null,null,null,null,null,null,null,null,null,null,null,null,"REACH 2014","REACH 2014 - Coeur d'Alene Tribe (Benewah Medical Center)"]
[null,null,null,null,null,null,null,null,null,null,null,null,null,null,null,null,null,null,null,null,null,null,null,null,null,null,null,null,"REACH 2014","REACH 2014 - Colorado Black Health Collaborative, Inc."]
[null,null,null,null,null,null,null,null,null,null,null,null,null,null,null,null,null,null,null,null,null,null,null,null,null,null,null,null,"REACH 2014","REACH 2014 - Community Coalition for Substance Abuse Prevention and Treatment"]
[null,null,null,null,null,null,null,null,null,null,null,null,null,null,null,null,null,null,null,null,null,null,null,null,null,null,null,null,"REACH 2014","REACH 2014 - Community Health Improvement Partners"]
[null,null,null,null,null,null,null,null,null,null,null,null,null,null,null,null,null,null,null,null,null,null,null,null,null,null,null,null,"REACH 2014","REACH 2014 - Creighton University"]
[null,null,null,null,null,null,null,null,null,null,null,null,null,null,null,null,null,null,null,null,null,null,null,null,null,null,null,null,"REACH 2014","REACH 2014 - Cuyahoga County District Board of Health"]
[null,null,null,null,null,null,null,null,null,null,null,null,null,null,null,null,null,null,null,null,null,null,null,null,null,null,null,null,"REACH 2014","REACH 2014 - DeKalb County Board of Health"]
[null,null,null,null,null,null,null,null,null,null,null,null,null,null,null,null,null,null,null,null,null,null,null,null,null,null,null,null,"REACH 2014","REACH 2014 - Greenwood Leflore Hospital"]
[null,null,null,null,null,null,null,null,null,null,null,null,null,null,null,null,null,null,null,null,null,null,null,null,null,null,null,null,"REACH 2014","REACH 2014 - Inter-Tribal Council of Michigan, Inc."]
[null,null,null,null,null,null,null,null,null,null,null,null,null,null,null,null,null,null,null,null,null,null,null,null,null,null,null,null,"REACH 2014","REACH 2014 - Kent County Health Department"]
[null,null,null,null,null,null,null,null,null,null,null,null,null,null,null,null,null,null,null,null,null,null,null,null,null,null,null,null,"REACH 2014","REACH 2014 - Kokua Kalihi Valley Comprehensive Family Services"]
[null,null,null,null,null,null,null,null,null,null,null,null,null,null,null,null,null,null,null,null,null,null,null,null,null,null,null,null,"REACH 2014","REACH 2014 - Leadership Council for Healthy Communities"]
[null,null,null,null,null,null,null,null,null,null,null,null,null,null,null,null,null,null,null,null,null,null,null,null,null,null,null,null,"REACH 2014","REACH 2014 - Mandela MarketPlace, Inc."]
[null,null,null,null,null,null,null,null,null,null,null,null,null,null,null,null,null,null,null,null,null,null,null,null,null,null,null,null,"REACH 2014","REACH 2014 - Meharry Medical College"]
[null,null,null,null,null,null,null,null,null,null,null,null,null,null,null,null,null,null,null,null,null,null,null,null,null,null,null,null,"REACH 2014","REACH 2014 - Montgomery Area Community Wellness Coalition"]
[null,null,null,null,null,null,null,null,null,null,null,null,null,null,null,null,null,null,null,null,null,null,null,null,null,null,null,null,"REACH 2014","REACH 2014 - Morehouse School of Medicine, Inc"]
[null,null,null,null,null,null,null,null,null,null,null,null,null,null,null,null,null,null,null,null,null,null,null,null,null,null,null,null,"REACH 2014","REACH 2014 - Multnomah County Health Department"]
[null,null,null,null,null,null,null,null,null,null,null,null,null,null,null,null,null,null,null,null,null,null,null,null,null,null,null,null,"REACH 2014","REACH 2014 - New York University School of Medicine"]
[null,null,null,null,null,null,null,null,null,null,null,null,null,null,null,null,null,null,null,null,null,null,null,null,null,null,null,null,"REACH 2014","REACH 2014 - Oakland University"]
[null,null,null,null,null,null,null,null,null,null,null,null,null,null,null,null,null,null,null,null,null,null,null,null,null,null,null,null,"REACH 2014","REACH 2014 - Old Colony Y"]
[null,null,null,null,null,null,null,null,null,null,null,null,null,null,null,null,null,null,null,null,null,null,null,null,null,null,null,null,"REACH 2014","REACH 2014 - Operation Samahan, Inc."]
[null,null,null,null,null,null,null,null,null,null,null,null,null,null,null,null,null,null,null,null,null,null,null,null,null,null,null,null,"REACH 2014","REACH 2014 - Partners In Health"]
[null,null,null,null,null,null,null,null,null,null,null,null,null,null,null,null,null,null,null,null,null,null,null,null,null,null,null,null,"REACH 2014","REACH 2014 - Presbyterian Healthcare Services"]
[null,null,null,null,null,null,null,null,null,null,null,null,null,null,null,null,null,null,null,null,null,null,null,null,null,null,null,null,"REACH 2014","REACH 2014 - Project Concern International"]
[null,null,null,null,null,null,null,null,null,null,null,null,null,null,null,null,null,null,null,null,null,null,null,null,null,null,null,null,"REACH 2014","REACH 2014 - Public Health Authority of Cabarrus County"]
[null,null,null,null,null,null,null,null,null,null,null,null,null,null,null,null,null,null,null,null,null,null,null,null,null,null,null,null,"REACH 2014","REACH 2014 - Public Health Institute"]
[null,null,null,null,null,null,null,null,null,null,null,null,null,null,null,null,null,null,null,null,null,null,null,null,null,null,null,null,"REACH 2014","REACH 2014 - Regents of the University of California, Los Angeles"]
[null,null,null,null,null,null,null,null,null,null,null,null,null,null,null,null,null,null,null,null,null,null,null,null,null,null,null,null,"REACH 2014","REACH 2014 - San Francisco Department of Public Health"]
[null,null,null,null,null,null,null,null,null,null,null,null,null,null,null,null,null,null,null,null,null,null,null,null,null,null,null,null,"REACH 2014","REACH 2014 - Temple University"]
[null,null,null,null,null,null,null,null,null,null,null,null,null,null,null,null,null,null,null,null,null,null,null,null,null,null,null,null,"REACH 2014","REACH 2014 - The Balm In Gilead, Inc."]
[null,null,null,null,null,null,null,null,null,null,null,null,null,null,null,null,null,null,null,null,null,null,null,null,null,null,null,null,"REACH 2014","REACH 2014 - The George Washington University"]
[null,null,null,null,null,null,null,null,null,null,null,null,null,null,null,null,null,null,null,null,null,null,null,null,null,null,null,null,"REACH 2014","REACH 2014 - The Institute for Family Health"]
[null,null,null,null,null,null,null,null,null,null,null,null,null,null,null,null,null,null,null,null,null,null,null,null,null,null,null,null,"REACH 2014","REACH 2014 - The Regents of the University of California, San Diego"]
[null,null,null,null,null,null,null,null,null,null,null,null,null,null,null,null,null,null,null,null,null,null,null,null,null,null,null,null,"REACH 2014","REACH 2014 - The Stapleton Foundation for Sustainable Urban Communities"]
[null,null,null,null,null,null,null,null,null,null,null,null,null,null,null,null,null,null,null,null,null,null,null,null,null,null,null,null,"REACH 2014","REACH 2014 - The University of Alabama at Birmingham"]
[null,null,null,null,null,null,null,null,null,null,null,null,null,null,null,null,null,null,null,null,null,null,null,null,null,null,null,null,"REACH 2014","REACH 2014 - Toiyabe Indian Health Project, Inc."]
[null,null,null,null,null,null,null,null,null,null,null,null,null,null,null,null,null,null,null,null,null,null,null,null,null,null,null,null,"REACH 2014","REACH 2014 - University of Arkansas for Medical Sciences"]
[null,null,null,null,null,null,null,null,null,null,null,null,null,null,null,null,null,null,null,null,null,null,null,null,null,null,null,null,"REACH 2014","REACH 2014 - University of Hawaii"]
[null,null,null,null,null,null,null,null,null,null,null,null,null,null,null,null,null,null,null,null,null,null,null,null,null,null,null,null,"REACH 2014","REACH 2014 - University of Kansas Center for Research, Inc."]
[null,null,null,null,null,null,null,null,null,null,null,null,null,null,null,null,null,null,null,null,null,null,null,null,null,null,null,null,"REACH 2014","REACH 2014 - YMCA of Greater Cleveland"]
[null,null,null,null,null,null,null,null,null,null,null,null,null,null,null,null,null,null,null,null,null,null,null,null,null,null,null,null,"National Orgs ","National Orgs - American Heart Association"]
[null,null,null,null,null,null,null,null,null,null,null,null,null,null,null,null,null,null,null,null,null,null,null,null,null,null,null,null,"National Orgs ","National Orgs - American Planning Association"]
[null,null,null,null,null,null,null,null,null,null,null,null,null,null,null,null,null,null,null,null,null,null,null,null,null,null,null,null,"National Orgs ","National Orgs - Assoc of State & Terr Directors of Hlth Promo and PH Education (ASTDHPPHE)"]
[null,null,null,null,null,null,null,null,null,null,null,null,null,null,null,null,null,null,null,null,null,null,null,null,null,null,null,null,"National Orgs ","National Orgs - National WIC Association"]
[null,null,null,null,null,null,null,null,null,null,null,null,null,null,null,null,null,null,null,null,null,null,null,null,null,null,null,null,"National Orgs ","National Orgs - Society for Public Health Education"]

{"sheet":"Embedded WORD","index":6,"n_rows":0,"n_cols":0,"rows_kept":0,"cut":false,"hidden":true,"merged":[]}